Workbook

Sheet Ctos suscrito x Trimestre
B2: Contratos Suscritos en la vigencia 2021 (Inversion) | E2: Se toman solo los contratos de la vigencia por cuanto en las adiciones años anteriores algunas Entidades registraron la fecha en que se suscribio el contrato y no la adición.
B3: Afectación | C3: Inversión
B4: Tipo de contrato | C4: (Varios elementos) | D4: No incluir "otros gastos"
B5: Año | C5: (Todas)
B7: Suma de Cuenta contratos
B8: Fecha de suscripción (DD/MM/AAAA) | C8: Total
B9: 44223 | C9: 2
B10: 44225 | C10: 3
B11: 44228 | C11: 6
B12: 44229 | C12: 1
B13: 44230 | C13: 3
B14: 44232 | C14: 3
B15: 44235 | C15: 3
B16: 44236 | C16: 2
B17: 44238 | C17: 6
B18: 44239 | C18: 2
B19: 44242 | C19: 7
B20: 44244 | C20: 1
B21: 44243 | C21: 1
B22: 44249 | C22: 1
B23: 44250 | C23: 1
B24: 44253 | C24: 1
B25: 44252 | C25: 4
B26: 44257 | C26: 3
B27: 44256 | C27: 1
B28: 44264 | C28: 1
B29: 44270 | C29: 5
B30: 44271 | C30: 1
B31: 44272 | C31: 1
B32: 44273 | C32: 1
B33: 44278 | C33: 2
B34: 44279 | C34: 4
B35: 44280 | C35: 3
B36: 44286 | C36: 2
B37: 44281 | C37: 3
B38: 44298 | C38: 1
B39: 44299 | C39: 1
B40: 44300 | C40: 3
B41: 44301 | C41: 1
B42: 44307 | C42: 1
B43: 44313 | C43: 2
B44: 44314 | C44: 1
B45: 44320 | C45: 2
B46: 44327 | C46: 2
B47: 44329 | C47: 1
B48: 44358 | C48: 1
B49: 44362 | C49: 1
B50: 44364 | C50: 1
B51: 44375 | C51: 1
B52: 44391 | C52: 2
B53: 44392 | C53: 1
B54: 44405 | C54: 1
B55: 44407 | C55: 2
B56: 44417 | C56: 1
B57: 44418 | C57: 3
B58: 44419 | C58: 1
B59: 44420 | C59: 2
B60: 44421 | C60: 2
B61: 44427 | C61: 2
B62: 44431 | C62: 1
B63: 44433 | C63: 2
B64: 44434 | C64: 7
B65: 44438 | C65: 1
B66: 44440 | C66: 3
B67: 44446 | C67: 1
B68: 44445 | C68: 2
B69: 44447 | C69: 2
B70: 44449 | C70: 1
B71: 44455 | C71: 1
B72: 44461 | C72: 6
B73: 44462 | C73: 4
B74: 44463 | C74: 2
B75: 44467 | C75: 2
B76: 44480 | C76: 1
B77: 44495 | C77: 3
B78: 44490 | C78: 1
B79: 44482 | C79: 2
B80: 44541 | C80: 1
B81: 44512 | C81: 1
B82: 44505 | C82: 5
B83: 44509 | C83: 1
B84: 44517 | C84: 2
B85: 44519 | C85: 3
B86: 44526 | C86: 1
B87: 44529 | C87: 1
B88: 44531 | C88: 1
B89: 44532 | C89: 2
B90: 44537 | C90: 1
B91: 44539 | C91: 1
B92: 44543 | C92: 2
B93: 44545 | C93: 1
B94: 44547 | C94: 7
B95: 44546 | C95: 2
B96: 44550 | C96: 1
B97: 44549 | C97: 1
B98: 44551 | C98: 1
B99: 44558 | C99: 1
B100: 44559 | C100: 3
B101: 44560 | C101: 5
B102: Total general | C102: 196

Sheet INVERSION (hidden)
B1: INVERSION TIPO DE CONTRATO AÑO 2021 SE SUMO EL NUMERO DE CONTRATOS | AY1: INVERSION POR MODALIDAD DE CONTRATO AÑO 2021 SE SUMO EL NUMERO DE CONTRATOS
A3: Año | B3: 2021 | AY3: Año | AZ3: 2021
A4: Afectación | B4: Inversión | AY4: Afectación | AZ4: Inversión
D6: Valores | BB6: Valores
A7: Tipo de contrato | B7: Propósito | C7: Equivalencia número de programa | D7: Suma de Valor Final | E7: Suma de Valor Final 2 | F7: Suma de Giros (Valor en pesos) | G7: Suma de Giros (Valor en pesos)2 | H7: Suma de Cuenta contratos | I7: Suma de Cuenta contratos2 | AY7: Modalidad de Selección | AZ7: Propósito | BA7: Equivalencia número de programa | BB7: Suma de Valor Final | BC7: Suma de Valor Final 2 | BD7: Suma de Giros (Valor en pesos) | BE7: Suma de Giros (Valor en pesos)2 | BF7: Suma de Cuenta contratos | BG7: Suma de Cuenta contratos2
A8: Compraventa de bienes muebles | B8: Propósito 1: Hacer un nuevo contrato social para incrementar la inclusión social, productiva y política | C8: Sistema Distrital de Cuidado | D8: 143477087 | E8: 0.01941654682 | F8: 143477054 | G8: 0.02978340147 | H8: 13 | I8: 0.06701030928 | AY8: Contratación directa | AZ8: Propósito 1: Hacer un nuevo contrato social para incrementar la inclusión social, productiva y política | BA8: Bogotá región emprendedora e innovadora | BB8: 169298285 | BC8: 0.02291089223 | BD8: 129579117 | BE8: 0.02689842561 | BF8: 14 | BG8: 0.07216494845
C9: Creación y vida cotidiana: Apropiación ciudadana del arte, la cultura y el patrimonio, para la democracia cultural | D9: 411976839 | E9: 0.05575223021 | F9: 0 | G9: 0 | H9: 6 | I9: 0.03092783505 | BA9: Creación y vida cotidiana: Apropiación ciudadana del arte, la cultura y el patrimonio, para la democracia cultural | BB9: 119556266 | BC9: 0.01617937669 | BD9: 42025700 | BE9: 0.008723822104 | BF9: 9 | BG9: 0.04639175258
C10: Educación inicial: Bases sólidas para la vida. | D10: 72588416 | E10: 0.009823285429 | F10: 0 | G10: 0 | H10: 5 | I10: 0.02577319588 | BA10: Educación inicial: Bases sólidas para la vida. | BB10: 20448000 | BC10: 0.002767198288 | BD10: 20448000 | BE10: 0.004244657778 | BF10: 1 | BG10: 0.005154639175
B11: Propósito 5: Construir Bogotá - Región con gobierno abierto, transparente y ciudadanía consciente | C11: Gestión pública local | D11: 5229346 | E11: 0.0007076798365 | F11: 0 | G11: 0 | H11: 1 | I11: 0.005154639175 | BA11: Formación integral: más y mejor tiempo en los colegios | BB11: 30672000 | BC11: 0.004150797431 | BD11: 30672000 | BE11: 0.006366986667 | BF11: 1 | BG11: 0.005154639175
B12: Propósito 3: Inspirar confianza y legitimidad para vivir sin miedo y ser epicentro de cultura ciudadana, paz y reconciliación | C12: Espacio público más seguro y construido colectivamente | D12: 38974244 | E12: 0.005274328113 | F12: 0 | G12: 0 | H12: 2 | I12: 0.01030927835 | BA12: Jóvenes con capacidades: Proyecto de vida para la ciudadanía, la innovación y el trabajo del siglo XXI | BB12: 860583000 | BC12: 0.1164614536 | BD12: 860583000 | BE12: 0.1786424259 | BF12: 2 | BG12: 0.01030927835
A13: Contratos de prestación de servicios | B13: Propósito 1: Hacer un nuevo contrato social para incrementar la inclusión social, productiva y política | C13: Sistema Distrital de Cuidado | D13: 211974142.1 | E13: 0.02868615429 | F13: 3753166 | G13: 0.0007790935668 | H13: 4 | I13: 0.0206185567 | BA13: Sistema Distrital de Cuidado | BB13: 691673968 | BC13: 0.09360323845 | BD13: 436769730 | BE13: 0.09066598355 | BF13: 19 | BG13: 0.09793814433
C14: Bogotá región emprendedora e innovadora | D14: 70919820 | E14: 0.009597476744 | F14: 0 | G14: 0 | H14: 1 | I14: 0.005154639175 | BA14: Subsidios y transferencias para la equidad | BB14: 146120600 | BC14: 0.01977428962 | BD14: 140386600 | BE14: 0.02914187567 | BF14: 6 | BG14: 0.03092783505
C15: Creación y vida cotidiana: Apropiación ciudadana del arte, la cultura y el patrimonio, para la democracia cultural | D15: 313888237 | E15: 0.04247804147 | F15: 63314206 | G15: 0.01314295466 | H15: 1 | I15: 0.005154639175 | AZ15: Propósito 5: Construir Bogotá - Región con gobierno abierto, transparente y ciudadanía consciente | BA15: Fortalecimiento de cultura ciudadana y su institucionalidad | BB15: 147951600 | BC15: 0.0200220762 | BD15: 125266300 | BE15: 0.02600315799 | BF15: 6 | BG15: 0.03092783505
C16: Educación inicial: Bases sólidas para la vida. | D16: 11128245 | E16: 0.001505969313 | F16: 0 | G16: 0 | H16: 1 | I16: 0.005154639175 | BA16: Gestión pública local | BB16: 1514593899 | BC16: 0.2049678034 | BD16: 1402862833 | BE16: 0.2912105162 | BF16: 61 | BG16: 0.3144329897
B17: Propósito 5: Construir Bogotá - Región con gobierno abierto, transparente y ciudadanía consciente | C17: Fortalecimiento de cultura ciudadana y su institucionalidad | D17: 132256954 | E17: 0.01789814244 | F17: 24217039 | G17: 0.00502704631 | H17: 1 | I17: 0.005154639175 | AZ17: Propósito 2 : Cambiar Nuestros Hábitos de Vida para Reverdecer a Bogotá y Adaptarnos y Mitigar la Crisis Climática | BA17: Bogotá protectora de los animales | BB17: 70253200 | BC17: 0.009507264023 | BD17: 69136400 | BE17: 0.01435154333 | BF17: 3 | BG17: 0.01546391753
B18: Propósito 2 : Cambiar Nuestros Hábitos de Vida para Reverdecer a Bogotá y Adaptarnos y Mitigar la Crisis Climática | C18: Bogotá protectora de los animales | D18: 77000000 | E18: 0.01042029872 | F18: 63573046 | G18: 0.01319668546 | H18: 1 | I18: 0.005154639175 | AZ18: Propósito 4: Hacer de Bogotá Región un modelo de movilidad multimodal, incluyente y sostenible | BA18: Movilidad segura, sostenible y accesible | BB18: 244239266 | BC18: 0.03305254688 | BD18: 181375198 | BE18: 0.037650413 | BF18: 8 | BG18: 0.0412371134
B19: Propósito 3: Inspirar confianza y legitimidad para vivir sin miedo y ser epicentro de cultura ciudadana, paz y reconciliación | C19: Espacio público más seguro y construido colectivamente | D19: 250166192 | E19: 0.03385462921 | F19: 0 | G19: 0 | H19: 1 | I19: 0.005154639175 | AZ19: Propósito 3: Inspirar confianza y legitimidad para vivir sin miedo y ser epicentro de cultura ciudadana, paz y reconciliación | BA19: Cultura ciudadana para la confianza, la convivencia y la participación desde la vida cotidiana | BB19: 188276666 | BC19: 0.0254792091 | BD19: 175137330 | BE19: 0.03635553746 | BF19: 9 | BG19: 0.04639175258
C20: Más mujeres viven una vida libre de violencias, se sienten seguras y acceden con confianza al sistema de justicia | D20: 106603020 | E20: 0.01442643263 | F20: 0 | G20: 0 | H20: 1 | I20: 0.005154639175 | BA20: Espacio público más seguro y construido colectivamente | BB20: 128219559 | BC20: 0.01735176761 | BD20: 97008300 | BE20: 0.02013727676 | BF20: 8 | BG20: 0.0412371134
A21: Contratos de prestación de servicios profesionales y de apoyo a la gestión | B21: Propósito 1: Hacer un nuevo contrato social para incrementar la inclusión social, productiva y política | C21: Subsidios y transferencias para la equidad | D21: 146120600 | E21: 0.01977428962 | F21: 140386600 | G21: 0.02914187567 | H21: 6 | I21: 0.03092783505 | BA21: Más mujeres viven una vida libre de violencias, se sienten seguras y acceden con confianza al sistema de justicia | BB21: 92492600 | BC21: 0.01251688988 | BD21: 47818400 | BE21: 0.009926288317 | BF21: 2 | BG21: 0.01030927835
C22: Sistema Distrital de Cuidado | D22: 502670099 | E22: 0.06802561801 | F22: 412265633 | G22: 0.08557934888 | H22: 18 | I22: 0.09278350515 | AY22: Contratación mínima cuantia | AZ22: Propósito 1: Hacer un nuevo contrato social para incrementar la inclusión social, productiva y política | BA22: Educación inicial: Bases sólidas para la vida. | BB22: 16399245 | BC22: 0.002219286125 | BD22: 0 | BE22: 0 | BF22: 2 | BG22: 0.01030927835
C23: Bogotá región emprendedora e innovadora | D23: 141952935 | E23: 0.01921028554 | F23: 102233767 | G23: 0.02122199503 | H23: 13 | I23: 0.06701030928 | BA23: Sistema Distrital de Cuidado | BB23: 45104283.1 | BC23: 0.006103897445 | BD23: 22153166 | BE23: 0.004598621302 | BF23: 3 | BG23: 0.01546391753
C24: Creación y vida cotidiana: Apropiación ciudadana del arte, la cultura y el patrimonio, para la democracia cultural | D24: 119556266 | E24: 0.01617937669 | F24: 42025700 | G24: 0.008723822104 | H24: 9 | I24: 0.04639175258 | AZ24: Propósito 5: Construir Bogotá - Región con gobierno abierto, transparente y ciudadanía consciente | BA24: Fortalecimiento de cultura ciudadana y su institucionalidad | BB24: 13563360 | BC24: 0.001835509906 | BD24: 1444075 | BE24: 0.0002997654627 | BF24: 1 | BG24: 0.005154639175
C25: Educación inicial: Bases sólidas para la vida. | D25: 20448000 | E25: 0.002767198288 | F25: 20448000 | G25: 0.004244657778 | H25: 1 | I25: 0.005154639175 | BA25: Gestión pública local | BB25: 8731346 | BC25: 0.001181600435 | BD25: 3502000 | BE25: 0.0007269557678 | BF25: 2 | BG25: 0.01030927835
C26: Formación integral: más y mejor tiempo en los colegios | D26: 30672000 | E26: 0.004150797431 | F26: 30672000 | G26: 0.006366986667 | H26: 1 | I26: 0.005154639175 | AZ26: Propósito 3: Inspirar confianza y legitimidad para vivir sin miedo y ser epicentro de cultura ciudadana, paz y reconciliación | BA26: Espacio público más seguro y construido colectivamente | BB26: 64374244 | BC26: 0.008711673404 | BD26: 0 | BE26: 0 | BF26: 3 | BG26: 0.01546391753
C27: Jóvenes con capacidades: Proyecto de vida para la ciudadanía, la innovación y el trabajo del siglo XXI | D27: 30672000 | E27: 0.004150797431 | F27: 30672000 | G27: 0.006366986667 | H27: 1 | I27: 0.005154639175 | BA27: Más mujeres viven una vida libre de violencias, se sienten seguras y acceden con confianza al sistema de justicia | BB27: 1629550 | BC27: 0.0002205246464 | BD27: 0 | BE27: 0 | BF27: 0 | BG27: 0
B28: Propósito 5: Construir Bogotá - Región con gobierno abierto, transparente y ciudadanía consciente | C28: Gestión pública local | D28: 1514593899 | E28: 0.2049678034 | F28: 1402862833 | G28: 0.2912105162 | H28: 61 | I28: 0.3144329897 | AY28: Régimen especial | AZ28: Propósito 1: Hacer un nuevo contrato social para incrementar la inclusión social, productiva y política | BA28: Sistema Distrital de Cuidado | BB28: 807645195 | BC28: 0.109297457 | BD28: 755000000 | BE28: 0.1567251869 | BF28: 1 | BG28: 0.005154639175
C29: Fortalecimiento de cultura ciudadana y su institucionalidad | D29: 147951600 | E29: 0.0200220762 | F29: 125266300 | G29: 0.02600315799 | H29: 6 | I29: 0.03092783505 | AY29: Selección abreviada | AZ29: Propósito 1: Hacer un nuevo contrato social para incrementar la inclusión social, productiva y política | BA29: Bogotá región emprendedora e innovadora | BB29: 70919820 | BC29: 0.009597476744 | BD29: 0 | BE29: 0 | BF29: 1 | BG29: 0.005154639175
B30: Propósito 2 : Cambiar Nuestros Hábitos de Vida para Reverdecer a Bogotá y Adaptarnos y Mitigar la Crisis Climática | C30: Bogotá protectora de los animales | D30: 70253200 | E30: 0.009507264023 | F30: 69136400 | G30: 0.01435154333 | H30: 3 | I30: 0.01546391753 | BA30: Creación y vida cotidiana: Apropiación ciudadana del arte, la cultura y el patrimonio, para la democracia cultural | BB30: 725865076 | BC30: 0.09823027168 | BD30: 63314206 | BE30: 0.01314295466 | BF30: 7 | BG30: 0.03608247423
B31: Propósito 4: Hacer de Bogotá Región un modelo de movilidad multimodal, incluyente y sostenible | C31: Movilidad segura, sostenible y accesible | D31: 244239266 | E31: 0.03305254688 | F31: 181375198 | G31: 0.037650413 | H31: 8 | I31: 0.0412371134 | BA31: Educación inicial: Bases sólidas para la vida. | BB31: 72588416 | BC31: 0.009823285429 | BD31: 0 | BE31: 0 | BF31: 5 | BG31: 0.02577319588
B32: Propósito 3: Inspirar confianza y legitimidad para vivir sin miedo y ser epicentro de cultura ciudadana, paz y reconciliación | C32: Cultura ciudadana para la confianza, la convivencia y la participación desde la vida cotidiana | D32: 188276666 | E32: 0.0254792091 | F32: 175137330 | G32: 0.03635553746 | H32: 9 | I32: 0.04639175258 | BA32: Sistema Distrital de Cuidado | BB32: 310346946 | BC32: 0.04199880367 | BD32: 125077054 | BE32: 0.02596387374 | BF32: 14 | BG32: 0.07216494845
C33: Espacio público más seguro y construido colectivamente | D33: 128219559 | E33: 0.01735176761 | F33: 97008300 | G33: 0.02013727676 | H33: 8 | I33: 0.0412371134 | AZ33: Propósito 5: Construir Bogotá - Región con gobierno abierto, transparente y ciudadanía consciente | BA33: Fortalecimiento de cultura ciudadana y su institucionalidad | BB33: 132256954 | BC33: 0.01789814244 | BD33: 24217039 | BE33: 0.00502704631 | BF33: 1 | BG33: 0.005154639175
C34: Más mujeres viven una vida libre de violencias, se sienten seguras y acceden con confianza al sistema de justicia | D34: 64517600 | E34: 0.008731073564 | F34: 47818400 | G34: 0.009926288317 | H34: 2 | I34: 0.01030927835 | AZ34: Propósito 2 : Cambiar Nuestros Hábitos de Vida para Reverdecer a Bogotá y Adaptarnos y Mitigar la Crisis Climática | BA34: Bogotá protectora de los animales | BB34: 111422311 | BC34: 0.01507862031 | BD34: 63573046 | BE34: 0.01319668546 | BF34: 2 | BG34: 0.01030927835
A35: Contratos interadministrativos | B35: Propósito 1: Hacer un nuevo contrato social para incrementar la inclusión social, productiva y política | C35: Sistema Distrital de Cuidado | D35: 189003869 | E35: 0.02557762043 | F35: 24504097 | G35: 0.00508663468 | H35: 1 | I35: 0.005154639175 | AZ35: Propósito 4: Hacer de Bogotá Región un modelo de movilidad multimodal, incluyente y sostenible | BA35: Movilidad segura, sostenible y accesible | BB35: 229058163 | BC35: 0.03099811015 | BD35: 0 | BE35: 0 | BF35: 1 | BG35: 0.005154639175
C36: Bogotá región emprendedora e innovadora | D36: 27345350 | E36: 0.003700606695 | F36: 27345350 | G36: 0.005676430584 | H36: 1 | I36: 0.005154639175 | AZ36: Propósito 3: Inspirar confianza y legitimidad para vivir sin miedo y ser epicentro de cultura ciudadana, paz y reconciliación | BA36: Espacio público más seguro y construido colectivamente | BB36: 250166192 | BC36: 0.03385462921 | BD36: 0 | BE36: 0 | BF36: 1 | BG36: 0.005154639175
C37: Jóvenes con capacidades: Proyecto de vida para la ciudadanía, la innovación y el trabajo del siglo XXI | D37: 829911000 | E37: 0.1123106562 | F37: 829911000 | G37: 0.1722754392 | H37: 1 | I37: 0.005154639175 | BA37: Más mujeres viven una vida libre de violencias, se sienten seguras y acceden con confianza al sistema de justicia | BB37: 104973470 | BC37: 0.01420590798 | BD37: 0 | BE37: 0 | BF37: 1 | BG37: 0.005154639175
B38: Propósito 3: Inspirar confianza y legitimidad para vivir sin miedo y ser epicentro de cultura ciudadana, paz y reconciliación | C38: Más mujeres viven una vida libre de violencias, se sienten seguras y acceden con confianza al sistema de justicia | D38: 27975000 | E38: 0.003785816319 | F38: 0 | G38: 0 | H38: 0 | I38: 0 | AY38: Total general | BB38: 7389423480 | BC38: 1 | BD38: 4817349494 | BE38: 1 | BF38: 194 | BG38: 1
A39: Obra pública | B39: Propósito 4: Hacer de Bogotá Región un modelo de movilidad multimodal, incluyente y sostenible | C39: Movilidad segura, sostenible y accesible | D39: 229058163 | E39: 0.03099811015 | F39: 0 | G39: 0 | H39: 1 | I39: 0.005154639175
A40: Suministro | B40: Propósito 1: Hacer un nuevo contrato social para incrementar la inclusión social, productiva y política | C40: Educación inicial: Bases sólidas para la vida. | D40: 5271000 | E40: 0.0007133168121 | F40: 0 | G40: 0 | H40: 1 | I40: 0.005154639175
B41: Propósito 5: Construir Bogotá - Región con gobierno abierto, transparente y ciudadanía consciente | C41: Gestión pública local | D41: 3502000 | E41: 0.0004739205987 | F41: 3502000 | G41: 0.0007269557678 | H41: 1 | I41: 0.005154639175
C42: Fortalecimiento de cultura ciudadana y su institucionalidad | D42: 13563360 | E42: 0.001835509906 | F42: 1444075 | G42: 0.0002997654627 | H42: 1 | I42: 0.005154639175
B43: Propósito 2 : Cambiar Nuestros Hábitos de Vida para Reverdecer a Bogotá y Adaptarnos y Mitigar la Crisis Climática | C43: Bogotá protectora de los animales | D43: 34422311 | E43: 0.004658321599 | F43: 0 | G43: 0 | H43: 1 | I43: 0.005154639175
B44: Propósito 3: Inspirar confianza y legitimidad para vivir sin miedo y ser epicentro de cultura ciudadana, paz y reconciliación | C44: Espacio público más seguro y construido colectivamente | D44: 25400000 | E44: 0.003437345291 | F44: 0 | G44: 0 | H44: 1 | I44: 0.005154639175
A45: Convenios de cooperacion | B45: Propósito 1: Hacer un nuevo contrato social para incrementar la inclusión social, productiva y política | C45: Sistema Distrital de Cuidado | D45: 807645195 | E45: 0.109297457 | F45: 755000000 | G45: 0.1567251869 | H45: 1 | I45: 0.005154639175
A46: Total general | D46: 7389423480 | E46: 1 | F46: 4817349494 | G46: 1 | H46: 194 | I46: 1
B75: INVERSION TIPO DE CONTRATO AÑO ANTERIORES SE SUMO EL NUMERO DE ADICIONES | AY75: INVERSION POR MODALIDAD DE CONTRATO AÑO ANTERIORES SE SUMO EL NUMERO DE ADICIONES
A77: Año | B77: 2020 | AY77: Año | AZ77: 2020
A78: Afectación | B78: Inversión | AY78: Afectación | AZ78: Inversión
D80: Valores | BB80: Valores
A81: Tipo de contrato | B81: Propósito | C81: Equivalencia número de programa | D81: Suma de Valor Final | E81: Suma de Valor Final 2 | F81: Suma de Giros (Valor en pesos) | G81: Suma de Giros (Valor en pesos)2 | H81: Suma de Número de adiciones | I81: Suma de Número de adiciones2 | AY81: Modalidad de Selección | AZ81: Propósito | BA81: Equivalencia número de programa | BB81: Suma de Valor Final | BC81: Suma de Valor Final 2 | BD81: Suma de Giros (Valor en pesos) | BE81: Suma de Giros (Valor en pesos)2 | BF81: Suma de Número de adiciones | BG81: Suma de Número de adiciones2
A82: Interventoría | B82: Propósito 1: Hacer un nuevo contrato social para incrementar la inclusión social, productiva y política | C82: Creación y vida cotidiana: Apropiación ciudadana del arte, la cultura y el patrimonio, para la democracia cultural | D82: 141092678 | E82: 0.1321806328 | F82: 103458760 | G82: 0.1103970428 | H82: 1 | I82: 0.5 | AY82: Concurso de méritos | AZ82: Propósito 1: Hacer un nuevo contrato social para incrementar la inclusión social, productiva y política | BA82: Creación y vida cotidiana: Apropiación ciudadana del arte, la cultura y el patrimonio, para la democracia cultural | BB82: 141092678 | BC82: 0.1321806328 | BD82: 103458760 | BE82: 0.1103970428 | BF82: 1 | BG82: 0.5
A83: Obra pública | B83: Propósito 1: Hacer un nuevo contrato social para incrementar la inclusión social, productiva y política | C83: Creación y vida cotidiana: Apropiación ciudadana del arte, la cultura y el patrimonio, para la democracia cultural | D83: 926330552 | E83: 0.8678193672 | F83: 833692792 | G83: 0.8896029572 | H83: 1 | I83: 0.5 | AY83: Licitación pública | AZ83: Propósito 1: Hacer un nuevo contrato social para incrementar la inclusión social, productiva y política | BA83: Creación y vida cotidiana: Apropiación ciudadana del arte, la cultura y el patrimonio, para la democracia cultural | BB83: 926330552 | BC83: 0.8678193672 | BD83: 833692792 | BE83: 0.8896029572 | BF83: 1 | BG83: 0.5
A84: Total general | D84: 1067423230 | E84: 1 | F84: 937151552 | G84: 1 | H84: 2 | I84: 1 | AY84: Total general | BB84: 1067423230 | BC84: 1 | BD84: 937151552 | BE84: 1 | BF84: 2 | BG84: 1

Sheet FUNCIONAMIENTO (hidden)
B1: FUNCIONAMIENTO TIPO DE CONTRATO AÑO 2021 SE SUMO EL NUMERO DE CONTRATOS | O1: FUNCIONAMIENTO POR MODALIDAD DE CONTRATO 2021
A3: Año | B3: 2021 | O3: Año | P3: 2021
A4: Afectación | B4: Funcionamiento | O4: Afectación | P4: Funcionamiento
C6: Valores | P6: Valores
A7: Tipo de contrato | B7: Propósito | C7: Suma de Valor Final | D7: Suma de Valor Final 2 | E7: Suma de Giros (Valor en pesos) | F7: Suma de Giros (Valor en pesos)2 | G7: Suma de Cuenta contratos | H7: Suma de Cuenta contratos2 | O7: Modalidad de Selección | P7: Suma de Valor Final | Q7: Suma de Valor Final 2 | R7: Suma de Giros (Valor en pesos) | S7: Suma de Giros (Valor en pesos)2 | T7: Suma de Cuenta contratos | U7: Suma de Cuenta contratos2
A8: Compraventa de bienes muebles | C8: 23099350 | D8: 0.01941497188 | E8: 0 | F8: 0 | G8: 2 | H8: 0.125 | O8: Contratación directa | P8: 0 | Q8: 0 | R8: 0 | S8: 0 | T8: 3 | U8: 0.1875
B9: (en blanco) | C9: 11134656 | D9: 0.009358663041 | E9: 0 | F9: 0 | G9: 1 | H9: 0.0625 | O9: Contratación mínima cuantia | P9: 124874833 | Q9: 0.1049571252 | R9: 92264431 | S9: 0.1013699593 | T9: 7 | U9: 0.4375
A10: Contratos de prestación de servicios | C10: 1046565507 | D10: 0.8796368678 | E10: 816928138 | F10: 0.8975503476 | G10: 6 | H10: 0.375 | O10: Régimen especial | P10: 804459085 | Q10: 0.6761467536 | R10: 652196703 | S10: 0.7165616536 | T10: 1 | U10: 0.0625
A11: Contratos interadministrativos | C11: 0 | D11: 0 | E11: 0 | F11: 0 | G11: 3 | H11: 0.1875 | O11: Selección abreviada | P11: 260436025.8 | Q11: 0.2188961212 | R11: 165714145 | S11: 0.1820683871 | T11: 5 | U11: 0.3125
A12: Seguros | C12: 77514931 | D12: 0.0651511928 | E12: 77514931 | F12: 0.08516483889 | G12: 2 | H12: 0.125 | O12: Total general | P12: 1189769944 | Q12: 1 | R12: 910175279 | S12: 1 | T12: 16 | U12: 1
A13: Suministro | C13: 31455500 | D13: 0.02643830445 | E13: 15732210 | F13: 0.01728481356 | G13: 2 | H13: 0.125
A14: Total general | C14: 1189769944 | D14: 1 | E14: 910175279 | F14: 1 | G14: 16 | H14: 1
B28: FUNCIONAMIENTO TIPO DE CONTRATO AÑO ANTERIORES SE SUMO EL NUMERO DE ADICIONES
O29: FUNCIONAMIENTO POR MODALIDAD DE CONTRATO AÑOS ANTERIORES SE SUMO EL NUMERO DE ADICIONES
A30: Año | B30: 2020
A31: Afectación | B31: Funcionamiento | O31: Año | P31: 2020
O32: Afectación | P32: Funcionamiento
C33: Valores
A34: Tipo de contrato | B34: Propósito | C34: Suma de Valor Final | D34: Suma de Valor Final 2 | E34: Suma de Giros (Valor en pesos) | F34: Suma de Giros (Valor en pesos)2 | G34: Suma de Número de adiciones | H34: Suma de Número de adiciones2 | P34: Valores
A35: Contratos de prestación de servicios | B35: (en blanco) | C35: 99361322 | D35: 1 | E35: 99361322 | F35: 1 | G35: 1 | H35: 1 | O35: Modalidad de Selección | P35: Suma de Valor Final | Q35: Suma de Valor Final 2 | R35: Suma de Giros (Valor en pesos) | S35: Suma de Giros (Valor en pesos)2 | T35: Suma de Número de adiciones | U35: Suma de Número de adiciones2
A36: Total general | C36: 99361322 | D36: 1 | E36: 99361322 | F36: 1 | G36: 1 | H36: 1 | O36: Licitación pública | P36: 99361322 | Q36: 1 | R36: 99361322 | S36: 1 | T36: 1 | U36: 1
O37: Total general | P37: 99361322 | Q37: 1 | R37: 99361322 | S37: 1 | T37: 1 | U37: 1

Sheet 1. INFORMACION ACUMULADA
B2: VEEDURIA DISTRITAL - INFORMACIÓN GESTION CONTRACTUAL
B4: DEL 1 DE ENERO AL 31 DE DICIEMBRE DE 2021
B5: 1. Entidad | F5: Alcaldía Local de La Candelaria | I5: 2. Sector | J5: Gobierno
B6: 3. Presupuesto Disponible Inversión Directa PREDIS (BOGDATA) | F6: 10868205855 | I6: 5. Presupuesto Disponible Funcionamiento PREDIS (BOGDATA) | J6: 2191985852 | AI6: 9. Nombre de quien diligencia el formato | AK6: Lilibeth Astrid Barrios-Paula Villota- Katherin Moreno Castañeda
B7: 4. Presupuesto Comprometido de Inversión Directa según PREDIS (BOGDATA) | F7: 10392042514 | I7: 6. Presupuesto Comprometido Funcionamiento según PREDIS (BOGDATA) | J7: 2115672185 | AI7: Cargo | AK7: Profesional de Presupuesto-Auxiliar Contratación-Contratista Profesional Especializada Planeación
AI8: Dependencia | AK8: Área de Gestión del Desarrollo Local
B9: 7. Presupuesto Disponible Operación (Régimen Privado) | AI9: Teléfono | AK9: 3208951334-3143208836-3043754932
B10: 8. Presupuesto Comprometido Operación mediante contratos | AI10: Correo Electrónico | AK10: lilibeth.barrios@gobiernobogota.gov.co- paula.villota@gobiernobogota.gov.co-katherin.moreno@gobiernobogota.gov.co
B11: 1- INFORMACION GENERAL | W11: 2- INFORMACION FINANCIERA | AC11: 3 - PLAZOS | AI11: 4. CESION | AM11: 5. ESTADO | AQ11: 6. % Avance y/o cumplimiento
C12: 2 | D12: 3 | F12: 4 | G12: 5 | H12: 6 | I12: 7 | J12: 8 | O12: 9 | P12: 10 | Q12: 11 | W12: 12 | X12: 13 | Y12: 14 | Z12: 15 | AA12: 16 | AB12: 17 | AC12: 18 | AD12: 19 | AE12: 20 | AF12: 21 | AG12: 22 | AH12: 23 | AI12: 24 | AJ12: 25 | AK12: 26 | AL12: 27 | AM12: 28 | AQ12: 29
A13: Cuenta contratos | B13: Número Contrato | C13: Año | D13: Número de proceso contractual SECOP | E13: Link proceso SECOP | F13: Tipo de contrato | G13: Modalidad de Selección | H13: Procedimiento o causal | I13: Objeto | J13: Afectación | K13: Plan de Desarrollo Distrital | L13: Número Programa | M13: Equivalencia número de programa | N13: Propósito | O13: Número Proyecto | P13: Número de proponentes | Q13: Número de Identificación del contratista (Cédula o NIT sin puntos, comas ni caracteres especiales y sin digito de verificación) | R13: Nombre del contratista (según el caso: nombres y apellidos o Razón social y Tipo societario) | S13: Naturaleza Jurídica | T13: Número de Identificación del integrante del Consorcio o U.T. (Cédula o NIT sin puntos, comas ni caracteres especiales y sin digito de verificación) | U13: Nombre del Integrante del Consorcio o U.T. y Tipo societario (Según el caso: nombres y apellidos o razón social y tipo societario) | V13: % Participación (indicar solo el numero del porcentaje, sin caracteres especiales) | W13: Valor Inicial del contrato | X13: Valor total reducciones (En valor negativo) | Y13: Número de adiciones | Z13: Valor total de adiciones | AA13: Valor Final | AB13: Giros (Valor en pesos) | AC13: Fecha de suscripción (DD/MM/AAAA) | AD13: Fecha de inicio (DD/MM/AAAA) | AE13: Fecha de terminación (DD/MM/AAAA) | AF13: Plazo en días | AG13: Número de prórrogas | AH13: Prorroga en días | AI13: Número de Identificación del cesionario (NIT sin digito de verificación) | AJ13: Nombre cesionario | AK13: Fecha cesión (DD/MM/AAAA) | AL13: Valor cesión | AM13: Celebrado o por iniciar | AN13: En Ejecución | AO13: Terminado | AP13: Liquidado | AQ13: % Avance y/o Cumplimiento
A14: 1 | B14: 1 | C14: 2021 | D14: FDLC-CPS-001-2021 | E14: https://community.secop.gov.co/Public/Tendering/OpportunityDetail/Index?noticeUID=CO1.NTC.1700943&isFromPublicArea=True&isModal=False | F14: Contratos de prestación de servicios profesionales y de apoyo a la gestión | G14: Contratación directa | H14: Prestación de servicios profesionales y de apoyo a la gestión, o para la ejecución de trabajos artísticos que sólo puedan encomendarse a determinadas personas naturales; | I14: PRESTAR SERVICIOS PROFESIONALES AL FONDO DE DESARROLLO LOCAL DE LA CANDELARIA EN LOS TRÁMITES RELACIONADOS CON LOS PROCESOS PRECONTRACTUALES, CONTRACTUALES Y POS CONTRACTUALES QUE SE ADELANTEN A TRAVÉS DE SECOP I Y II, ASÍ COMO LA ADQUISICIÓN DE BIENES Y SERVICIOS A TRAVÉS DE LA TIENDA VIRTUAL DEL ESTADO COLOMBIANO | J14: Inversión | K14: Un Nuevo Contrato Social y Ambiental para la Bogotá del Siglo XXI | L14: 57 | M14: =IF(ISERROR(VLOOKUP(L14,Proposito_programa!$C$2:$E$59,2,FALSE))," ",VLOOKUP(L14,Proposito_programa!$C$2:$E$59,2,FALSE)) -> Gestión pública local | N14: =IF(ISERROR(VLOOKUP(L14,Proposito_programa!$C$2:$E$59,3,FALSE))," ",VLOOKUP(L14,Proposito_programa!$C$2:$E$59,3,FALSE)) -> Propósito 5: Construir Bogotá - Región con gobierno abierto, transparente y ciudadanía consciente | O14: 2021 | P14: 1 | Q14: 1032363826 | R14: PAOLA ANDREA PADILLA AYARZA | S14: Persona Natural | W14: 44100000 | X14: -34020000 | AA14: =+W14+X14+Z14 -> 10080000 | AB14: 10080000 | AC14: 44223 | AD14: 44223 | AE14: 44542 | AF14: 315 | AO14: X | AQ14: =IF(ISERROR(AB14/AA14),"-",(AB14/AA14)) -> 1
A15: 1 | B15: 2 | C15: 2021 | D15: FDLC-CPS-002-2021 | E15: https://community.secop.gov.co/Public/Tendering/OpportunityDetail/Index?noticeUID=CO1.NTC.1700973&isFromPublicArea=True&isModal=False | F15: Contratos de prestación de servicios profesionales y de apoyo a la gestión | G15: Contratación directa | H15: Prestación de servicios profesionales y de apoyo a la gestión, o para la ejecución de trabajos artísticos que sólo puedan encomendarse a determinadas personas naturales; | I15: PRESTAR SERVICIOS PROFESIONALES AL FONDO DE DESARROLLO LOCAL DE LA CANDELARIA EN LOS TRÁMITES RELACIONADOS CON LOS PROCESOS PRECONTRACTUALES, CONTRACTUALES Y POS CONTRACTUALES QUE SE ADELANTEN A TRAVÉS DE SECOP I Y II, ASÍ COMO LA ADQUISICIÓN DE BIENES Y SERVICIOS A TRAVÉS DE LA TIENDA VIRTUAL DEL ESTADO COLOMBIANO | J15: Inversión | K15: Un Nuevo Contrato Social y Ambiental para la Bogotá del Siglo XXI | L15: 57 | M15: =IF(ISERROR(VLOOKUP(L15,Proposito_programa!$C$2:$E$59,2,FALSE))," ",VLOOKUP(L15,Proposito_programa!$C$2:$E$59,2,FALSE)) -> Gestión pública local | N15: =IF(ISERROR(VLOOKUP(L15,Proposito_programa!$C$2:$E$59,3,FALSE))," ",VLOOKUP(L15,Proposito_programa!$C$2:$E$59,3,FALSE)) -> Propósito 5: Construir Bogotá - Región con gobierno abierto, transparente y ciudadanía consciente | O15: 2021 | P15: 1 | Q15: 1015397944 | R15: LAURA MARIA HERNANDEZ RESTREPO | S15: Persona Natural | W15: 44100000 | X15: -14140000 | AA15: 29960000 | AB15: 29960000 | AC15: 44223 | AD15: 44223 | AE15: 44541 | AF15: 315 | AO15: X | AQ15: 1
A16: 1 | B16: 3 | C16: 2021 | D16: FDLC-CPS-003-2021 | E16: https://community.secop.gov.co/Public/Tendering/OpportunityDetail/Index?noticeUID=CO1.NTC.1712345&isFromPublicArea=True&isModal=False | F16: Contratos de prestación de servicios profesionales y de apoyo a la gestión | G16: Contratación directa | H16: Prestación de servicios profesionales y de apoyo a la gestión, o para la ejecución de trabajos artísticos que sólo puedan encomendarse a determinadas personas naturales; | I16: PRESTAR SERVICIOS PROFESIONALES AL FONDO DE DESARROLLO LOCAL DE LA CANDELARIA COMO ADMINISTRADOR DE RED LOCAL, COMO ENLACE CON LA SECRETARIA DISTRITAL DE GOBIERNO Y BRINDANDO SOPORTE EN MATERIA DE SISTEMAS (SOFTWARE Y HARDWARE) A LOS USUARIOS INTERNOS Y EXTERNOS DE LAS DIFERENTES ÁREAS DE LA ENTIDAD | J16: Inversión | K16: Un Nuevo Contrato Social y Ambiental para la Bogotá del Siglo XXI | L16: 57 | M16: =IF(ISERROR(VLOOKUP(L16,Proposito_programa!$C$2:$E$59,2,FALSE))," ",VLOOKUP(L16,Proposito_programa!$C$2:$E$59,2,FALSE)) -> Gestión pública local | N16: =IF(ISERROR(VLOOKUP(L16,Proposito_programa!$C$2:$E$59,3,FALSE))," ",VLOOKUP(L16,Proposito_programa!$C$2:$E$59,3,FALSE)) -> Propósito 5: Construir Bogotá - Región con gobierno abierto, transparente y ciudadanía consciente | O16: 2021 | P16: 1 | Q16: 79814029 | R16: AGUSTIN LARA BELTRAN | S16: Persona Natural | W16: 41880000 | Y16: 1 | Z16: 4467200 | AA16: =+W16+X16+Z16 -> 46347200 | AB16: 42159200 | AC16: 44225 | AD16: 44225 | AE16: 44560 | AF16: 300 | AG16: 1 | AH16: 32 | AO16: X | AQ16: 0.9096385542
A17: 1 | B17: 4 | C17: 2021 | D17: FDLC-CPS-004-2021 | E17: https://community.secop.gov.co/Public/Tendering/OpportunityDetail/Index?noticeUID=CO1.NTC.1713931&isFromPublicArea=True&isModal=False | F17: Contratos de prestación de servicios profesionales y de apoyo a la gestión | G17: Contratación directa | H17: Prestación de servicios profesionales y de apoyo a la gestión, o para la ejecución de trabajos artísticos que sólo puedan encomendarse a determinadas personas naturales; | I17: PRESTAR SERVICIOS PROFESIONALES PARA EL SEGUIMIENTO JURÍDICO DE LOS PROYECTOS DE INFRAESTRUCTURA, ASÍ COMO LOS DEMÁS ASUNTOS CONTRACTUALES QUE SE REQUIERAN | J17: Inversión | K17: Un Nuevo Contrato Social y Ambiental para la Bogotá del Siglo XXI | L17: 49 | M17: =IF(ISERROR(VLOOKUP(L17,Proposito_programa!$C$2:$E$59,2,FALSE))," ",VLOOKUP(L17,Proposito_programa!$C$2:$E$59,2,FALSE)) -> Movilidad segura, sostenible y accesible | N17: =IF(ISERROR(VLOOKUP(L17,Proposito_programa!$C$2:$E$59,3,FALSE))," ",VLOOKUP(L17,Proposito_programa!$C$2:$E$59,3,FALSE)) -> Propósito 4: Hacer de Bogotá Región un modelo de movilidad multimodal, incluyente y sostenible | O17: 2020 | P17: 1 | Q17: 1016016829 | R17: JUAN DAVID CARDENAS CABEZA | S17: Persona Natural | W17: 68200000 | X17: -42986667 | AA17: =+W17+X17+Z17 -> 25213333 | AB17: 19013333 | AC17: 44225 | AD17: 44225 | AE17: 44558 | AF17: 330 | AO17: X | AQ17: 0.7540983574
A18: 1 | B18: 5 | C18: 2021 | D18: FDLC-CPS-005-2021 | E18: https://community.secop.gov.co/Public/Tendering/OpportunityDetail/Index?noticeUID=CO1.NTC.1714143&isFromPublicArea=True&isModal=False | F18: Contratos de prestación de servicios profesionales y de apoyo a la gestión | G18: Contratación directa | H18: Prestación de servicios profesionales y de apoyo a la gestión, o para la ejecución de trabajos artísticos que sólo puedan encomendarse a determinadas personas naturales; | I18: PRESTAR SERVICIOS PROFESIONALES AL FONDO DE DESARROLLO LOCAL DE LA CANDELARIA PARA APOYAR EN LA IMPLEMENTACIÓN, CARGA, MANEJO, VALIDACIÓN Y ACTUALIZACIÓN DE LA INFORMACIÓN REQUERIDA EN EL APLICATIVO SIPSE LOCAL | J18: Inversión | K18: Un Nuevo Contrato Social y Ambiental para la Bogotá del Siglo XXI | L18: 57 | M18: =IF(ISERROR(VLOOKUP(L18,Proposito_programa!$C$2:$E$59,2,FALSE))," ",VLOOKUP(L18,Proposito_programa!$C$2:$E$59,2,FALSE)) -> Gestión pública local | N18: =IF(ISERROR(VLOOKUP(L18,Proposito_programa!$C$2:$E$59,3,FALSE))," ",VLOOKUP(L18,Proposito_programa!$C$2:$E$59,3,FALSE)) -> Propósito 5: Construir Bogotá - Región con gobierno abierto, transparente y ciudadanía consciente | O18: 2021 | P18: 1 | Q18: 1010198763 | R18: CARLOS MAURICIO PALOMAR COVALEDA | S18: Persona Natural | W18: 40710000 | AA18: 40710000 | AB18: 40710000 | AC18: 44225 | AD18: 44225 | AE18: 44528 | AF18: 300 | AO18: X | AQ18: 1
A19: 1 | B19: 6 | C19: 2021 | D19: FDLC-CPS-006-2021 | E19: https://community.secop.gov.co/Public/Tendering/OpportunityDetail/Index?noticeUID=CO1.NTC.1720756&isFromPublicArea=True&isModal=False | F19: Contratos de prestación de servicios profesionales y de apoyo a la gestión | G19: Contratación directa | H19: Prestación de servicios profesionales y de apoyo a la gestión, o para la ejecución de trabajos artísticos que sólo puedan encomendarse a determinadas personas naturales; | I19: PRESTAR SERVICIOS TÉCNICOS ADMINISTRATIVOS EN LAS DISTINTAS ETAPAS DE LOS PROCESOS CONTRACTUALES DE COMPETENCIA DE LA ALCALDIA LOCAL DE LA CANDELARIA.” | J19: Inversión | K19: Un Nuevo Contrato Social y Ambiental para la Bogotá del Siglo XXI | L19: 57 | M19: =IF(ISERROR(VLOOKUP(L19,Proposito_programa!$C$2:$E$59,2,FALSE))," ",VLOOKUP(L19,Proposito_programa!$C$2:$E$59,2,FALSE)) -> Gestión pública local | N19: =IF(ISERROR(VLOOKUP(L19,Proposito_programa!$C$2:$E$59,3,FALSE))," ",VLOOKUP(L19,Proposito_programa!$C$2:$E$59,3,FALSE)) -> Propósito 5: Construir Bogotá - Región con gobierno abierto, transparente y ciudadanía consciente | O19: 2021 | P19: 1 | Q19: 52305372 | R19: ELCY JEANETH PULIDO AMORTEGUI | S19: Persona Natural | W19: 32067000 | X19: -12521400 | AA19: 19545600 | AB19: 19545600 | AC19: 44228 | AD19: 44228 | AE19: 44545 | AF19: 315 | AO19: X | AQ19: 1
A20: 1 | B20: 7 | C20: 2021 | D20: FDLC-CPS-007-2021 | E20: https://community.secop.gov.co/Public/Tendering/OpportunityDetail/Index?noticeUID=CO1.NTC.1722655&isFromPublicArea=True&isModal=False | F20: Contratos de prestación de servicios profesionales y de apoyo a la gestión | G20: Contratación directa | H20: Prestación de servicios profesionales y de apoyo a la gestión, o para la ejecución de trabajos artísticos que sólo puedan encomendarse a determinadas personas naturales; | I20: PRESTAR SERVICIOS PROFESIONALES PARA REALIZAR LA COORDINACION TÉCNICA DEL SEGUIMIENTO DE PLANES, POLÍTICAS, PROGRAMAS Y PROYECTOS DE INFRAESTRUCTURA Y OBRAS CIVILES QUE DESARROLLE LA ALCALDÍA LOCAL DE LA CANDELARIA | J20: Inversión | K20: Un Nuevo Contrato Social y Ambiental para la Bogotá del Siglo XXI | L20: 49 | M20: =IF(ISERROR(VLOOKUP(L20,Proposito_programa!$C$2:$E$59,2,FALSE))," ",VLOOKUP(L20,Proposito_programa!$C$2:$E$59,2,FALSE)) -> Movilidad segura, sostenible y accesible | N20: =IF(ISERROR(VLOOKUP(L20,Proposito_programa!$C$2:$E$59,3,FALSE))," ",VLOOKUP(L20,Proposito_programa!$C$2:$E$59,3,FALSE)) -> Propósito 4: Hacer de Bogotá Región un modelo de movilidad multimodal, incluyente y sostenible | O20: 2020 | P20: 1 | Q20: 80166444 | R20: YERNEY ROLANDO RODRIGUEZ AVILA | S20: Persona Natural | W20: 65142000 | Y20: 1 | Z20: 3948000 | AA20: 69090000 | AB20: 59220000 | AC20: 44228 | AD20: 44228 | AE20: 44581 | AF20: 330 | AH20: 20 | AO20: X | AQ20: 0.8571428571
A21: 1 | B21: 8 | C21: 2021 | D21: FDLC-CPS-008-2021 | E21: https://community.secop.gov.co/Public/Tendering/OpportunityDetail/Index?noticeUID=CO1.NTC.1722174&isFromPublicArea=True&isModal=False | F21: Contratos de prestación de servicios profesionales y de apoyo a la gestión | G21: Contratación directa | H21: Prestación de servicios profesionales y de apoyo a la gestión, o para la ejecución de trabajos artísticos que sólo puedan encomendarse a determinadas personas naturales; | I21: PRESTAR SERVICIOS PROFESIONALES AL FONDO DE DESARROLLO LOCAL DE LA CANDELARIA COMO ABOGADO DE APOYO AL DESPACHO ALCALDESA LOCAL, EN LAS DIFERENTES ACTIVIDADES Y FUNCIONES QUE LE COMPETEN A ESTA DEPENDENCIA | J21: Inversión | K21: Un Nuevo Contrato Social y Ambiental para la Bogotá del Siglo XXI | L21: 57 | M21: =IF(ISERROR(VLOOKUP(L21,Proposito_programa!$C$2:$E$59,2,FALSE))," ",VLOOKUP(L21,Proposito_programa!$C$2:$E$59,2,FALSE)) -> Gestión pública local | N21: =IF(ISERROR(VLOOKUP(L21,Proposito_programa!$C$2:$E$59,3,FALSE))," ",VLOOKUP(L21,Proposito_programa!$C$2:$E$59,3,FALSE)) -> Propósito 5: Construir Bogotá - Región con gobierno abierto, transparente y ciudadanía consciente | O21: 2021 | P21: 1 | Q21: 52314352 | R21: CONSTANZA DEL PILAR LEYTON RICO | S21: Persona Natural | W21: 43050000 | X21: -15498000 | AA21: =+W21+X21+Z21 -> 27552000 | AB21: 27552000 | AC21: 44228 | AD21: 44228 | AE21: 44530 | AF21: 300 | AO21: X | AQ21: 1
A22: 1 | B22: 9 | C22: 2021 | D22: FDL-009-2021 | E22: https://community.secop.gov.co/Public/Tendering/OpportunityDetail/Index?noticeUID=CO1.NTC.1722408&isFromPublicArea=True&isModal=False | F22: Contratos de prestación de servicios profesionales y de apoyo a la gestión | G22: Contratación directa | H22: Prestación de servicios profesionales y de apoyo a la gestión, o para la ejecución de trabajos artísticos que sólo puedan encomendarse a determinadas personas naturales; | I22: PRESTAR SERVICIOS PROFESIONALES AL FONDO DE DESARROLLO LOCAL DE LA CANDELARIA PARA APOYAR Y FORTALECER LAS GESTIONES RELACIONADAS CON LA OFICINA DE CONTABILIDAD DE LA ENTIDAD. | J22: Inversión | K22: Un Nuevo Contrato Social y Ambiental para la Bogotá del Siglo XXI | L22: 57 | M22: =IF(ISERROR(VLOOKUP(L22,Proposito_programa!$C$2:$E$59,2,FALSE))," ",VLOOKUP(L22,Proposito_programa!$C$2:$E$59,2,FALSE)) -> Gestión pública local | N22: =IF(ISERROR(VLOOKUP(L22,Proposito_programa!$C$2:$E$59,3,FALSE))," ",VLOOKUP(L22,Proposito_programa!$C$2:$E$59,3,FALSE)) -> Propósito 5: Construir Bogotá - Región con gobierno abierto, transparente y ciudadanía consciente | O22: 2021 | P22: 1 | Q22: 52520044 | R22: PAOLA ANDREA OYUELA VARGAS | S22: Persona Natural | W22: 41880000 | Y22: 1 | Z22: 4188000 | AA22: 46068000 | AB22: 41880000 | AC22: 44228 | AD22: 44228 | AE22: 44560 | AF22: 300 | AH22: 30 | AO22: X | AQ22: 0.9090909091
A23: 1 | B23: 10 | C23: 2021 | D23: FDLC-CPS-010-2021 | E23: https://community.secop.gov.co/Public/Tendering/OpportunityDetail/Index?noticeUID=CO1.NTC.1722666&isFromPublicArea=True&isModal=False | F23: Contratos de prestación de servicios profesionales y de apoyo a la gestión | G23: Contratación directa | H23: Prestación de servicios profesionales y de apoyo a la gestión, o para la ejecución de trabajos artísticos que sólo puedan encomendarse a determinadas personas naturales; | I23: PRESTAR SERVICIOS DE APOYO ADMINISTRATIVO Y ASISTENCIAL AL FONDO DE DESARROLLO LOCAL DE LA CANDELARIA, EN EL CENTRO DE INFORMACIÓN Y DOCUMENTACIÓN (CDI), PARA LA NOTIFICACIÓN DE CORRESPONDENCIA DE LA ENTIDAD. | J23: Inversión | K23: Un Nuevo Contrato Social y Ambiental para la Bogotá del Siglo XXI | L23: 57 | M23: =IF(ISERROR(VLOOKUP(L23,Proposito_programa!$C$2:$E$59,2,FALSE))," ",VLOOKUP(L23,Proposito_programa!$C$2:$E$59,2,FALSE)) -> Gestión pública local | N23: =IF(ISERROR(VLOOKUP(L23,Proposito_programa!$C$2:$E$59,3,FALSE))," ",VLOOKUP(L23,Proposito_programa!$C$2:$E$59,3,FALSE)) -> Propósito 5: Construir Bogotá - Región con gobierno abierto, transparente y ciudadanía consciente | O23: 2021 | P23: 1 | Q23: 1121855155 | R23: HERNAN EDUARDO RODRIGUEZ BEDOYA | S23: Persona Natural | W23: 18868500 | AA23: 18868500 | AB23: 18868500 | AC23: 44228 | AD23: 44228 | AE23: 44545 | AF23: 315 | AO23: X | AQ23: 1
A24: 1 | B24: 11 | C24: 2021 | D24: FDLC-CPS-011-2021-SEN | E24: https://community.secop.gov.co/Public/Tendering/OpportunityDetail/Index?noticeUID=CO1.NTC.1726322&isFromPublicArea=True&isModal=False | F24: Contratos de prestación de servicios profesionales y de apoyo a la gestión | G24: Contratación directa | H24: Prestación de servicios profesionales y de apoyo a la gestión, o para la ejecución de trabajos artísticos que sólo puedan encomendarse a determinadas personas naturales; | I24: PRESTAR SERVICIOS PROFESIONALES COMO ABOGADO DE APOYO A LA IDENTIFICACIÓN, ANÁLISIS, REPARTO Y SEGUIMIENTO DE EXPEDIENTES PROCESALES EN EL ÁREA DE GESTIÓN POLICIVA DE LA ALCALDÍA LOCAL DE LA CANDELARIA | J24: Inversión | K24: Un Nuevo Contrato Social y Ambiental para la Bogotá del Siglo XXI | L24: 57 | M24: =IF(ISERROR(VLOOKUP(L24,Proposito_programa!$C$2:$E$59,2,FALSE))," ",VLOOKUP(L24,Proposito_programa!$C$2:$E$59,2,FALSE)) -> Gestión pública local | N24: =IF(ISERROR(VLOOKUP(L24,Proposito_programa!$C$2:$E$59,3,FALSE))," ",VLOOKUP(L24,Proposito_programa!$C$2:$E$59,3,FALSE)) -> Propósito 5: Construir Bogotá - Región con gobierno abierto, transparente y ciudadanía consciente | O24: 2023 | P24: 1 | Q24: 1022973767 | R24: CAROLINA ROJAS CARVAJAL | S24: Persona Natural | W24: 25128000 | AA24: 25128000 | AB24: 25128000 | AC24: 44229 | AD24: 44229 | AE24: 44409 | AF24: 180 | AO24: X | AQ24: 1
A25: 1 | B25: 12 | C25: 2021 | D25: FDLC-CPS-012-2021 | E25: https://community.secop.gov.co/Public/Tendering/OpportunityDetail/Index?noticeUID=CO1.NTC.1723117&isFromPublicArea=True&isModal=False | F25: Contratos de prestación de servicios profesionales y de apoyo a la gestión | G25: Contratación directa | H25: Prestación de servicios profesionales y de apoyo a la gestión, o para la ejecución de trabajos artísticos que sólo puedan encomendarse a determinadas personas naturales; | I25: PRESTAR SERVICIOS DE APOYO AL FONDO DE DESARROLLO LOCAL DE LA CANDELARIA COMO CONDUCTOR(A) DE LOS VEHICULOS A CARGO DE LA ENTIDAD | J25: Inversión | K25: Un Nuevo Contrato Social y Ambiental para la Bogotá del Siglo XXI | L25: 57 | M25: =IF(ISERROR(VLOOKUP(L25,Proposito_programa!$C$2:$E$59,2,FALSE))," ",VLOOKUP(L25,Proposito_programa!$C$2:$E$59,2,FALSE)) -> Gestión pública local | N25: =IF(ISERROR(VLOOKUP(L25,Proposito_programa!$C$2:$E$59,3,FALSE))," ",VLOOKUP(L25,Proposito_programa!$C$2:$E$59,3,FALSE)) -> Propósito 5: Construir Bogotá - Región con gobierno abierto, transparente y ciudadanía consciente | O25: 2021 | P25: 1 | Q25: 93086512 | R25: BLADIMIR OVIEDO RUIZ | S25: Persona Natural | W25: 18868500 | Y25: 1 | Z25: 1557400 | AA25: 20425900 | AB25: 17970000 | AC25: 44228 | AD25: 44228 | AE25: 44571 | AF25: 315 | AG25: 1 | AH25: 26 | AO25: X | AQ25: 0.8797653959
A26: 1 | B26: 13 | C26: 2021 | D26: FDLC-CPS-013-2021 | E26: https://community.secop.gov.co/Public/Tendering/OpportunityDetail/Index?noticeUID=CO1.NTC.1729115&isFromPublicArea=True&isModal=False | F26: Contratos de prestación de servicios profesionales y de apoyo a la gestión | G26: Contratación directa | H26: Prestación de servicios profesionales y de apoyo a la gestión, o para la ejecución de trabajos artísticos que sólo puedan encomendarse a determinadas personas naturales; | I26: PRESTAR SERVICIOS PROFESIONALES AL FONDO DE DESARROLLO LOCAL DE LA CANDELARIA PARA APOYAR LA ARTICULACIÓN ENTRE EL DESPACHO DE LA ALCALDESA LOCAL Y LAS OFICINAS DE CONTRATACIÓN Y PLANEACIÓN EN LOS ASUNTOS PRIORITARIOS Y ESTRATÉGICOS PARA LA GESTIÓN CONTRACTUAL | J26: Inversión | K26: Un Nuevo Contrato Social y Ambiental para la Bogotá del Siglo XXI | L26: 57 | M26: =IF(ISERROR(VLOOKUP(L26,Proposito_programa!$C$2:$E$59,2,FALSE))," ",VLOOKUP(L26,Proposito_programa!$C$2:$E$59,2,FALSE)) -> Gestión pública local | N26: =IF(ISERROR(VLOOKUP(L26,Proposito_programa!$C$2:$E$59,3,FALSE))," ",VLOOKUP(L26,Proposito_programa!$C$2:$E$59,3,FALSE)) -> Propósito 5: Construir Bogotá - Región con gobierno abierto, transparente y ciudadanía consciente | O26: 2021 | P26: 1 | Q26: 1032470720 | R26: YAISIR MARIA VIDAL SANCHEZ | S26: Persona Natural | W26: 62181000 | X26: -53495400 | AA26: =+W26+X26+Z26 -> 8685600 | AB26: 8685600 | AC26: 44230 | AD26: 44230 | AE26: 44547 | AF26: 315 | AO26: X | AQ26: 1
A27: 1 | B27: 14 | C27: 2021 | D27: FDLC-CPS-014-2021 | E27: https://community.secop.gov.co/Public/Tendering/OpportunityDetail/Index?noticeUID=CO1.NTC.1729718&isFromPublicArea=True&isModal=False | F27: Contratos de prestación de servicios profesionales y de apoyo a la gestión | G27: Contratación directa | H27: Prestación de servicios profesionales y de apoyo a la gestión, o para la ejecución de trabajos artísticos que sólo puedan encomendarse a determinadas personas naturales; | I27: PRESTAR SERVICIOS PROFESIONALES PARA APOYAR TÉCNICAMENTE LAS DISTINTAS ETAPAS DE LOS PROCESOS DE COMPETENCIA DE LA ALCALDÍA LOCAL PARA LA DEPURACIÓN DE ACTUACIONES ADMINITRATIVAS | J27: Inversión | K27: Un Nuevo Contrato Social y Ambiental para la Bogotá del Siglo XXI | L27: 57 | M27: =IF(ISERROR(VLOOKUP(L27,Proposito_programa!$C$2:$E$59,2,FALSE))," ",VLOOKUP(L27,Proposito_programa!$C$2:$E$59,2,FALSE)) -> Gestión pública local | N27: =IF(ISERROR(VLOOKUP(L27,Proposito_programa!$C$2:$E$59,3,FALSE))," ",VLOOKUP(L27,Proposito_programa!$C$2:$E$59,3,FALSE)) -> Propósito 5: Construir Bogotá - Región con gobierno abierto, transparente y ciudadanía consciente | O27: 2023 | P27: 1 | Q27: 79507928 | R27: FRANCISCO JAVIER HIGUERA NOVA | S27: Persona Natural | W27: 25128000 | AA27: 25128000 | AB27: 25128000 | AC27: 44230 | AD27: 44230 | AE27: 44410 | AF27: 180 | AO27: X | AQ27: 1
A28: 1 | B28: 15 | C28: 2021 | D28: FDLC-CPS-015-2021 | E28: https://community.secop.gov.co/Public/Tendering/OpportunityDetail/Index?noticeUID=CO1.NTC.1730110&isFromPublicArea=True&isModal=False | F28: Contratos de prestación de servicios profesionales y de apoyo a la gestión | G28: Contratación directa | H28: Prestación de servicios profesionales y de apoyo a la gestión, o para la ejecución de trabajos artísticos que sólo puedan encomendarse a determinadas personas naturales; | I28: “PRESTAR SERVICIOS DE APOYO A LA GESTIÓN DEL FONDO DE DESARROLLO LOCAL DE LA CANDELARIA, EN EL CENTRO DE INFORMACIÓN Y DOCUMENTACIÓN (CDI), PARA EL MANEJO Y PROCESO DE DISTRIBUCIÓN DE CORRESPONDENCIA EN GENERAL | J28: Inversión | K28: Un Nuevo Contrato Social y Ambiental para la Bogotá del Siglo XXI | L28: 57 | M28: =IF(ISERROR(VLOOKUP(L28,Proposito_programa!$C$2:$E$59,2,FALSE))," ",VLOOKUP(L28,Proposito_programa!$C$2:$E$59,2,FALSE)) -> Gestión pública local | N28: =IF(ISERROR(VLOOKUP(L28,Proposito_programa!$C$2:$E$59,3,FALSE))," ",VLOOKUP(L28,Proposito_programa!$C$2:$E$59,3,FALSE)) -> Propósito 5: Construir Bogotá - Región con gobierno abierto, transparente y ciudadanía consciente | O28: 2021 | P28: 1 | Q28: 1010227910 | R28: CARLOS ARMANDO GONZÁLEZ RASGO | S28: Persona Natural | W28: 18868500 | AA28: 18868500 | AB28: 16053200 | AC28: 44230 | AD28: 44230 | AE28: 44547 | AF28: 315 | AO28: X | AQ28: 0.8507936508
A29: 1 | B29: 16 | C29: 2021 | D29: FDLC-CPS-016-2021 | E29: https://community.secop.gov.co/Public/Tendering/OpportunityDetail/Index?noticeUID=CO1.NTC.1737436&isFromPublicArea=True&isModal=False | F29: Contratos de prestación de servicios profesionales y de apoyo a la gestión | G29: Contratación directa | H29: Prestación de servicios profesionales y de apoyo a la gestión, o para la ejecución de trabajos artísticos que sólo puedan encomendarse a determinadas personas naturales; | I29: PRESTAR SERVICIOS DE APOYO AL FONDO DE DESARROLLO LOCAL DE LA CANDELARIA COMO CONDUCTOR(A) DE LOS VEHICULOS A CARGO DE LA ENTIDAD | J29: Inversión | K29: Un Nuevo Contrato Social y Ambiental para la Bogotá del Siglo XXI | L29: 57 | M29: =IF(ISERROR(VLOOKUP(L29,Proposito_programa!$C$2:$E$59,2,FALSE))," ",VLOOKUP(L29,Proposito_programa!$C$2:$E$59,2,FALSE)) -> Gestión pública local | N29: =IF(ISERROR(VLOOKUP(L29,Proposito_programa!$C$2:$E$59,3,FALSE))," ",VLOOKUP(L29,Proposito_programa!$C$2:$E$59,3,FALSE)) -> Propósito 5: Construir Bogotá - Región con gobierno abierto, transparente y ciudadanía consciente | O29: 2021 | P29: 1 | Q29: 79594412 | R29: FABIO ALBERTO MOLINA GUTIERREZ | S29: Persona Natural | W29: 18868500 | Y29: 1 | Z29: 1317800 | AA29: 20186300 | AB29: 17730400 | AC29: 44232 | AD29: 44232 | AE29: 44571 | AF29: 315 | AH29: 22 | AO29: X | AQ29: 0.8783382789
A30: 1 | B30: 17 | C30: 2021 | D30: FDLC-CPS-017-2021 | E30: https://community.secop.gov.co/Public/Tendering/OpportunityDetail/Index?noticeUID=CO1.NTC.1738039&isFromPublicArea=True&isModal=False | F30: Contratos de prestación de servicios profesionales y de apoyo a la gestión | G30: Contratación directa | H30: Prestación de servicios profesionales y de apoyo a la gestión, o para la ejecución de trabajos artísticos que sólo puedan encomendarse a determinadas personas naturales; | I30: PRESTAR SERVICIOS DE APOYO ASISTENCIAL Y ADMINIISTRATIVO AL DESPACHO DE LA ALCALDESA LOCAL DE LA CANDELARIA | J30: Inversión | K30: Un Nuevo Contrato Social y Ambiental para la Bogotá del Siglo XXI | L30: 57 | M30: =IF(ISERROR(VLOOKUP(L30,Proposito_programa!$C$2:$E$59,2,FALSE))," ",VLOOKUP(L30,Proposito_programa!$C$2:$E$59,2,FALSE)) -> Gestión pública local | N30: =IF(ISERROR(VLOOKUP(L30,Proposito_programa!$C$2:$E$59,3,FALSE))," ",VLOOKUP(L30,Proposito_programa!$C$2:$E$59,3,FALSE)) -> Propósito 5: Construir Bogotá - Región con gobierno abierto, transparente y ciudadanía consciente | O30: 2021 | P30: 1 | Q30: 51838961 | R30: MARIA ADELAIDA LUNA BUENAVENTURA | S30: Persona Natural | W30: 8985000 | AA30: 8985000 | AB30: 8985000 | AC30: 44232 | AD30: 44232 | AE30: 44381 | AF30: 150 | AO30: X | AQ30: 1
A31: 1 | B31: 18 | C31: 2021 | D31: FDLC-CPS-018-2021 | E31: https://community.secop.gov.co/Public/Tendering/OpportunityDetail/Index?noticeUID=CO1.NTC.1739111&isFromPublicArea=True&isModal=False | F31: Contratos de prestación de servicios profesionales y de apoyo a la gestión | G31: Contratación directa | H31: Prestación de servicios profesionales y de apoyo a la gestión, o para la ejecución de trabajos artísticos que sólo puedan encomendarse a determinadas personas naturales; | I31: PRESTAR SERVICIOS TÉCNICOS PARA APOYAR AL FONDO DE DESARROLLO LOCAL DE LA CANDELARIA EN LAS TAREAS OPERATIVAS DE CARÁCTER ARCHIVÍSTICO DESARROLLADAS, PARA GARANTIZAR LA APLICACIÓN CORRECTA DE LOS PROCEDIMIENTOS TÉCNICOS. | J31: Inversión | K31: Un Nuevo Contrato Social y Ambiental para la Bogotá del Siglo XXI | L31: 57 | M31: =IF(ISERROR(VLOOKUP(L31,Proposito_programa!$C$2:$E$59,2,FALSE))," ",VLOOKUP(L31,Proposito_programa!$C$2:$E$59,2,FALSE)) -> Gestión pública local | N31: =IF(ISERROR(VLOOKUP(L31,Proposito_programa!$C$2:$E$59,3,FALSE))," ",VLOOKUP(L31,Proposito_programa!$C$2:$E$59,3,FALSE)) -> Propósito 5: Construir Bogotá - Región con gobierno abierto, transparente y ciudadanía consciente | O31: 2021 | P31: 1 | Q31: 1010175770 | R31: TEOFILO LEONARDO RAMIREZ HERNANDEZ | S31: Persona Natural | W31: 15270000 | AA31: 15270000 | AB31: 15270000 | AC31: 44232 | AD31: 44232 | AE31: 44381 | AF31: 150 | AO31: X | AQ31: 1
A32: 1 | B32: 19 | C32: 2021 | D32: FDLC-CPS-019-2021 | E32: https://community.secop.gov.co/Public/Tendering/OpportunityDetail/Index?noticeUID=CO1.NTC.1744580&isFromPublicArea=True&isModal=False | F32: Contratos de prestación de servicios profesionales y de apoyo a la gestión | G32: Contratación directa | H32: Prestación de servicios profesionales y de apoyo a la gestión, o para la ejecución de trabajos artísticos que sólo puedan encomendarse a determinadas personas naturales; | I32: PRESTAR SERVICIOS DE APOYO ADMINISTRATIVO Y ASISTENCIAL EN LA GESTIÓN DOCUMENTAL DE LA ALCALDÍA LOCAL DE LA CANDELARIA, ACOMPAÑANDO AL EQUIPO JURÍDICO DE DEPURACIÓN EN LAS LABORES OPERATIVAS QUE GENERA EL PROCESO DE IMPULSO DE LAS ACTUACIONES ADMINISTRATIVAS | J32: Inversión | K32: Un Nuevo Contrato Social y Ambiental para la Bogotá del Siglo XXI | L32: 57 | M32: =IF(ISERROR(VLOOKUP(L32,Proposito_programa!$C$2:$E$59,2,FALSE))," ",VLOOKUP(L32,Proposito_programa!$C$2:$E$59,2,FALSE)) -> Gestión pública local | N32: =IF(ISERROR(VLOOKUP(L32,Proposito_programa!$C$2:$E$59,3,FALSE))," ",VLOOKUP(L32,Proposito_programa!$C$2:$E$59,3,FALSE)) -> Propósito 5: Construir Bogotá - Región con gobierno abierto, transparente y ciudadanía consciente | O32: 2023 | P32: 1 | Q32: 49729700 | R32: NEREIDA HERNANDEZ FLOREZ | S32: Persona Natural | W32: 14166000 | AA32: 14166000 | AB32: 14166000 | AC32: 44235 | AD32: 44235 | AE32: 44415 | AF32: 180 | AO32: X | AQ32: 1
A33: 1 | B33: 20 | C33: 2021 | D33: FDLC-CPS-020-2021 | E33: https://community.secop.gov.co/Public/Tendering/OpportunityDetail/Index?noticeUID=CO1.NTC.1744391&isFromPublicArea=True&isModal=False | F33: Contratos de prestación de servicios profesionales y de apoyo a la gestión | G33: Contratación directa | H33: Prestación de servicios profesionales y de apoyo a la gestión, o para la ejecución de trabajos artísticos que sólo puedan encomendarse a determinadas personas naturales; | I33: PRESTACIÓN DE SERVICIOS DE APOYO TÉCNICO AL FONDO DE DESARROLLO LOCAL DE LA CANDELARIA EN LOS ASUNTOS RELACIONADOS CON LA OFICINA DEL ALMACEN DE LA ENTIDAD | J33: Inversión | K33: Un Nuevo Contrato Social y Ambiental para la Bogotá del Siglo XXI | L33: 57 | M33: =IF(ISERROR(VLOOKUP(L33,Proposito_programa!$C$2:$E$59,2,FALSE))," ",VLOOKUP(L33,Proposito_programa!$C$2:$E$59,2,FALSE)) -> Gestión pública local | N33: =IF(ISERROR(VLOOKUP(L33,Proposito_programa!$C$2:$E$59,3,FALSE))," ",VLOOKUP(L33,Proposito_programa!$C$2:$E$59,3,FALSE)) -> Propósito 5: Construir Bogotá - Región con gobierno abierto, transparente y ciudadanía consciente | O33: 2021 | P33: 1 | Q33: 12139994 | R33: JUAN CARLOS PUENTES NARVAEZ | S33: Persona Natural | W33: 29070000 | Y33: 1 | Z33: 3197700 | AA33: 32267700 | AB33: 31298700 | AC33: 44235 | AD33: 44235 | AE33: 44571 | AF33: 300 | AG33: 1 | AH33: 33 | AO33: X | AQ33: 0.96996997
A34: 1 | B34: 21 | C34: 2021 | D34: FDLC-CPS-021-2021 | E34: https://community.secop.gov.co/Public/Tendering/OpportunityDetail/Index?noticeUID=CO1.NTC.1745290&isFromPublicArea=True&isModal=False | F34: Contratos de prestación de servicios profesionales y de apoyo a la gestión | G34: Contratación directa | H34: Prestación de servicios profesionales y de apoyo a la gestión, o para la ejecución de trabajos artísticos que sólo puedan encomendarse a determinadas personas naturales; | I34: PRESTACIÓN DE SERVICIOS DE APOYO ADMINISTRATIVO Y ASISTENCIAL A LA GESTION DE LA JUNTA ADMINISTRADORA LOCAL DE LA CANDELARIA | J34: Inversión | K34: Un Nuevo Contrato Social y Ambiental para la Bogotá del Siglo XXI | L34: 57 | M34: =IF(ISERROR(VLOOKUP(L34,Proposito_programa!$C$2:$E$59,2,FALSE))," ",VLOOKUP(L34,Proposito_programa!$C$2:$E$59,2,FALSE)) -> Gestión pública local | N34: =IF(ISERROR(VLOOKUP(L34,Proposito_programa!$C$2:$E$59,3,FALSE))," ",VLOOKUP(L34,Proposito_programa!$C$2:$E$59,3,FALSE)) -> Propósito 5: Construir Bogotá - Región con gobierno abierto, transparente y ciudadanía consciente | O34: 2021 | P34: 1 | Q34: 51879946 | R34: ISABEL CRISTINA BULLA RODRIGUEZ | S34: Persona Natural | W34: 20880000 | Y34: 1 | Z34: 2088000 | AA34: 22968000 | AB34: 22480800 | AC34: 44235 | AD34: 44235 | AE34: 44568 | AF34: 300 | AG34: 1 | AH34: 30 | AO34: X | AQ34: 0.9787878788
A35: 1 | B35: 22 | C35: 2021 | D35: FDL-CPS-022-2021 | E35: https://community.secop.gov.co/Public/Tendering/OpportunityDetail/Index?noticeUID=CO1.NTC.1747862&isFromPublicArea=True&isModal=False | F35: Contratos de prestación de servicios profesionales y de apoyo a la gestión | G35: Contratación directa | H35: Prestación de servicios profesionales y de apoyo a la gestión, o para la ejecución de trabajos artísticos que sólo puedan encomendarse a determinadas personas naturales; | I35: PRESTAR SERVICIOS PROFESIONALES AL FONDO DE DESARROLLO LOCAL DE LA CANDELARIA PARA APOYAR EN LA FORMULACION, PRESENTACIÓN, EVALUACION Y SEGUIMIENTO DE LOS PROYECTOS SOCIALES Y DE SALUD EN LA LOCALIDAD | J35: Inversión | K35: Un Nuevo Contrato Social y Ambiental para la Bogotá del Siglo XXI | L35: 1 | M35: =IF(ISERROR(VLOOKUP(L35,Proposito_programa!$C$2:$E$59,2,FALSE))," ",VLOOKUP(L35,Proposito_programa!$C$2:$E$59,2,FALSE)) -> Subsidios y transferencias para la equidad | N35: =IF(ISERROR(VLOOKUP(L35,Proposito_programa!$C$2:$E$59,3,FALSE))," ",VLOOKUP(L35,Proposito_programa!$C$2:$E$59,3,FALSE)) -> Propósito 1: Hacer un nuevo contrato social para incrementar la inclusión social, productiva y política | O35: 1605 | P35: 1 | Q35: 1033749239 | R35: AZUCENA SALAZAR GIRALDO | S35: Persona Natural | W35: 40896000 | Y35: 1 | Z35: 17380800 | AA35: 58276800 | AB35: 54868800 | AC35: 44236 | AD35: 44236 | AE35: 44581 | AF35: 240 | AG35: 1 | AH35: 102 | AO35: X | AQ35: 0.9415204678
A36: 1 | B36: 23 | C36: 2021 | D36: FDL-CPS-023-2021 | E36: https://community.secop.gov.co/Public/Tendering/OpportunityDetail/Index?noticeUID=CO1.NTC.1747848&isFromPublicArea=True&isModal=False | F36: Contratos de prestación de servicios profesionales y de apoyo a la gestión | G36: Contratación directa | H36: Prestación de servicios profesionales y de apoyo a la gestión, o para la ejecución de trabajos artísticos que sólo puedan encomendarse a determinadas personas naturales; | I36: PRESTAR SERVICIOS PROFESIONALES PARA APOYAR JURÍDICAMENTE LA EJECUCIÓN DE LAS ACCIONES REQUERIDAS PARA LA DEPURACIÓN DE LAS ACTUACIONES ADMINISTRATIVAS QUE CURSAN EN LA ALCALDÍA LOCAL DE LA CANDELARIA ASÍ COMO EL SEGUIMIENTO AL CIERRE DE LOS RESPECTIVOS EXPEDIENTE | J36: Inversión | K36: Un Nuevo Contrato Social y Ambiental para la Bogotá del Siglo XXI | L36: 57 | M36: =IF(ISERROR(VLOOKUP(L36,Proposito_programa!$C$2:$E$59,2,FALSE))," ",VLOOKUP(L36,Proposito_programa!$C$2:$E$59,2,FALSE)) -> Gestión pública local | N36: =IF(ISERROR(VLOOKUP(L36,Proposito_programa!$C$2:$E$59,3,FALSE))," ",VLOOKUP(L36,Proposito_programa!$C$2:$E$59,3,FALSE)) -> Propósito 5: Construir Bogotá - Región con gobierno abierto, transparente y ciudadanía consciente | O36: 2023 | P36: 1 | Q36: 1032356337 | R36: ANDRES FERNANDO RIVERA SOLINA | S36: Persona Natural | W36: 35532000 | AA36: 35532000 | AB36: 35532000 | AC36: 44236 | AD36: 44236 | AE36: 44416 | AF36: 180 | AO36: X | AQ36: 1
A37: 1 | B37: 24 | C37: 2021 | D37: FDLC-CPS-024-2021 | E37: https://community.secop.gov.co/Public/Tendering/OpportunityDetail/Index?noticeUID=CO1.NTC.1756774&isFromPublicArea=True&isModal=False | F37: Contratos de prestación de servicios profesionales y de apoyo a la gestión | G37: Contratación directa | H37: Prestación de servicios profesionales y de apoyo a la gestión, o para la ejecución de trabajos artísticos que sólo puedan encomendarse a determinadas personas naturales; | I37: RESTAR SERVICIOS PROFESIONALES AL FONDO DE DESARROLLO LOCAL DE LA CANDELARIA PARA APOYAR TÉCNICAMENTE A LOS RESPONSABLES E INTEGRANTES DE LOS PROCESOS EN LA IMPLEMENTACIÓN DE HERRAMIENTAS DE GESTIÓN, SIGUIENDO LOS LINEAMIENTOS METODOLÓGICOS ESTABLECIDOS POR LA OFICINA ASESORA DE PLANEACIÓN DE LA SECRETARÍA DISTRITAL DE GOBIERNO | J37: Inversión | K37: Un Nuevo Contrato Social y Ambiental para la Bogotá del Siglo XXI | L37: 57 | M37: =IF(ISERROR(VLOOKUP(L37,Proposito_programa!$C$2:$E$59,2,FALSE))," ",VLOOKUP(L37,Proposito_programa!$C$2:$E$59,2,FALSE)) -> Gestión pública local | N37: =IF(ISERROR(VLOOKUP(L37,Proposito_programa!$C$2:$E$59,3,FALSE))," ",VLOOKUP(L37,Proposito_programa!$C$2:$E$59,3,FALSE)) -> Propósito 5: Construir Bogotá - Región con gobierno abierto, transparente y ciudadanía consciente | O37: 2021 | P37: 1 | Q37: 1026266066 | R37: KATHERIN JOHANA MORENO CASTAÑEDA | S37: Persona Natural | W37: 51120000 | Y37: 1 | Z37: 5120000 | AA37: 56240000 | AB37: 54528000 | AC37: 44238 | AD37: 44238 | AE37: 44571 | AF37: 300 | AG37: 1 | AH37: 30 | AO37: X | AQ37: 0.9695590327
A38: 1 | B38: 25 | C38: 2021 | D38: FDLC-CPS-025-2021 | E38: https://community.secop.gov.co/Public/Tendering/OpportunityDetail/Index?noticeUID=CO1.NTC.1757061&isFromPublicArea=True&isModal=False | F38: Contratos de prestación de servicios profesionales y de apoyo a la gestión | G38: Contratación directa | H38: Prestación de servicios profesionales y de apoyo a la gestión, o para la ejecución de trabajos artísticos que sólo puedan encomendarse a determinadas personas naturales; | I38: COORDINA, LIDERA Y ASESORA LOS PLANES Y ESTRATEGIAS DE COMUNICACIÓN INTERNA Y EXTERNA PARA LA DIVULGACIÓN DE LOS PROGRAMAS, PROYECTOS Y ACTIVIDADES DE LA ALCALDÍA LOCAL | J38: Inversión | K38: Un Nuevo Contrato Social y Ambiental para la Bogotá del Siglo XXI | L38: 57 | M38: =IF(ISERROR(VLOOKUP(L38,Proposito_programa!$C$2:$E$59,2,FALSE))," ",VLOOKUP(L38,Proposito_programa!$C$2:$E$59,2,FALSE)) -> Gestión pública local | N38: =IF(ISERROR(VLOOKUP(L38,Proposito_programa!$C$2:$E$59,3,FALSE))," ",VLOOKUP(L38,Proposito_programa!$C$2:$E$59,3,FALSE)) -> Propósito 5: Construir Bogotá - Región con gobierno abierto, transparente y ciudadanía consciente | O38: 2021 | P38: 1 | Q38: 1020729068 | R38: VALENTINA OCHOA MAYORGA | S38: Persona Natural | W38: 62181000 | AA38: 62181000 | AB38: 57246000 | AC38: 44238 | AD38: 44238 | AE38: 44555 | AF38: 315 | AO38: X | AQ38: 0.9206349206
A39: 1 | B39: 26 | C39: 2021 | D39: FDLC-CPS-026-2021 | E39: https://community.secop.gov.co/Public/Tendering/OpportunityDetail/Index?noticeUID=CO1.NTC.1757354&isFromPublicArea=True&isModal=False | F39: Contratos de prestación de servicios profesionales y de apoyo a la gestión | G39: Contratación directa | H39: Prestación de servicios profesionales y de apoyo a la gestión, o para la ejecución de trabajos artísticos que sólo puedan encomendarse a determinadas personas naturales; | I39: PRESTAR SERVICIOS PROFESIONALES PARA APOYAR JURÍDICAMENTE LA EJECUCIÓN DE LAS ACCIONES REQUERIDAS PARA LA DEPURACIÓN DE LAS ACTUACIONES ADMINISTRATIVAS QUE CURSAN EN LA ALCALDÍA LOCAL DE LA CANDELARIA | J39: Inversión | K39: Un Nuevo Contrato Social y Ambiental para la Bogotá del Siglo XXI | L39: 57 | M39: =IF(ISERROR(VLOOKUP(L39,Proposito_programa!$C$2:$E$59,2,FALSE))," ",VLOOKUP(L39,Proposito_programa!$C$2:$E$59,2,FALSE)) -> Gestión pública local | N39: =IF(ISERROR(VLOOKUP(L39,Proposito_programa!$C$2:$E$59,3,FALSE))," ",VLOOKUP(L39,Proposito_programa!$C$2:$E$59,3,FALSE)) -> Propósito 5: Construir Bogotá - Región con gobierno abierto, transparente y ciudadanía consciente | O39: 2023 | P39: 1 | Q39: 51875915 | R39: LUZ SOFIA AMAYA CASTAÑEDA | S39: Persona Natural | W39: 25128000 | AA39: 25128000 | AB39: 25128000 | AC39: 44238 | AD39: 44238 | AE39: 44418 | AF39: 180 | AO39: X | AQ39: 1
A40: 1 | B40: 27 | C40: 2021 | D40: FDLC-CPS-027-2021 | E40: https://community.secop.gov.co/Public/Tendering/OpportunityDetail/Index?noticeUID=CO1.NTC.1757240&isFromPublicArea=True&isModal=False | F40: Contratos de prestación de servicios profesionales y de apoyo a la gestión | G40: Contratación directa | H40: Prestación de servicios profesionales y de apoyo a la gestión, o para la ejecución de trabajos artísticos que sólo puedan encomendarse a determinadas personas naturales; | I40: PRESTAR SERVICIOS DE APOYO ADMINISTRATIVO Y ASISTENCIAL EN LA GESTIÓN DE LA ALCALDÍA LOCAL DE LA CANDELARIA EN EL TRÁMITE DE LOS COMPARENDOS Y QUERELLAS, DE CONFORMIDAD CON EL CODIGO NACIONAL DE POLICIA-LEY 1801 DE 2016 | J40: Inversión | K40: Un Nuevo Contrato Social y Ambiental para la Bogotá del Siglo XXI | L40: 57 | M40: =IF(ISERROR(VLOOKUP(L40,Proposito_programa!$C$2:$E$59,2,FALSE))," ",VLOOKUP(L40,Proposito_programa!$C$2:$E$59,2,FALSE)) -> Gestión pública local | N40: =IF(ISERROR(VLOOKUP(L40,Proposito_programa!$C$2:$E$59,3,FALSE))," ",VLOOKUP(L40,Proposito_programa!$C$2:$E$59,3,FALSE)) -> Propósito 5: Construir Bogotá - Región con gobierno abierto, transparente y ciudadanía consciente | O40: 2023 | P40: 1 | Q40: 1022956077 | R40: JARRY EMERSON RIAÑO DELGADO | S40: Persona Natural | W40: 10782000 | AA40: 10782000 | AB40: 10782000 | AC40: 44238 | AD40: 44238 | AE40: 44418 | AF40: 180 | AO40: X | AQ40: 1
A41: 1 | B41: 28 | C41: 2021 | D41: FDLC-CPS-028-2021 | E41: https://community.secop.gov.co/Public/Tendering/OpportunityDetail/Index?noticeUID=CO1.NTC.1756768&isFromPublicArea=True&isModal=true&asPopupView=true | F41: Contratos de prestación de servicios profesionales y de apoyo a la gestión | G41: Contratación directa | H41: Prestación de servicios profesionales y de apoyo a la gestión, o para la ejecución de trabajos artísticos que sólo puedan encomendarse a determinadas personas naturales; | I41: PRESTAR SERVICIOS PROFESIONALES PARA APOYAR AL FONDO DE DESARROLLO LOCAL DE LA CANDELARIA EN LA PROMOCIÓN, ACOMPAÑAMIENTO, COORDINACIÓN Y ATENCIÓN DE LAS INSTANCIAS DE COORDINACIÓN INTERINSTITUCIONALES Y LAS INSTANCIAS DE PARTICIPACIÓN LOCALES, ASÍ COMO LOS PROCESOS COMUNITARIOS EN LA LOCALIDAD | J41: Inversión | K41: Un Nuevo Contrato Social y Ambiental para la Bogotá del Siglo XXI | L41: 55 | M41: =IF(ISERROR(VLOOKUP(L41,Proposito_programa!$C$2:$E$59,2,FALSE))," ",VLOOKUP(L41,Proposito_programa!$C$2:$E$59,2,FALSE)) -> Fortalecimiento de cultura ciudadana y su institucionalidad | N41: =IF(ISERROR(VLOOKUP(L41,Proposito_programa!$C$2:$E$59,3,FALSE))," ",VLOOKUP(L41,Proposito_programa!$C$2:$E$59,3,FALSE)) -> Propósito 5: Construir Bogotá - Región con gobierno abierto, transparente y ciudadanía consciente | O41: 2019 | P41: 1 | Q41: 1106786140 | R41: MONICA ANDREA LEAL DIAZ | S41: Persona Natural | W41: 43050000 | Y41: 1 | Z41: 4305000 | AA41: 47355000 | AB41: 37310000 | AC41: 44238 | AD41: 44238 | AE41: 44571 | AF41: 300 | AH41: 30 | AO41: X | AQ41: 0.7878787879
A42: 1 | B42: 29 | C42: 2021 | D42: FDLC-CPS-029-2021 | E42: https://community.secop.gov.co/Public/Tendering/OpportunityDetail/Index?noticeUID=CO1.NTC.1757627&isFromPublicArea=True&isModal=true&asPopupView=true | F42: Contratos de prestación de servicios profesionales y de apoyo a la gestión | G42: Contratación directa | H42: Prestación de servicios profesionales y de apoyo a la gestión, o para la ejecución de trabajos artísticos que sólo puedan encomendarse a determinadas personas naturales; | I42: PRESTAR SERVICIOS PROFESIONALES AL FONDO DE DESARROLLO LOCAL DE LA CANDELARIA PARA LA OPERACIÓN, PRESTACIÓN, SEGUIMIENTO Y CUMPLIMIENTO DE LOS PROCEDIMIENTOS ADMINISTRATIVOS, OPERATIVOS Y PROGRAMÁTICOS DEL SERVICIO APOYO ECONÓMICO TIPO C, QUE CONTRIBUYAN A LA GARANTÍA DE LOS DERECHOS DE LA POBLACIÓN MAYOR EN EL MARCO DE LA POLÍTICA PÚBLICA SOCIAL PARA EL ENVEJECIMIENTO Y LA VEJEZ EN EL DISTRITO CAPITAL A CARGO DE LA ALCALDIA LOCAL | J42: Inversión | K42: Un Nuevo Contrato Social y Ambiental para la Bogotá del Siglo XXI | L42: 1 | M42: =IF(ISERROR(VLOOKUP(L42,Proposito_programa!$C$2:$E$59,2,FALSE))," ",VLOOKUP(L42,Proposito_programa!$C$2:$E$59,2,FALSE)) -> Subsidios y transferencias para la equidad | N42: =IF(ISERROR(VLOOKUP(L42,Proposito_programa!$C$2:$E$59,3,FALSE))," ",VLOOKUP(L42,Proposito_programa!$C$2:$E$59,3,FALSE)) -> Propósito 1: Hacer un nuevo contrato social para incrementar la inclusión social, productiva y política | O42: 1605 | P42: 1 | Q42: 1010190450 | R42: VIVIANA LIZETH MONROY RAMIREZ | S42: Persona Natural | W42: 25128000 | AA42: 25128000 | AB42: 25128000 | AC42: 44238 | AD42: 44238 | AE42: 44418 | AF42: 180 | AO42: X | AQ42: 1
A43: 1 | B43: 30 | C43: 2021 | D43: FDLC-CPS-030-2021 | E43: https://community.secop.gov.co/Public/Tendering/OpportunityDetail/Index?noticeUID=CO1.NTC.1762749&isFromPublicArea=True&isModal=true&asPopupView=true | F43: Contratos de prestación de servicios profesionales y de apoyo a la gestión | G43: Contratación directa | H43: Prestación de servicios profesionales y de apoyo a la gestión, o para la ejecución de trabajos artísticos que sólo puedan encomendarse a determinadas personas naturales; | I43: PRESTAR SERVICIOS PROFESIONALES PARA APOYAR AL ALCALDE LOCAL DE LA CANDELARIA, EN LA GESTIÓN DE LOS ASUNTOS RELACIONADOS CON SEGURIDAD CIUDADANA, CONVIVENCIA Y PREVENCIÓN DE CONFLICTIVIDADES, VIOLENCIAS Y DELITOS EN LA LOCALIDAD, DE CONFORMIDAD CON EL MARCO NORMATIVO APLICABLE EN LA MATERIA. | J43: Inversión | K43: Un Nuevo Contrato Social y Ambiental para la Bogotá del Siglo XXI | L43: 43 | M43: =IF(ISERROR(VLOOKUP(L43,Proposito_programa!$C$2:$E$59,2,FALSE))," ",VLOOKUP(L43,Proposito_programa!$C$2:$E$59,2,FALSE)) -> Cultura ciudadana para la confianza, la convivencia y la participación desde la vida cotidiana | N43: =IF(ISERROR(VLOOKUP(L43,Proposito_programa!$C$2:$E$59,3,FALSE))," ",VLOOKUP(L43,Proposito_programa!$C$2:$E$59,3,FALSE)) -> Propósito 3: Inspirar confianza y legitimidad para vivir sin miedo y ser epicentro de cultura ciudadana, paz y reconciliación | O43: 1785 | P43: 1 | Q43: 80239278 | R43: JOHN FREDY PULIDO RINCON | S43: Persona Natural | W43: 59220000 | Y43: 1 | Z43: 5922000 | AA43: 65142000 | AB43: 63168000 | AC43: 44239 | AD43: 44239 | AE43: 44571 | AF43: 300 | AH43: 30 | AI43: 1102807537 | AJ43: JOSE MARIA CONDE AREVALO | AK43: 44418 | AL43: 24082800 | AO43: X | AQ43: =IF(ISERROR(AB43/AA43),"-",(AB43/AA43)) -> 0.9696969697
A44: 1 | B44: 31 | C44: 2021 | D44: FDLC-CPS-031-2021 | E44: https://community.secop.gov.co/Public/Tendering/OpportunityDetail/Index?noticeUID=CO1.NTC.1762293&isFromPublicArea=True&isModal=true&asPopupView=true | F44: Contratos de prestación de servicios profesionales y de apoyo a la gestión | G44: Contratación directa | H44: Prestación de servicios profesionales y de apoyo a la gestión, o para la ejecución de trabajos artísticos que sólo puedan encomendarse a determinadas personas naturales; | I44: PRESTAR SERVICIOS PROFESIONALES PARA APOYAR JURÍDICAMENTE LA EJECUCIÓN DE LAS ACCIONES REQUERIDAS PARA EL TRÁMITE E IMPULSO PROCESAL DE LAS ACTUACIONES CONTRAVENCIONALES Y/O QUERELLAS QUE CURSEN EN LAS INSPECCIONES DE POLICÍA DE LA LOCALIDAD DE LA CANDELARIA. | J44: Inversión | K44: Un Nuevo Contrato Social y Ambiental para la Bogotá del Siglo XXI | L44: 57 | M44: =IF(ISERROR(VLOOKUP(L44,Proposito_programa!$C$2:$E$59,2,FALSE))," ",VLOOKUP(L44,Proposito_programa!$C$2:$E$59,2,FALSE)) -> Gestión pública local | N44: =IF(ISERROR(VLOOKUP(L44,Proposito_programa!$C$2:$E$59,3,FALSE))," ",VLOOKUP(L44,Proposito_programa!$C$2:$E$59,3,FALSE)) -> Propósito 5: Construir Bogotá - Región con gobierno abierto, transparente y ciudadanía consciente | O44: 2023 | P44: 1 | Q44: 1018443671 | R44: JOSE RICARDO PULGARIN ALVAREZ | S44: Persona Natural | W44: 25128000 | AA44: 25128000 | AB44: 25128000 | AC44: 44239 | AD44: 44239 | AE44: 44419 | AF44: 180 | AO44: X | AQ44: 1
A45: 1 | B45: 32 | C45: 2021 | D45: FDLC-CPS-032-2021 | E45: https://community.secop.gov.co/Public/Tendering/OpportunityDetail/Index?noticeUID=CO1.NTC.1769023&isFromPublicArea=True&isModal=true&asPopupView=true | F45: Contratos de prestación de servicios profesionales y de apoyo a la gestión | G45: Contratación directa | H45: Prestación de servicios profesionales y de apoyo a la gestión, o para la ejecución de trabajos artísticos que sólo puedan encomendarse a determinadas personas naturales; | I45: PRESTAR SERVICIOS PROFESIONALES AL FONDO DE DESARROLLO LOCAL DE LA CANDELARIA EN LA ESTRUCTURACIÓN DE LOS PROCESOS, ASÍ COMO LA FORMULACIÓN, SEGUIMIENTO Y EVALUACIÓN DE LOS PROYECTOS DE LA ENTIDAD | J45: Inversión | K45: Un Nuevo Contrato Social y Ambiental para la Bogotá del Siglo XXI | L45: 6 | M45: =IF(ISERROR(VLOOKUP(L45,Proposito_programa!$C$2:$E$59,2,FALSE))," ",VLOOKUP(L45,Proposito_programa!$C$2:$E$59,2,FALSE)) -> Sistema Distrital de Cuidado | N45: =IF(ISERROR(VLOOKUP(L45,Proposito_programa!$C$2:$E$59,3,FALSE))," ",VLOOKUP(L45,Proposito_programa!$C$2:$E$59,3,FALSE)) -> Propósito 1: Hacer un nuevo contrato social para incrementar la inclusión social, productiva y política | O45: 1628 | P45: 1 | Q45: 79712875 | R45: NELSON JAVIER GARAVITO CASTILLO | S45: Persona Natural | W45: 51120000 | AA45: 51120000 | AB45: 43622400 | AC45: 44242 | AD45: 44242 | AE45: 44544 | AF45: 300 | AO45: X | AQ45: 0.8533333333
A46: 1 | B46: 33 | C46: 2021 | D46: FDLC-CPS-033-2021 | E46: https://community.secop.gov.co/Public/Tendering/OpportunityDetail/Index?noticeUID=CO1.NTC.1768603&isFromPublicArea=True&isModal=true&asPopupView=true | F46: Contratos de prestación de servicios profesionales y de apoyo a la gestión | G46: Contratación directa | H46: Prestación de servicios profesionales y de apoyo a la gestión, o para la ejecución de trabajos artísticos que sólo puedan encomendarse a determinadas personas naturales; | I46: PRESTAR SERVICIOS PROFESIONALES EN MATERIA JURÍDICA AL FONDO DE DESARROLLO LOCAL | J46: Inversión | K46: Un Nuevo Contrato Social y Ambiental para la Bogotá del Siglo XXI | L46: 6 | M46: =IF(ISERROR(VLOOKUP(L46,Proposito_programa!$C$2:$E$59,2,FALSE))," ",VLOOKUP(L46,Proposito_programa!$C$2:$E$59,2,FALSE)) -> Sistema Distrital de Cuidado | N46: =IF(ISERROR(VLOOKUP(L46,Proposito_programa!$C$2:$E$59,3,FALSE))," ",VLOOKUP(L46,Proposito_programa!$C$2:$E$59,3,FALSE)) -> Propósito 1: Hacer un nuevo contrato social para incrementar la inclusión social, productiva y política | O46: 1628 | P46: 1 | Q46: 1118545389 | R46: DIEGO FERNANDO ARDILA PLAZAS | S46: Persona Natural | W46: 59220000 | AA46: =+W46+X46+Z46 -> 59220000 | AB46: 59220000 | AC46: 44242 | AD46: 44242 | AE46: 44544 | AF46: 300 | AO46: X | AQ46: =IF(ISERROR(AB46/AA46),"-",(AB46/AA46)) -> 1
A47: 1 | B47: 34 | C47: 2021 | D47: FDLC-CPS-034-2021 | E47: https://community.secop.gov.co/Public/Tendering/OpportunityDetail/Index?noticeUID=CO1.NTC.1769097&isFromPublicArea=True&isModal=true&asPopupView=true | F47: Contratos de prestación de servicios profesionales y de apoyo a la gestión | G47: Contratación directa | H47: Prestación de servicios profesionales y de apoyo a la gestión, o para la ejecución de trabajos artísticos que sólo puedan encomendarse a determinadas personas naturales; | I47: PRESTAR SERVICIOS PROFESIONALES AL ÁREA DE GESTIÓN DE DESARROLLO LOCAL DE LA ALCALDÍA LOCAL PARA EL SEGUIMIENTO E IMPLEMENTACIÓN DE LAS MEDIDAS ESTABLECIDAS Y QUE SE ESTABLEZCAN POR PARTE DEL GOBIERNO NACIONAL Y DISTRITAL EN RELACIÓN CON LA REACTIVACION ECONOMICA EN LA LOCALIDAD | J47: Inversión | K47: Un Nuevo Contrato Social y Ambiental para la Bogotá del Siglo XXI | L47: 6 | M47: =IF(ISERROR(VLOOKUP(L47,Proposito_programa!$C$2:$E$59,2,FALSE))," ",VLOOKUP(L47,Proposito_programa!$C$2:$E$59,2,FALSE)) -> Sistema Distrital de Cuidado | N47: =IF(ISERROR(VLOOKUP(L47,Proposito_programa!$C$2:$E$59,3,FALSE))," ",VLOOKUP(L47,Proposito_programa!$C$2:$E$59,3,FALSE)) -> Propósito 1: Hacer un nuevo contrato social para incrementar la inclusión social, productiva y política | O47: 1628 | P47: 1 | Q47: 80236435 | R47: JORGE ELIECER GARCÍA NEVA | S47: Persona Natural | W47: 41880000 | X47: -837600 | Y47: 1 | Z47: 2233600 | AA47: 43276000 | AB47: 39925600 | AC47: 44242 | AD47: 44242 | AE47: 44560 | AF47: 300 | AH47: 16 | AO47: X | AQ47: 0.9225806452
A48: 1 | B48: 35 | C48: 2021 | D48: FDLC-CPS-035-2021 | E48: https://community.secop.gov.co/Public/Tendering/OpportunityDetail/Index?noticeUID=CO1.NTC.1769204&isFromPublicArea=True&isModal=true&asPopupView=true | F48: Contratos de prestación de servicios profesionales y de apoyo a la gestión | G48: Contratación directa | H48: Prestación de servicios profesionales y de apoyo a la gestión, o para la ejecución de trabajos artísticos que sólo puedan encomendarse a determinadas personas naturales; | I48: PRESTAR SERVICIOS PROFESIONALES AL FONDO DE DESARROLLO LOCAL DE LA CANDELARIA PARA APOYAR LAS GESTIONES RELACIONADAS CON LA OFICINA DE PRESUPUESTO DE LA ENTIDAD | J48: Inversión | K48: Un Nuevo Contrato Social y Ambiental para la Bogotá del Siglo XXI | L48: 57 | M48: =IF(ISERROR(VLOOKUP(L48,Proposito_programa!$C$2:$E$59,2,FALSE))," ",VLOOKUP(L48,Proposito_programa!$C$2:$E$59,2,FALSE)) -> Gestión pública local | N48: =IF(ISERROR(VLOOKUP(L48,Proposito_programa!$C$2:$E$59,3,FALSE))," ",VLOOKUP(L48,Proposito_programa!$C$2:$E$59,3,FALSE)) -> Propósito 5: Construir Bogotá - Región con gobierno abierto, transparente y ciudadanía consciente | O48: 2021 | P48: 1 | Q48: 50875779 | R48: ISABELA RAQUEL FERNANDEZ PEREZ | S48: Persona Natural | W48: 41880000 | Y48: 1 | Z48: 3769200 | AA48: 45649200 | AB48: 44253200 | AC48: 44242 | AD48: 44242 | AE48: 44571 | AF48: 300 | AG48: 1 | AH48: 27 | AO48: X | AQ48: 0.9694189602
A49: 1 | B49: 36 | C49: 2021 | D49: FDLC-CPS-036-2021 | E49: https://community.secop.gov.co/Public/Tendering/OpportunityDetail/Index?noticeUID=CO1.NTC.1769205&isFromPublicArea=True&isModal=true&asPopupView=true | F49: Contratos de prestación de servicios profesionales y de apoyo a la gestión | G49: Contratación directa | H49: Prestación de servicios profesionales y de apoyo a la gestión, o para la ejecución de trabajos artísticos que sólo puedan encomendarse a determinadas personas naturales; | I49: PRESTAR SERVICIOS PROFESIONALES PARA APOYAR EL SEGUIMIENTO A LA EJECUCIÓN DE LOS PROYECTOS DE OBRA E INFRAESTRUCTURA DE LA LOCALIDAD | J49: Inversión | K49: Un Nuevo Contrato Social y Ambiental para la Bogotá del Siglo XXI | L49: 49 | M49: =IF(ISERROR(VLOOKUP(L49,Proposito_programa!$C$2:$E$59,2,FALSE))," ",VLOOKUP(L49,Proposito_programa!$C$2:$E$59,2,FALSE)) -> Movilidad segura, sostenible y accesible | N49: =IF(ISERROR(VLOOKUP(L49,Proposito_programa!$C$2:$E$59,3,FALSE))," ",VLOOKUP(L49,Proposito_programa!$C$2:$E$59,3,FALSE)) -> Propósito 4: Hacer de Bogotá Región un modelo de movilidad multimodal, incluyente y sostenible | O49: 2020 | P49: 1 | Q49: 3023764906 | R49: PAOLA ANDREA RANGEL MARTINEZ | S49: Persona Natural | W49: 20355000 | AA49: 20355000 | AB49: 20355000 | AC49: 44242 | AD49: 44242 | AE49: 44391 | AF49: 150 | AO49: X | AQ49: 1
A50: 1 | B50: 37 | C50: 2021 | D50: FDLC-CPS-037-2021 | E50: https://community.secop.gov.co/Public/Tendering/OpportunityDetail/Index?noticeUID=CO1.NTC.1769077&isFromPublicArea=True&isModal=true&asPopupView=true | F50: Contratos de prestación de servicios profesionales y de apoyo a la gestión | G50: Contratación directa | H50: Prestación de servicios profesionales y de apoyo a la gestión, o para la ejecución de trabajos artísticos que sólo puedan encomendarse a determinadas personas naturales; | I50: PRESTAR SERVICIOS PROFESIONALES AL FONDO DE DESARROLLO LOCAL DE LA CANDELARIA EN ASUNTOS RELACIONADOS CON PLANEACIÓN, PRESENTACIÓN, EJECUCIÓN Y SEGUIMIENTO DE LOS PROYECTOS ENCAMINADOS A LA GESTIÓN DE RIESGOS Y CAMBIO CLIMÁTICO EN LA LOCALIDAD | J50: Inversión | K50: Un Nuevo Contrato Social y Ambiental para la Bogotá del Siglo XXI | L50: 57 | M50: =IF(ISERROR(VLOOKUP(L50,Proposito_programa!$C$2:$E$59,2,FALSE))," ",VLOOKUP(L50,Proposito_programa!$C$2:$E$59,2,FALSE)) -> Gestión pública local | N50: =IF(ISERROR(VLOOKUP(L50,Proposito_programa!$C$2:$E$59,3,FALSE))," ",VLOOKUP(L50,Proposito_programa!$C$2:$E$59,3,FALSE)) -> Propósito 5: Construir Bogotá - Región con gobierno abierto, transparente y ciudadanía consciente | O50: 2021 | P50: 1 | Q50: 1024482565 | R50: SANDRA MILENA SANCHEZ GAMBA | S50: Persona Natural | W50: 41880000 | Y50: 1 | Z50: 3769200 | AA50: =+W50+X50+Z50 -> 45649200 | AB50: 44113600 | AC50: 44242 | AD50: 44242 | AE50: 44571 | AF50: 300 | AH50: 27 | AO50: X | AQ50: 0.9663608563
A51: 1 | B51: 38 | C51: 2021 | D51: FDLC-CPS-038-2021 | E51: https://community.secop.gov.co/Public/Tendering/OpportunityDetail/Index?noticeUID=CO1.NTC.1769630&isFromPublicArea=True&isModal=true&asPopupView=true | F51: Contratos de prestación de servicios profesionales y de apoyo a la gestión | G51: Contratación directa | H51: Prestación de servicios profesionales y de apoyo a la gestión, o para la ejecución de trabajos artísticos que sólo puedan encomendarse a determinadas personas naturales; | I51: PRESTAR SERVICIOS PROFESIONALES AL FONDO DE DESARROLLO LOCAL DE LA CANDELARIA PARA APOYAR LA FORMULACIÓN, GESTIÓN Y SEGUIMIENTO DE ACTIVIDADES ENFOCADAS A LA GESTIÓN AMBIENTAL EXTERNA, ENCAMINADAS A LA MITIGACIÓN DE LOS DIFERENTES IMPACTOS AMBIENTALES Y LA CONSERVACIÓN DE LOS RECURSOS NATURALES DE LA LOCALIDAD | J51: Inversión | K51: Un Nuevo Contrato Social y Ambiental para la Bogotá del Siglo XXI | L51: 24 | M51: =IF(ISERROR(VLOOKUP(L51,Proposito_programa!$C$2:$E$59,2,FALSE))," ",VLOOKUP(L51,Proposito_programa!$C$2:$E$59,2,FALSE)) -> Bogotá región emprendedora e innovadora | N51: =IF(ISERROR(VLOOKUP(L51,Proposito_programa!$C$2:$E$59,3,FALSE))," ",VLOOKUP(L51,Proposito_programa!$C$2:$E$59,3,FALSE)) -> Propósito 1: Hacer un nuevo contrato social para incrementar la inclusión social, productiva y política | O51: 1626 | P51: 1 | Q51: 80194800 | R51: PEDRO ANDRES BARRERA ALVARADO | S51: Persona Natural | W51: 51120000 | Y51: 1 | Z51: 4600800 | AA51: =+W51+X51+Z51 -> 55720800 | AB51: 48734400 | AC51: 44242 | AD51: 44242 | AE51: 44571 | AF51: 300 | AG51: 1 | AH51: 27 | AO51: X | AQ51: 0.874617737
A52: 1 | B52: 39 | C52: 2021 | D52: FDLC-CPS-039-2021 | E52: https://community.secop.gov.co/Public/Tendering/OpportunityDetail/Index?noticeUID=CO1.NTC.1776427&isFromPublicArea=True&isModal=true&asPopupView=true | F52: Contratos de prestación de servicios profesionales y de apoyo a la gestión | G52: Contratación directa | H52: Prestación de servicios profesionales y de apoyo a la gestión, o para la ejecución de trabajos artísticos que sólo puedan encomendarse a determinadas personas naturales; | I52: PRESTAR SERVICIOS TECNICOS DE APOYO EN LA VISIBILIZACION DE LA GESTIÓN TURISTICA Y CULTURAL DE LA CANDELARIA EN EL MARCO DEL PLAN DE REACTIVACIÓN ECONOMICA | J52: Inversión | K52: Un Nuevo Contrato Social y Ambiental para la Bogotá del Siglo XXI | L52: 45 | M52: =IF(ISERROR(VLOOKUP(L52,Proposito_programa!$C$2:$E$59,2,FALSE))," ",VLOOKUP(L52,Proposito_programa!$C$2:$E$59,2,FALSE)) -> Espacio público más seguro y construido colectivamente | N52: =IF(ISERROR(VLOOKUP(L52,Proposito_programa!$C$2:$E$59,3,FALSE))," ",VLOOKUP(L52,Proposito_programa!$C$2:$E$59,3,FALSE)) -> Propósito 3: Inspirar confianza y legitimidad para vivir sin miedo y ser epicentro de cultura ciudadana, paz y reconciliación | O52: 1786 | P52: 1 | Q52: 80249660 | R52: JHONNATAN ACOSTA HERRADA | S52: Persona Natural | W52: 30540000 | Y52: 1 | Z52: 2443200 | AA52: 32983200 | AB52: 28809400 | AC52: 44244 | AD52: 44244 | AE52: 44571 | AF52: 300 | AH52: 24 | AO52: X | AQ52: 0.8734567901
A53: 1 | B53: 40 | C53: 2021 | D53: FDLC-CPS-040-2021 | E53: https://community.secop.gov.co/Public/Tendering/OpportunityDetail/Index?noticeUID=CO1.NTC.1772731&isFromPublicArea=True&isModal=true&asPopupView=true | F53: Contratos de prestación de servicios profesionales y de apoyo a la gestión | G53: Contratación directa | H53: Prestación de servicios profesionales y de apoyo a la gestión, o para la ejecución de trabajos artísticos que sólo puedan encomendarse a determinadas personas naturales; | I53: PRESTACION DE SERVICIOS PROFESIONALES DE APOYO EN LA ADMINISTRACION DEL PUNTO VIVE DIGITAL DE LA LOCALIDAD LA CANDELARIA PARA FOMENTAR EN LA COMUNIDAD LAS TICS | J53: Inversión | K53: Un Nuevo Contrato Social y Ambiental para la Bogotá del Siglo XXI | L53: 6 | M53: =IF(ISERROR(VLOOKUP(L53,Proposito_programa!$C$2:$E$59,2,FALSE))," ",VLOOKUP(L53,Proposito_programa!$C$2:$E$59,2,FALSE)) -> Sistema Distrital de Cuidado | N53: =IF(ISERROR(VLOOKUP(L53,Proposito_programa!$C$2:$E$59,3,FALSE))," ",VLOOKUP(L53,Proposito_programa!$C$2:$E$59,3,FALSE)) -> Propósito 1: Hacer un nuevo contrato social para incrementar la inclusión social, productiva y política | O53: 1628 | P53: 1 | Q53: 79322403 | R53: EDGAR YESID SILVA BUSTOS | S53: Persona Natural | W53: 41880000 | AA53: 41880000 | AB53: 34760400 | AC53: 44243 | AD53: 44243 | AE53: 44545 | AF53: 300 | AO53: X | AQ53: 0.83
A54: 1 | B54: 41 | C54: 2021 | D54: FDLC-CPS-041-2021 | E54: https://community.secop.gov.co/Public/Tendering/OpportunityDetail/Index?noticeUID=CO1.NTC.1789927&isFromPublicArea=True&isModal=true&asPopupView=true | F54: Contratos de prestación de servicios profesionales y de apoyo a la gestión | G54: Contratación directa | H54: Prestación de servicios profesionales y de apoyo a la gestión, o para la ejecución de trabajos artísticos que sólo puedan encomendarse a determinadas personas naturales; | I54: PRESTAR SERVICIOS PROFESIONALES ESPECIALIZADOS AL FONDO DE DESARROLLO LOCAL DE LA CANDELARIA PARA APOYAR LA COORDINACIÓN DE LA GESTIÓN CONTRACTUAL DE LA ENTIDAD Y DEMÁS ASUNTOS QUE SE REQUIERAN | J54: Inversión | K54: Un Nuevo Contrato Social y Ambiental para la Bogotá del Siglo XXI | L54: 57 | M54: =IF(ISERROR(VLOOKUP(L54,Proposito_programa!$C$2:$E$59,2,FALSE))," ",VLOOKUP(L54,Proposito_programa!$C$2:$E$59,2,FALSE)) -> Gestión pública local | N54: =IF(ISERROR(VLOOKUP(L54,Proposito_programa!$C$2:$E$59,3,FALSE))," ",VLOOKUP(L54,Proposito_programa!$C$2:$E$59,3,FALSE)) -> Propósito 5: Construir Bogotá - Región con gobierno abierto, transparente y ciudadanía consciente | O54: 2021 | P54: 1 | Q54: 63538593 | R54: SANDRA JOHANNA YARA DELGADO | S54: Persona Natural | W54: 85000000 | X54: -31450000 | AA54: =+W54+X54+Z54 -> 53550000 | AB54: 53550000 | AC54: 44249 | AD54: 44249 | AE54: 44551 | AF54: 300 | AO54: X | AQ54: 1
A55: 1 | B55: 42 | C55: 2021 | D55: FDLC-CPS-042-2021 | E55: https://community.secop.gov.co/Public/Tendering/OpportunityDetail/Index?noticeUID=CO1.NTC.1792587&isFromPublicArea=True&isModal=true&asPopupView=true | F55: Contratos de prestación de servicios profesionales y de apoyo a la gestión | G55: Contratación directa | H55: Prestación de servicios profesionales y de apoyo a la gestión, o para la ejecución de trabajos artísticos que sólo puedan encomendarse a determinadas personas naturales; | I55: PRESTAR SERVICIOS PROFESIONALES AL FONDO DE DESARROLLO LOCAL DE LA CANDELARIA PARA APOYAR AL EQUIPO DE PRENSA Y COMUNICACIONES DE LA ALCALDÍA LOCAL DE LA CANDELARIA EN LA REALIZACIÓN Y PUBLICACIÓN DE CONTENIDOS DE REDES SOCIALES Y CANALES DE DIVULGACIÓN DIGITAL (SITIO WEB) DE LA ENTIDAD. | J55: Inversión | K55: Un Nuevo Contrato Social y Ambiental para la Bogotá del Siglo XXI | L55: 57 | M55: =IF(ISERROR(VLOOKUP(L55,Proposito_programa!$C$2:$E$59,2,FALSE))," ",VLOOKUP(L55,Proposito_programa!$C$2:$E$59,2,FALSE)) -> Gestión pública local | N55: =IF(ISERROR(VLOOKUP(L55,Proposito_programa!$C$2:$E$59,3,FALSE))," ",VLOOKUP(L55,Proposito_programa!$C$2:$E$59,3,FALSE)) -> Propósito 5: Construir Bogotá - Región con gobierno abierto, transparente y ciudadanía consciente | O55: 2021 | P55: 1 | Q55: 1033731738 | R55: NATALIA ANDREA RUBIANO FORERO | S55: Persona Natural | W55: 41880000 | Y55: 1 | Z55: 1116800 | AA55: 42996800 | AB55: 38808800 | AC55: 44250 | AD55: 44250 | AE55: 44560 | AF55: 300 | AG55: 1 | AH55: 8 | AO55: X | AQ55: 0.9025974026
A56: 1 | B56: 43 | C56: 2021 | D56: FDLC-CPS-043-2021 | E56: https://community.secop.gov.co/Public/Tendering/OpportunityDetail/Index?noticeUID=CO1.NTC.1800513&isFromPublicArea=True&isModal=true&asPopupView=true | F56: Contratos de prestación de servicios profesionales y de apoyo a la gestión | G56: Contratación directa | H56: Prestación de servicios profesionales y de apoyo a la gestión, o para la ejecución de trabajos artísticos que sólo puedan encomendarse a determinadas personas naturales; | I56: PRESTAR SERVICIOS DE APOYO TÉCNICO AL FONDO DE DESARROLLO LOCAL DE LA CANDELARIA EN LA ADMINISTRACIÓN DE UNA DE LAS CASAS COMUNITARIAS DE LA LOCALIDAD DE LA CANDELARIA, DE CONFORMIDAD CON EL ACUERDO LOCAL 006 DE 2013. | J56: Inversión | K56: Un Nuevo Contrato Social y Ambiental para la Bogotá del Siglo XXI | L56: 24 | M56: =IF(ISERROR(VLOOKUP(L56,Proposito_programa!$C$2:$E$59,2,FALSE))," ",VLOOKUP(L56,Proposito_programa!$C$2:$E$59,2,FALSE)) -> Bogotá región emprendedora e innovadora | N56: =IF(ISERROR(VLOOKUP(L56,Proposito_programa!$C$2:$E$59,3,FALSE))," ",VLOOKUP(L56,Proposito_programa!$C$2:$E$59,3,FALSE)) -> Propósito 1: Hacer un nuevo contrato social para incrementar la inclusión social, productiva y política | O56: 1626 | P56: 1 | Q56: 52709184 | R56: LUZ ANGELA ORTIZ SANTOS | S56: Persona Natural | W56: 29070000 | AA56: 29070000 | AB56: 26647500 | AC56: 44253 | AD56: 44253 | AE56: 44554 | AF56: 300 | AO56: X | AQ56: 0.9166666667
A57: 1 | B57: 44 | C57: 2021 | D57: FDLC-CPS-044-2021 | E57: https://community.secop.gov.co/Public/Tendering/OpportunityDetail/Index?noticeUID=CO1.NTC.1801014&isFromPublicArea=True&isModal=true&asPopupView=true | F57: Contratos de prestación de servicios profesionales y de apoyo a la gestión | G57: Contratación directa | H57: Prestación de servicios profesionales y de apoyo a la gestión, o para la ejecución de trabajos artísticos que sólo puedan encomendarse a determinadas personas naturales; | I57: PRESTAR SERVICIOS PROFESIONALES AL FONDO DE DESARROLLO LOCAL DE LA CANDELARIA PARA COORDINAR LA ARTICULACIÓN, ASISTENCIA Y ACOMPAÑAMIENTO DE LOS PROCESOS DE PLANEACIÓN LOCAL, PARA LA PROMOCIÓN DE LA PARTICIPACIÓN DE LAS MUJERES Y DE LA EQUIDAD DE GÉNERO, PARA MATERIALIZAR EN LA LOCALIDAD LAS ESTRATEGIAS DE TERRITORIALIZACIÓN Y TRANSVERSALIZACIÓN DE LA POLÍTICA PUBLICA DE MUJERES Y EQUIDAD DE GÉNERO, PPMYEG. | J57: Inversión | K57: Un Nuevo Contrato Social y Ambiental para la Bogotá del Siglo XXI | L57: 40 | M57: =IF(ISERROR(VLOOKUP(L57,Proposito_programa!$C$2:$E$59,2,FALSE))," ",VLOOKUP(L57,Proposito_programa!$C$2:$E$59,2,FALSE)) -> Más mujeres viven una vida libre de violencias, se sienten seguras y acceden con confianza al sistema de justicia | N57: =IF(ISERROR(VLOOKUP(L57,Proposito_programa!$C$2:$E$59,3,FALSE))," ",VLOOKUP(L57,Proposito_programa!$C$2:$E$59,3,FALSE)) -> Propósito 3: Inspirar confianza y legitimidad para vivir sin miedo y ser epicentro de cultura ciudadana, paz y reconciliación | O57: 1781 | P57: 1 | Q57: 1023898352 | R57: ADRIANA ISABEL RINCON MARTINEZ | S57: Persona Natural | W57: 51120000 | AA57: =+W57+X57+Z57 -> 51120000 | AB57: 41918400 | AC57: 44252 | AD57: 44252 | AE57: 44554 | AF57: 300 | AI57: 1018440881 | AJ57: ZULEIMY YAZMIN TERREROS BOGOTA | AK57: 44273 | AL57: 47030400 | AO57: X | AQ57: 0.82
A58: 1 | B58: 45 | C58: 2021 | D58: FDLC-CPS-045-2021 | E58: https://community.secop.gov.co/Public/Tendering/OpportunityDetail/Index?noticeUID=CO1.NTC.1800956&isFromPublicArea=True&isModal=true&asPopupView=true | F58: Contratos de prestación de servicios profesionales y de apoyo a la gestión | G58: Contratación directa | H58: Prestación de servicios profesionales y de apoyo a la gestión, o para la ejecución de trabajos artísticos que sólo puedan encomendarse a determinadas personas naturales; | I58: PRESTAR SERVICIOS PROFESIONALES COMO ABOGADO COBRO PERSUASIVO EN EL ÁREA DE GESTIÓN POLICIVA Y JURÍDICA DE LA ALCALDIA LOCAL DE LA CANDELARIA | J58: Inversión | K58: Un Nuevo Contrato Social y Ambiental para la Bogotá del Siglo XXI | L58: 57 | M58: =IF(ISERROR(VLOOKUP(L58,Proposito_programa!$C$2:$E$59,2,FALSE))," ",VLOOKUP(L58,Proposito_programa!$C$2:$E$59,2,FALSE)) -> Gestión pública local | N58: =IF(ISERROR(VLOOKUP(L58,Proposito_programa!$C$2:$E$59,3,FALSE))," ",VLOOKUP(L58,Proposito_programa!$C$2:$E$59,3,FALSE)) -> Propósito 5: Construir Bogotá - Región con gobierno abierto, transparente y ciudadanía consciente | O58: 2023 | P58: 1 | Q58: 32645897 | R58: MIRYAM ESTHER LOPEZ RODRIGUEZ | S58: Persona Natural | W58: 25128000 | AA58: 25128000 | AB58: 25128000 | AC58: 44252 | AD58: 44252 | AE58: 44432 | AF58: 180 | AO58: X | AQ58: 1
A59: 1 | B59: 46 | C59: 2021 | D59: FDLC-CPS-046-2021 | E59: https://community.secop.gov.co/Public/Tendering/OpportunityDetail/Index?noticeUID=CO1.NTC.1801305&isFromPublicArea=True&isModal=true&asPopupView=true | F59: Contratos de prestación de servicios profesionales y de apoyo a la gestión | G59: Contratación directa | H59: Prestación de servicios profesionales y de apoyo a la gestión, o para la ejecución de trabajos artísticos que sólo puedan encomendarse a determinadas personas naturales; | I59: APOYAR A LA ALCALDESA LOCAL EN LA PROMOCIÓN, ARTICULACIÓN, ACOMPAÑAMIENTO Y SEGUIMIENTO PARA LA ATENCIÓN Y PROTECCIÓN DE LOS ANIMALES DOMÉSTICOS Y SILVESTRES DE LA LOCALIDAD. | J59: Inversión | K59: Un Nuevo Contrato Social y Ambiental para la Bogotá del Siglo XXI | L59: 34 | M59: =IF(ISERROR(VLOOKUP(L59,Proposito_programa!$C$2:$E$59,2,FALSE))," ",VLOOKUP(L59,Proposito_programa!$C$2:$E$59,2,FALSE)) -> Bogotá protectora de los animales | N59: =IF(ISERROR(VLOOKUP(L59,Proposito_programa!$C$2:$E$59,3,FALSE))," ",VLOOKUP(L59,Proposito_programa!$C$2:$E$59,3,FALSE)) -> Propósito 2 : Cambiar Nuestros Hábitos de Vida para Reverdecer a Bogotá y Adaptarnos y Mitigar la Crisis Climática | O59: 1704 | P59: 1 | Q59: 1026255127 | R59: DELIO ALCIBIADES LADINO PEÑA | S59: Persona Natural | W59: 41880000 | Y59: 1 | Z59: 2373200 | AA59: 44253200 | AB59: 43136400 | AC59: 44252 | AD59: 44252 | AE59: 44571 | AF59: 300 | AH59: 17 | AO59: X | AQ59: 0.9747634069
A60: 1 | B60: 47 | C60: 2021 | D60: FDLC-CPS-047-2021 | E60: https://community.secop.gov.co/Public/Tendering/OpportunityDetail/Index?noticeUID=CO1.NTC.1813377&isFromPublicArea=True&isModal=true&asPopupView=true | F60: Contratos de prestación de servicios profesionales y de apoyo a la gestión | G60: Contratación directa | H60: Prestación de servicios profesionales y de apoyo a la gestión, o para la ejecución de trabajos artísticos que sólo puedan encomendarse a determinadas personas naturales; | I60: PRESTAR SERVICIOS DE APOYO TÉCNICO AL FONDO DE DESARROLLO LOCAL DE LA CANDELARIA EN LA ADMINISTRACIÓN DE LAS CASAS COMUNITARIAS DE LA LOCALIDAD DE LA CANDELARIA, DE CONFORMIDAD CON EL ACUERDO LOCAL 006 DE 2013 | J60: Inversión | K60: Un Nuevo Contrato Social y Ambiental para la Bogotá del Siglo XXI | L60: 6 | M60: =IF(ISERROR(VLOOKUP(L60,Proposito_programa!$C$2:$E$59,2,FALSE))," ",VLOOKUP(L60,Proposito_programa!$C$2:$E$59,2,FALSE)) -> Sistema Distrital de Cuidado | N60: =IF(ISERROR(VLOOKUP(L60,Proposito_programa!$C$2:$E$59,3,FALSE))," ",VLOOKUP(L60,Proposito_programa!$C$2:$E$59,3,FALSE)) -> Propósito 1: Hacer un nuevo contrato social para incrementar la inclusión social, productiva y política | O60: 1662 | P60: 1 | Q60: 41503480 | R60: AURA ALICIA ZAMBRANO LOPEZ | S60: Persona Natural | W60: 27616500 | AA60: 27616500 | AB60: 26066100 | AC60: 44257 | AD60: 44257 | AE60: 44546 | AF60: 285 | AO60: X | AQ60: 0.9438596491
A61: 1 | B61: 48 | C61: 2021 | D61: FDLC-CPS-048-2021 | E61: https://community.secop.gov.co/Public/Tendering/OpportunityDetail/Index?noticeUID=CO1.NTC.1801020&isFromPublicArea=True&isModal=true&asPopupView=true | F61: Contratos de prestación de servicios profesionales y de apoyo a la gestión | G61: Contratación directa | H61: Prestación de servicios profesionales y de apoyo a la gestión, o para la ejecución de trabajos artísticos que sólo puedan encomendarse a determinadas personas naturales; | I61: PRESTAR SERVICIOS DE APOYO TÉCNICO AL FONDO DE DESARROLLO LOCAL DE LA CANDELARIA EN LA ADMINISTRACIÓN DE UNA DE LAS CASAS COMUNITARIAS DE LA LOCALIDAD DE LA CANDELARIA, DE CONFORMIDAD CON EL ACUERDO LOCAL 006 DE BELEN | J61: Inversión | K61: Un Nuevo Contrato Social y Ambiental para la Bogotá del Siglo XXI | L61: 6 | M61: =IF(ISERROR(VLOOKUP(L61,Proposito_programa!$C$2:$E$59,2,FALSE))," ",VLOOKUP(L61,Proposito_programa!$C$2:$E$59,2,FALSE)) -> Sistema Distrital de Cuidado | N61: =IF(ISERROR(VLOOKUP(L61,Proposito_programa!$C$2:$E$59,3,FALSE))," ",VLOOKUP(L61,Proposito_programa!$C$2:$E$59,3,FALSE)) -> Propósito 1: Hacer un nuevo contrato social para incrementar la inclusión social, productiva y política | O61: 1663 | P61: 1 | Q61: 52219649 | R61: INDIRA BETANCOURT MACUASE | S61: Persona Natural | W61: 29070000 | AA61: 29070000 | AB61: 26744400 | AC61: 44252 | AD61: 44252 | AE61: 44554 | AF61: 300 | AO61: X | AQ61: 0.92
A62: 1 | B62: 49 | C62: 2021 | D62: FDLC-CPS-049-2021 | E62: https://community.secop.gov.co/Public/Tendering/OpportunityDetail/Index?noticeUID=CO1.NTC.1810181&isFromPublicArea=True&isModal=true&asPopupView=true | F62: Contratos de prestación de servicios profesionales y de apoyo a la gestión | G62: Contratación directa | H62: Prestación de servicios profesionales y de apoyo a la gestión, o para la ejecución de trabajos artísticos que sólo puedan encomendarse a determinadas personas naturales; | I62: PRESTAR SERVICIOS PROFESIONALES PARA APOYAR JURÍDICAMENTE LA EJECUCIÓN DE LAS ACCIONES REQUERIDAS PARA LA DEPURACIÓN DE LAS ACTUACIONES ADMINISTRATIVAS QUE CURSAN EN LA ALCALDÍA LOCAL DE LA CANDELARIA | J62: Inversión | K62: Un Nuevo Contrato Social y Ambiental para la Bogotá del Siglo XXI | L62: 57 | M62: =IF(ISERROR(VLOOKUP(L62,Proposito_programa!$C$2:$E$59,2,FALSE))," ",VLOOKUP(L62,Proposito_programa!$C$2:$E$59,2,FALSE)) -> Gestión pública local | N62: =IF(ISERROR(VLOOKUP(L62,Proposito_programa!$C$2:$E$59,3,FALSE))," ",VLOOKUP(L62,Proposito_programa!$C$2:$E$59,3,FALSE)) -> Propósito 5: Construir Bogotá - Región con gobierno abierto, transparente y ciudadanía consciente | O62: 2023 | P62: 1 | Q62: 22463659 | R62: DIGNORA LOPEZ MONCADA | S62: Persona Natural | W62: 25128000 | AA62: 25128000 | AB62: 25128000 | AC62: 44256 | AD62: 44256 | AE62: 44439 | AF62: 180 | AO62: X | AQ62: 1
A63: 1 | B63: 50 | C63: 2021 | D63: FDLC-CPS-050-2021 | E63: https://community.secop.gov.co/Public/Tendering/OpportunityDetail/Index?noticeUID=CO1.NTC.1813103&isFromPublicArea=True&isModal=true&asPopupView=true | F63: Contratos de prestación de servicios profesionales y de apoyo a la gestión | G63: Contratación directa | H63: Prestación de servicios profesionales y de apoyo a la gestión, o para la ejecución de trabajos artísticos que sólo puedan encomendarse a determinadas personas naturales; | I63: PRESTAR SERVICIOS DE APOYO ADMINISTRATIVO Y ASISTENCIAL AL FONDO DE DESARROLLO LOCAL DE LA CANDELARIA, EN EL CENTRO DE INFORMACIÓN Y DOCUMENTACIÓN (CDI), PARA LA NOTIFICACIÓN DE CORRESPONDENCIA DE LA ENTIDAD. | J63: Inversión | K63: Un Nuevo Contrato Social y Ambiental para la Bogotá del Siglo XXI | L63: 57 | M63: =IF(ISERROR(VLOOKUP(L63,Proposito_programa!$C$2:$E$59,2,FALSE))," ",VLOOKUP(L63,Proposito_programa!$C$2:$E$59,2,FALSE)) -> Gestión pública local | N63: =IF(ISERROR(VLOOKUP(L63,Proposito_programa!$C$2:$E$59,3,FALSE))," ",VLOOKUP(L63,Proposito_programa!$C$2:$E$59,3,FALSE)) -> Propósito 5: Construir Bogotá - Región con gobierno abierto, transparente y ciudadanía consciente | O63: 2021 | P63: 1 | Q63: 80845714 | R63: EDWARD FERNANDO GUZMAN FRANCO | S63: Persona Natural | W63: 17071500 | AA63: 17071500 | AB63: 16113100 | AC63: 44257 | AD63: 44257 | AE63: 44546 | AF63: 285 | AO63: X | AQ63: 0.9438596491
A64: 1 | B64: 51 | C64: 2021 | D64: FDLC-CPS-051-2021 | E64: https://community.secop.gov.co/Public/Tendering/OpportunityDetail/Index?noticeUID=CO1.NTC.1813570&isFromPublicArea=True&isModal=true&asPopupView=true | F64: Contratos de prestación de servicios profesionales y de apoyo a la gestión | G64: Contratación directa | H64: Prestación de servicios profesionales y de apoyo a la gestión, o para la ejecución de trabajos artísticos que sólo puedan encomendarse a determinadas personas naturales; | I64: PRESTAR SERVICIOS PROFESIONALES AL FONDO DE DESARROLLO LOCAL DE LA CANDELARIA EN EL DESPACHO DE LA ALCALDESA LOCAL PARA BRINDAR LINEAMIENTOS JURIDICOS, EVALUAR Y ORIENTAR TEMAS PRIORITARIOS DE LA ENTIDAD | J64: Inversión | K64: Un Nuevo Contrato Social y Ambiental para la Bogotá del Siglo XXI | L64: 57 | M64: =IF(ISERROR(VLOOKUP(L64,Proposito_programa!$C$2:$E$59,2,FALSE))," ",VLOOKUP(L64,Proposito_programa!$C$2:$E$59,2,FALSE)) -> Gestión pública local | N64: =IF(ISERROR(VLOOKUP(L64,Proposito_programa!$C$2:$E$59,3,FALSE))," ",VLOOKUP(L64,Proposito_programa!$C$2:$E$59,3,FALSE)) -> Propósito 5: Construir Bogotá - Región con gobierno abierto, transparente y ciudadanía consciente | O64: 2021 | P64: 1 | Q64: 79340141 | R64: JORGE ARLEY QUINTERO CASTILLO | S64: Persona Natural | W64: 34020000 | AA64: 34020000 | AB64: 26989200 | AC64: 44257 | AD64: 44257 | AE64: 44409 | AF64: 150 | AO64: X | AQ64: 0.7933333333
A65: 1 | B65: 52 | C65: 2021 | D65: FDLC-CPS-052-2021 | E65: https://community.secop.gov.co/Public/Tendering/OpportunityDetail/Index?noticeUID=CO1.NTC.1830861&isFromPublicArea=True&isModal=true&asPopupView=true | F65: Contratos de prestación de servicios profesionales y de apoyo a la gestión | G65: Contratación directa | H65: Prestación de servicios profesionales y de apoyo a la gestión, o para la ejecución de trabajos artísticos que sólo puedan encomendarse a determinadas personas naturales; | I65: PRESTAR SERVICIOS TÉCNICOS PARA APOYAR AL FONDO DE DESARROLLO LOCAL DE LA CANDELARIA EN LAS TAREAS OPERATIVAS DE CARÁCTER ARCHIVÍSTICO DESARROLLADAS, PARA GARANTIZAR LA APLICACIÓN CORRECTA DE LOS PROCEDIMIENTOS TÉCNICOS | J65: Inversión | K65: Un Nuevo Contrato Social y Ambiental para la Bogotá del Siglo XXI | L65: 57 | M65: =IF(ISERROR(VLOOKUP(L65,Proposito_programa!$C$2:$E$59,2,FALSE))," ",VLOOKUP(L65,Proposito_programa!$C$2:$E$59,2,FALSE)) -> Gestión pública local | N65: =IF(ISERROR(VLOOKUP(L65,Proposito_programa!$C$2:$E$59,3,FALSE))," ",VLOOKUP(L65,Proposito_programa!$C$2:$E$59,3,FALSE)) -> Propósito 5: Construir Bogotá - Región con gobierno abierto, transparente y ciudadanía consciente | O65: 2021 | P65: 1 | Q65: 52496566 | R65: SONIA MORENO SALGUERO | S65: Persona Natural | W65: 15270000 | AA65: 15270000 | AB65: 15270000 | AC65: 44264 | AD65: 44264 | AE65: 44416 | AF65: 150 | AO65: X | AQ65: 1
A66: 1 | B66: 53 | C66: 2021 | D66: FDLC-SAMC-001-2021 | E66: https://community.secop.gov.co/Public/Tendering/OpportunityDetail/Index?noticeUID=CO1.NTC.1781620&isFromPublicArea=True&isModal=true&asPopupView=true | F66: Seguros | G66: Contratación mínima cuantia | H66: No aplica | I66: CONTRATAR LOS SEGUROS QUE AMPAREN LOS INTERESES PATRIMONIALES ACTUALES Y FUTUROS, ASÍ COMO LOS BIENES DE PROPIEDAD DE LA ALCALDIA LOCAL DE LA CANDELARIA, QUE ESTÉN BAJO SU RESPONSABILIDAD Y CUSTODIA Y AQUELLOS QUE SEAN ADQUIRIDOS PARA DESARROLLAR LAS FUNCIONES INHERENTES A SU ACTIVIDAD, ASI COMO CUALQUIER OTRA PÓLIZA DE SEGUROS QUE REQUIERA LA ENTIDAD EN EL DESARROLLO DE SU ACTIVIDAD”, GRUPO 1 -TODO RIESGO DAÑO MATERIAL Y OTROS y GRUPO 2. - RESPONSABILIDAD CIVIL SERVIDORES PÚBLICOS | J66: Funcionamiento | K66: Un Nuevo Contrato Social y Ambiental para la Bogotá del Siglo XXI | L66: No aplica | M66: =IF(ISERROR(VLOOKUP(L66,Proposito_programa!$C$2:$E$59,2,FALSE))," ",VLOOKUP(L66,Proposito_programa!$C$2:$E$59,2,FALSE)) ->  | N66: =IF(ISERROR(VLOOKUP(L66,Proposito_programa!$C$2:$E$59,3,FALSE))," ",VLOOKUP(L66,Proposito_programa!$C$2:$E$59,3,FALSE)) ->  | O66: N/A | P66: 3 | Q66: 860524654 | R66: ASEGURADORA SOLIDARIA DE COLOMBIA | S66: Persona Jurídica | W66: 67525352 | AA66: 67525352 | AB66: 67525352 | AC66: 44266 | AD66: 44266 | AE66: 44889 | AF66: 623 | AO66: X | AQ66: 1
A67: 1 | B67: 54 | C67: 2021 | D67: FDLC-SAMC-001-2021 | E67: https://community.secop.gov.co/Public/Tendering/OpportunityDetail/Index?noticeUID=CO1.NTC.1794112&isFromPublicArea=True&isModal=true&asPopupView=true | F67: Seguros | G67: Contratación mínima cuantia | H67: No aplica | I67: CONTRATAR LOS SEGUROS QUE AMPAREN LOS INTERESES PATRIMONIALES ACTUALES Y FUTUROS, ASÍ COMO LOS BIENES DE PROPIEDAD DE LA ALCALDIA LOCAL DE LA CANDELARIA, QUE ESTÉN BAJO SU RESPONSABILIDAD Y CUSTODIA Y AQUELLOS QUE SEAN ADQUIRIDOS PARA DESARROLLAR LAS FUNCIONES INHERENTES A SU ACTIVIDAD, ASI COMO CUALQUIER OTRA PÓLIZA DE SEGUROS QUE REQUIERA LA ENTIDAD EN EL DESARROLLO DE SU ACTIVIDAD” GRUPO 3. | J67: Funcionamiento | K67: Un Nuevo Contrato Social y Ambiental para la Bogotá del Siglo XXI | L67: No aplica | M67: =IF(ISERROR(VLOOKUP(L67,Proposito_programa!$C$2:$E$59,2,FALSE))," ",VLOOKUP(L67,Proposito_programa!$C$2:$E$59,2,FALSE)) ->  | N67: =IF(ISERROR(VLOOKUP(L67,Proposito_programa!$C$2:$E$59,3,FALSE))," ",VLOOKUP(L67,Proposito_programa!$C$2:$E$59,3,FALSE)) ->  | O67: N/A | P67: 3 | Q67: 860011153 | R67: POSITIVA COMPAÑIA DE SEGUROS SA | S67: Persona Jurídica | W67: 9989579 | AA67: 9989579 | AB67: 9989579 | AC67: 44266 | AD67: 44266 | AE67: 44889 | AF67: 623 | AO67: X | AQ67: 1
A68: 1 | B68: 55 | C68: 2021 | D68: FDLC-CPS-055-2021 | E68: https://community.secop.gov.co/Public/Tendering/OpportunityDetail/Index?noticeUID=CO1.NTC.1846079&isFromPublicArea=True&isModal=true&asPopupView=true | F68: Contratos de prestación de servicios profesionales y de apoyo a la gestión | G68: Contratación directa | H68: Prestación de servicios profesionales y de apoyo a la gestión, o para la ejecución de trabajos artísticos que sólo puedan encomendarse a determinadas personas naturales; | I68: PRESTAR SERVICIOS PROFESIONALES PARA LA PLANEACIÓN, IMPLEMENTACIÓN Y FORTALECIMIENTO DE PROYECTOS RELACIONADOS CON LAS ACTIVIDADES DEL TURISMO LOCAL, A TRAVÉS DE LA GESTIÓN, ARTICULACIÓN E INTERLOCUCIÓN CON CIUDADANÍA Y ENTIDADES PÚBLICAS Y PRIVADAS. | J68: Inversión | K68: Un Nuevo Contrato Social y Ambiental para la Bogotá del Siglo XXI | L68: 6 | M68: =IF(ISERROR(VLOOKUP(L68,Proposito_programa!$C$2:$E$59,2,FALSE))," ",VLOOKUP(L68,Proposito_programa!$C$2:$E$59,2,FALSE)) -> Sistema Distrital de Cuidado | N68: =IF(ISERROR(VLOOKUP(L68,Proposito_programa!$C$2:$E$59,3,FALSE))," ",VLOOKUP(L68,Proposito_programa!$C$2:$E$59,3,FALSE)) -> Propósito 1: Hacer un nuevo contrato social para incrementar la inclusión social, productiva y política | O68: 1628 | P68: 1 | Q68: 78036035 | R68: JAIME MANUEL PINEDA MENDEZ | S68: Persona Natural | W68: 37692000 | AA68: 37692000 | AB68: 14658000 | AC68: 44270 | AD68: 44270 | AE68: 44544 | AF68: 270 | AO68: X | AQ68: 0.3888888889
A69: 1 | B69: 56 | C69: 2021 | D69: FDLC-CPS-056-2021 | E69: https://community.secop.gov.co/Public/Tendering/OpportunityDetail/Index?noticeUID=CO1.NTC.1845942&isFromPublicArea=True&isModal=true&asPopupView=true | F69: Contratos de prestación de servicios profesionales y de apoyo a la gestión | G69: Contratación directa | H69: Prestación de servicios profesionales y de apoyo a la gestión, o para la ejecución de trabajos artísticos que sólo puedan encomendarse a determinadas personas naturales; | I69: PRESTAR SERVICIOS DE APOYO TÉCNICO AL FONDO DE DESARROLLO LOCAL DE LA CANDELARIA PARA LA OPERACIÓN, SEGUIMIENTO Y CUMPLIMIENTO DE LOS PROCESOS Y PROCEDIMIENTOS NECESARIOS EN LA PRESTACIÓN DE SERVICIOS SOCIALES EN LA LOCALIDAD DE LA CANDELARIA GARANTIZANDO EL OPORTUNO Y ADECUADO REGISTRO, CRUCE, REPORTE Y SEGUIMIENTO DE INFORMACIÓN | J69: Inversión | K69: Un Nuevo Contrato Social y Ambiental para la Bogotá del Siglo XXI | L69: 1 | M69: =IF(ISERROR(VLOOKUP(L69,Proposito_programa!$C$2:$E$59,2,FALSE))," ",VLOOKUP(L69,Proposito_programa!$C$2:$E$59,2,FALSE)) -> Subsidios y transferencias para la equidad | N69: =IF(ISERROR(VLOOKUP(L69,Proposito_programa!$C$2:$E$59,3,FALSE))," ",VLOOKUP(L69,Proposito_programa!$C$2:$E$59,3,FALSE)) -> Propósito 1: Hacer un nuevo contrato social para incrementar la inclusión social, productiva y política | O69: 1605 | P69: 1 | Q69: 80263860 | R69: PEDRO SIERRA GARCIA | S69: Persona Natural | W69: 16740000 | AA69: 16740000 | AB69: 16740000 | AC69: 44270 | AD69: 44270 | AE69: 44453 | AF69: 180 | AO69: X | AQ69: 1
A70: 1 | B70: 57 | C70: 2021 | D70: FDLC-CPS-057-2021 | E70: https://community.secop.gov.co/Public/Tendering/OpportunityDetail/Index?noticeUID=CO1.NTC.1846092&isFromPublicArea=True&isModal=true&asPopupView=true | F70: Contratos de prestación de servicios profesionales y de apoyo a la gestión | G70: Contratación directa | H70: Prestación de servicios profesionales y de apoyo a la gestión, o para la ejecución de trabajos artísticos que sólo puedan encomendarse a determinadas personas naturales; | I70: PRESTAR SERVICIOS PROFESIONALES PARA APOYAR AL FONDO DE DESARROLLO LOCAL DE LA CANDELARIA EN EL SEGUIMIENTO A LAS INSTANCIAS Y PROCESOS DE PARTICIPACIÓN LOCALES | J70: Inversión | K70: Un Nuevo Contrato Social y Ambiental para la Bogotá del Siglo XXI | L70: 55 | M70: =IF(ISERROR(VLOOKUP(L70,Proposito_programa!$C$2:$E$59,2,FALSE))," ",VLOOKUP(L70,Proposito_programa!$C$2:$E$59,2,FALSE)) -> Fortalecimiento de cultura ciudadana y su institucionalidad | N70: =IF(ISERROR(VLOOKUP(L70,Proposito_programa!$C$2:$E$59,3,FALSE))," ",VLOOKUP(L70,Proposito_programa!$C$2:$E$59,3,FALSE)) -> Propósito 5: Construir Bogotá - Región con gobierno abierto, transparente y ciudadanía consciente | O70: 2019 | P70: 1 | Q70: 36313634 | R70: LINA MARIA COLLAZOS BOTACHE | S70: Persona Natural | W70: 36639000 | Y70: 1 | Z70: 3528200 | AA70: 40167200 | AB70: 34603500 | AC70: 44270 | AD70: 44270 | AE70: 44571 | AF70: 270 | AH70: 26 | AO70: X | AQ70: 0.8614864865
A71: 1 | B71: 58 | C71: 2021 | D71: FDLC-CPS-058-2021 | E71: https://community.secop.gov.co/Public/Tendering/OpportunityDetail/Index?noticeUID=CO1.NTC.1845950&isFromPublicArea=True&isModal=true&asPopupView=true | F71: Contratos de prestación de servicios profesionales y de apoyo a la gestión | G71: Contratación directa | H71: Prestación de servicios profesionales y de apoyo a la gestión, o para la ejecución de trabajos artísticos que sólo puedan encomendarse a determinadas personas naturales; | I71: PRESTAR SERVICIOS DE APOYO TÉCNICO AL FONDO DE DESARROLLO LOCAL DE LA CANDELARIA EN LA ADMINISTRACIÓN DE LAS CASAS COMUNITARIAS DE LA LOCALIDAD DE LA CANDELARIA, DE CONFORMIDAD CON EL ACUERDO LOCAL 006 DE 2013 | J71: Inversión | K71: Un Nuevo Contrato Social y Ambiental para la Bogotá del Siglo XXI | L71: 6 | M71: =IF(ISERROR(VLOOKUP(L71,Proposito_programa!$C$2:$E$59,2,FALSE))," ",VLOOKUP(L71,Proposito_programa!$C$2:$E$59,2,FALSE)) -> Sistema Distrital de Cuidado | N71: =IF(ISERROR(VLOOKUP(L71,Proposito_programa!$C$2:$E$59,3,FALSE))," ",VLOOKUP(L71,Proposito_programa!$C$2:$E$59,3,FALSE)) -> Propósito 1: Hacer un nuevo contrato social para incrementar la inclusión social, productiva y política | O71: 1662 | P71: 1 | Q71: 52059942 | R71: RUTH NAYIBE ALVINO BARBOSA | S71: Persona Natural | W71: 27616500 | AA71: 27616500 | AB71: 24709500 | AC71: 44270 | AD71: 44270 | AE71: 44544 | AF71: 270 | AO71: X | AQ71: 0.8947368421
A72: 1 | B72: 59 | C72: 2021 | D72: FDLC-CPS-059-2021 | E72: https://community.secop.gov.co/Public/Tendering/OpportunityDetail/Index?noticeUID=CO1.NTC.1845970&isFromPublicArea=True&isModal=true&asPopupView=true | F72: Contratos de prestación de servicios profesionales y de apoyo a la gestión | G72: Contratación directa | H72: Prestación de servicios profesionales y de apoyo a la gestión, o para la ejecución de trabajos artísticos que sólo puedan encomendarse a determinadas personas naturales; | I72: PRESTACIÓN DE SERVICIOS DE APOYO LOGÍSTICO EN LOS EVENTOS Y ACTIVIDADES DE LA ADMINISTRACIÓN LOCAL DE LA LOCALIDAD DE LA CANDELARIA | J72: Inversión | K72: Un Nuevo Contrato Social y Ambiental para la Bogotá del Siglo XXI | L72: 6 | M72: =IF(ISERROR(VLOOKUP(L72,Proposito_programa!$C$2:$E$59,2,FALSE))," ",VLOOKUP(L72,Proposito_programa!$C$2:$E$59,2,FALSE)) -> Sistema Distrital de Cuidado | N72: =IF(ISERROR(VLOOKUP(L72,Proposito_programa!$C$2:$E$59,3,FALSE))," ",VLOOKUP(L72,Proposito_programa!$C$2:$E$59,3,FALSE)) -> Propósito 1: Hacer un nuevo contrato social para incrementar la inclusión social, productiva y política | O72: 1628 | P72: 1 | Q72: 1085280532 | R72: DEIVIS ARAVIT GORDILLO GUTIERREZ | S72: Persona Natural | W72: 16335000 | X72: -544500 | Y72: 1 | Z72: 1815000 | AA72: =+W72+X72+Z72 -> 17605500 | AB72: 15427500 | AC72: 44270 | AD72: 44270 | AE72: 44220 | AF72: 270 | AG72: 1 | AH72: 30 | AO72: X | AQ72: 0.8762886598
A73: 1 | B73: 60 | C73: 2021 | D73: FDLC-CPS-060-2021 | E73: https://community.secop.gov.co/Public/Tendering/OpportunityDetail/Index?noticeUID=CO1.NTC.1851221&isFromPublicArea=True&isModal=true&asPopupView=true | F73: Contratos de prestación de servicios profesionales y de apoyo a la gestión | G73: Contratación directa | H73: Prestación de servicios profesionales y de apoyo a la gestión, o para la ejecución de trabajos artísticos que sólo puedan encomendarse a determinadas personas naturales; | I73: PRESTAR SERVICIOS DE APOYO TÉCNICO AL FONDO DE DESARROLLO LOCAL DE LA CANDELARIA EN LOS PROCEDIMIENTOS ADMINISTRATIVOS DERIVADOS DE LOS PROYECTOS SOCIALES Y DE SALUD EN LA LOCALIDAD | J73: Inversión | K73: Un Nuevo Contrato Social y Ambiental para la Bogotá del Siglo XXI | L73: 1 | M73: =IF(ISERROR(VLOOKUP(L73,Proposito_programa!$C$2:$E$59,2,FALSE))," ",VLOOKUP(L73,Proposito_programa!$C$2:$E$59,2,FALSE)) -> Subsidios y transferencias para la equidad | N73: =IF(ISERROR(VLOOKUP(L73,Proposito_programa!$C$2:$E$59,3,FALSE))," ",VLOOKUP(L73,Proposito_programa!$C$2:$E$59,3,FALSE)) -> Propósito 1: Hacer un nuevo contrato social para incrementar la inclusión social, productiva y política | O73: 1605 | P73: 1 | Q73: 79907754 | R73: JUAN ANGEL LOPEZ ARDILA | S73: Persona Natural | W73: 15876000 | AA73: 15876000 | AB73: 15876000 | AC73: 44271 | AD73: 44271 | AE73: 44454 | AF73: 180 | AO73: X | AQ73: 1
A74: 1 | B74: 61 | C74: 2021 | D74: ORDEN DE COMPRA 65329 | E74: https://colombiacompra.gov.co/tienda-virtual-del-estado-colombiano/ordenes-compra/65329 | F74: Contratos de prestación de servicios | G74: Selección abreviada | H74: Acuerdo marco de precios | I74: PRESTAR EL SERVICIO INTEGRAL DE ASEO Y CAFETERIA PARA LAS INSTALACIONES DE PROPIEDAD DEL FONDO DE DESARROLLO LOCAL DE LA ALCALDIA LOCAL DE LA CANDELARIA | J74: Funcionamiento | K74: Un Nuevo Contrato Social y Ambiental para la Bogotá del Siglo XXI | L74: No aplica | M74: =IF(ISERROR(VLOOKUP(L74,Proposito_programa!$C$2:$E$59,2,FALSE))," ",VLOOKUP(L74,Proposito_programa!$C$2:$E$59,2,FALSE)) ->  | N74: =IF(ISERROR(VLOOKUP(L74,Proposito_programa!$C$2:$E$59,3,FALSE))," ",VLOOKUP(L74,Proposito_programa!$C$2:$E$59,3,FALSE)) ->  | O74: N/A | P74: 1 | Q74: 900427788 | R74: LIMPIEZA INSTITUCIONAL LASU S.A.S | S74: Persona Jurídica | W74: 181395838.8 | Y74: 1 | Z74: 21604161 | AA74: 202999999.8 | AB74: 150080984 | AC74: 44264 | AD74: 44264 | AE74: 44613 | AF74: 350 | AG74: 1 | AH74: 40 | AO74: X | AQ74: 0.7393151928
A75: 1 | B75: 62 | C75: 2021 | D75: ORDEN DE COMPRA 64891 | E75: https://colombiacompra.gov.co/tienda-virtual-del-estado-colombiano/ordenes-compra/64891 | F75: Suministro | G75: Selección abreviada | H75: Acuerdo marco de precios | I75: Suministrar a mont o agotable los combustible s gasolina y diésel para los vehículos de propiedad del Fondo de Desarrollo Local de La Candelaria | J75: Funcionamiento | K75: Un Nuevo Contrato Social y Ambiental para la Bogotá del Siglo XXI | L75: No aplica | M75: =IF(ISERROR(VLOOKUP(L75,Proposito_programa!$C$2:$E$59,2,FALSE))," ",VLOOKUP(L75,Proposito_programa!$C$2:$E$59,2,FALSE)) ->  | N75: =IF(ISERROR(VLOOKUP(L75,Proposito_programa!$C$2:$E$59,3,FALSE))," ",VLOOKUP(L75,Proposito_programa!$C$2:$E$59,3,FALSE)) ->  | O75: N/A | P75: 1 | Q75: 900459737 | R75: GRUPO EDS AUTOGAS S.A.S | S75: Persona Jurídica | W75: 25000000 | AA75: 25000000 | AB75: 9276710 | AC75: 44253 | AD75: 44253 | AE75: 44632 | AF75: 379 | AN75: X | AQ75: 0.3710684
C76: 2021 | F76: Otros gastos | G76: Otros gastos | H76: Otros gastos | I76: ABONOS A LOS ADULTOS MAYORES BENEFICIARIOS DEL PROGRAMA APOYO SUBSIDIO ECONÓMICO TIPO C. VIGENCIA ENERO A JUNIO 2021 | J76: Inversión | K76: Un Nuevo Contrato Social y Ambiental para la Bogotá del Siglo XXI | L76: 1 | M76: =IF(ISERROR(VLOOKUP(L76,Proposito_programa!$C$2:$E$59,2,FALSE))," ",VLOOKUP(L76,Proposito_programa!$C$2:$E$59,2,FALSE)) -> Subsidios y transferencias para la equidad | N76: =IF(ISERROR(VLOOKUP(L76,Proposito_programa!$C$2:$E$59,3,FALSE))," ",VLOOKUP(L76,Proposito_programa!$C$2:$E$59,3,FALSE)) -> Propósito 1: Hacer un nuevo contrato social para incrementar la inclusión social, productiva y política | O76: 1605 | P76: 1 | Q76: 860066942 | R76: CAJA DE COMPENSACION FAMILIAR COMPENSAR | S76: Persona Jurídica | W76: 322875000 | AA76: 322875000 | AB76: 322875000 | AC76: 44221 | AD76: 44221 | AE76: 44561 | AF76: 365 | AQ76: 1
A77: 1 | B77: 64 | C77: 2021 | D77: FDLC-CPS-064-2021 | E77: https://community.secop.gov.co/Public/Tendering/OpportunityDetail/Index?noticeUID=CO1.NTC.1853093&isFromPublicArea=True&isModal=False | F77: Contratos de prestación de servicios profesionales y de apoyo a la gestión | G77: Contratación directa | H77: Prestación de servicios profesionales y de apoyo a la gestión, o para la ejecución de trabajos artísticos que sólo puedan encomendarse a determinadas personas naturales; | I77: PRESTAR SERVICIOS PROFESIONALES PARA APOYAR JURÍDICAMENTE LA ATENCIÓN DE PETICIONES, REQUERIMIENTOS, ACCIONES CONSTITUCIONALES Y COMISIONES JUDICIALES | J77: Inversión | K77: Un Nuevo Contrato Social y Ambiental para la Bogotá del Siglo XXI | L77: 57 | M77: =IF(ISERROR(VLOOKUP(L77,Proposito_programa!$C$2:$E$59,2,FALSE))," ",VLOOKUP(L77,Proposito_programa!$C$2:$E$59,2,FALSE)) -> Gestión pública local | N77: =IF(ISERROR(VLOOKUP(L77,Proposito_programa!$C$2:$E$59,3,FALSE))," ",VLOOKUP(L77,Proposito_programa!$C$2:$E$59,3,FALSE)) -> Propósito 5: Construir Bogotá - Región con gobierno abierto, transparente y ciudadanía consciente | O77: 2023 | P77: 1 | Q77: 1026291962 | R77: MARIA FERNANDA VACA FLOREZ | S77: Persona Natural | W77: 25128000 | Y77: 1 | Z77: 12564000 | AA77: 37692000 | AB77: 35318800 | AC77: 44272 | AD77: 44272 | AE77: 44546 | AF77: 180 | AG77: 1 | AH77: 90 | AO77: X | AQ77: 0.937037037
A78: 1 | B78: 65 | C78: 2021 | D78: FDLC-CPS-065-2021 | E78: https://community.secop.gov.co/Public/Tendering/OpportunityDetail/Index?noticeUID=CO1.NTC.1857352&isFromPublicArea=True&isModal=true&asPopupView=true | F78: Contratos de prestación de servicios profesionales y de apoyo a la gestión | G78: Contratación directa | H78: Prestación de servicios profesionales y de apoyo a la gestión, o para la ejecución de trabajos artísticos que sólo puedan encomendarse a determinadas personas naturales; | I78: PRESTAR SERVICIOS PROFESIONALES A LA ALCALDÍA LOCAL DE LA CANDELARIA PARA LA FORMULACIÓN Y SEGUIMIENTO DE PLANES, POLITICAS, PROGRAMAS Y PROYECTOS ENMARCADOS EN ACTIVIDADES DE APOYO A PROCESOS DE REACTIVACION ECONOMICA EN LA LOCALIDAD | J78: Inversión | K78: Un Nuevo Contrato Social y Ambiental para la Bogotá del Siglo XXI | L78: 6 | M78: =IF(ISERROR(VLOOKUP(L78,Proposito_programa!$C$2:$E$59,2,FALSE))," ",VLOOKUP(L78,Proposito_programa!$C$2:$E$59,2,FALSE)) -> Sistema Distrital de Cuidado | N78: =IF(ISERROR(VLOOKUP(L78,Proposito_programa!$C$2:$E$59,3,FALSE))," ",VLOOKUP(L78,Proposito_programa!$C$2:$E$59,3,FALSE)) -> Propósito 1: Hacer un nuevo contrato social para incrementar la inclusión social, productiva y política | O78: 1628 | P78: 1 | Q78: 79443949 | R78: JORGE ERNESTO MONTOYA URIBE | S78: Persona Natural | W78: 46008000 | X78: -1192800 | Y78: 1 | Z78: 2215200 | AA78: 47030400 | AB78: 43111200 | AC78: 44273 | AD78: 44273 | AE78: 44560 | AF78: 270 | AH78: 13 | AO78: X | AQ78: 0.9166666667
A79: 1 | B79: 66 | C79: 2021 | D79: FDLC-SABM-001-2021 | E79: https://community.secop.gov.co/Public/Tendering/OpportunityDetail/Index?noticeUID=CO1.NTC.1866696&isFromPublicArea=True&isModal=False | F79: Contratos de prestación de servicios | G79: Régimen especial | H79: Decreto 92 de 2017 | I79: LA SCB ACTUANDO EN NOMBRE PROPIO PERO POR CUENTA DE LA ENTIDAD,QUIEN EN VIRTUD DE ESTE CONTRATO DE COMISION OSTENTA LA CALIDAD DE COMISIONISTA COMPRADOR, ADQUIRIRÁ EN EL MERCADO DE COMPRAS PUBLICAS (MCP), "CONTRATAR EL SERVICIO DE VIGILANCIA Y SEGURIDAD PRIVADA INTEGRAL PERMANENTE PARA TODOS LOS BIENES MUEBLES E INMUEBLES DE PROPIEDAD DE LA ENTIDAD Y DE LOS QUE ES LEGALMENTE O LLEGARA A SER RESPONSABLE, EL FONDO DE DESARROLLO LOCAL DE LA CANDELARIA | J79: Funcionamiento | K79: Un Nuevo Contrato Social y Ambiental para la Bogotá del Siglo XXI | L79: No aplica | M79: =IF(ISERROR(VLOOKUP(L79,Proposito_programa!$C$2:$E$59,2,FALSE))," ",VLOOKUP(L79,Proposito_programa!$C$2:$E$59,2,FALSE)) ->  | N79: =IF(ISERROR(VLOOKUP(L79,Proposito_programa!$C$2:$E$59,3,FALSE))," ",VLOOKUP(L79,Proposito_programa!$C$2:$E$59,3,FALSE)) ->  | P79: 1 | Q79: 830103828 | R79: AGROBOLSA | S79: Persona Jurídica | W79: 804459085 | AA79: 804459085 | AB79: 652196703 | AC79: 44278 | AD79: 44287 | AE79: 44581 | AF79: 294 | AO79: X | AQ79: =IF(ISERROR(AB79/AA79),"-",(AB79/AA79)) -> 0.810727003
A80: 1 | B80: 67 | C80: 2021 | D80: FDLC-CPS-067-2021 | E80: https://community.secop.gov.co/Public/Tendering/OpportunityDetail/Index?noticeUID=CO1.NTC.1867014&isFromPublicArea=True&isModal=False | F80: Contratos de prestación de servicios profesionales y de apoyo a la gestión | G80: Contratación directa | H80: Prestación de servicios profesionales y de apoyo a la gestión, o para la ejecución de trabajos artísticos que sólo puedan encomendarse a determinadas personas naturales; | I80: PRESTAR SERVICIOS PROFESIONALES AL FONDO DE DESARROLLO LOCAL DE LA CANDELARIA PARA LA FORMULACIÓN Y SEGUIMIENTO DE PLANES, POLITICAS PROGRAMAS Y PROYECTOS RELACIONADOS CON LA ESTRATEGIA DE CUIDADO, PREVENCIÓN DE VIOLENCIAS Y PROYECTOS CON ENFOQUE DE GÉNERO DEL PLAN DE DESARROLLO LOCAL | J80: Inversión | K80: Un Nuevo Contrato Social y Ambiental para la Bogotá del Siglo XXI | L80: 6 | M80: =IF(ISERROR(VLOOKUP(L80,Proposito_programa!$C$2:$E$59,2,FALSE))," ",VLOOKUP(L80,Proposito_programa!$C$2:$E$59,2,FALSE)) -> Sistema Distrital de Cuidado | N80: =IF(ISERROR(VLOOKUP(L80,Proposito_programa!$C$2:$E$59,3,FALSE))," ",VLOOKUP(L80,Proposito_programa!$C$2:$E$59,3,FALSE)) -> Propósito 1: Hacer un nuevo contrato social para incrementar la inclusión social, productiva y política | O80: 1663 | P80: 1 | Q80: 1032470720 | R80: YAISIR MARIA VIDAL SANCHEZ | S80: Persona Natural | W80: 30672000 | Y80: 1 | Z80: 15336000 | AA80: =+W80+X80+Z80 -> 46008000 | AB80: 37147200 | AC80: 44278 | AD80: 44278 | AE80: 44552 | AF80: 180 | AH80: 90 | AI80: 51857380 | AJ80: LUZ MIREYA ROMERO | AK80: 44520 | AL80: 5282400 | AO80: X | AQ80: 0.8074074074
A81: 1 | B81: 68 | C81: 2021 | D81: FDLC-CPS-068-2021 | E81: https://community.secop.gov.co/Public/Tendering/OpportunityDetail/Index?noticeUID=CO1.NTC.1866852&isFromPublicArea=True&isModal=False | F81: Contratos de prestación de servicios profesionales y de apoyo a la gestión | G81: Contratación directa | H81: Prestación de servicios profesionales y de apoyo a la gestión, o para la ejecución de trabajos artísticos que sólo puedan encomendarse a determinadas personas naturales; | I81: PRESTAR SERVICIOS DE APOYO TÉCNICO AL ONDO DE DESARROLLO LOCAL DE LA CANDELARIA EN LAS GESTIONES ADMINISTRATIVAS RELACIONADAS CON EL CONJUNTO DE ACTIVIDADES PARA EL DESARROLLO DE LOS EJERCICIOS DE PARTICIPACIÓN E INTERLOCUCIÓN CON LA COMUNIDAD DE LA LOCALIDAD | J81: Inversión | K81: Un Nuevo Contrato Social y Ambiental para la Bogotá del Siglo XXI | L81: 55 | M81: =IF(ISERROR(VLOOKUP(L81,Proposito_programa!$C$2:$E$59,2,FALSE))," ",VLOOKUP(L81,Proposito_programa!$C$2:$E$59,2,FALSE)) -> Fortalecimiento de cultura ciudadana y su institucionalidad | N81: =IF(ISERROR(VLOOKUP(L81,Proposito_programa!$C$2:$E$59,3,FALSE))," ",VLOOKUP(L81,Proposito_programa!$C$2:$E$59,3,FALSE)) -> Propósito 5: Construir Bogotá - Región con gobierno abierto, transparente y ciudadanía consciente | O81: 2019 | P81: 1 | Q81: 1010223608 | R81: LAURA CAMILA QUIROGA MILLAN | S81: Persona Natural | W81: 25002000 | Y81: 1 | Z81: 1759400 | AA81: 26761400 | AB81: 22964800 | AC81: 44278 | AD81: 44278 | AE81: 44571 | AF81: 270 | AH81: 19 | AO81: X | AQ81: 0.8581314879
A82: 1 | B82: 69 | C82: 2021 | D82: FDLC-CPS-069-2021 | E82: https://community.secop.gov.co/Public/Tendering/OpportunityDetail/Index?noticeUID=CO1.NTC.1869283&isFromPublicArea=True&isModal=true&asPopupView=true | F82: Contratos de prestación de servicios profesionales y de apoyo a la gestión | G82: Contratación directa | H82: Prestación de servicios profesionales y de apoyo a la gestión, o para la ejecución de trabajos artísticos que sólo puedan encomendarse a determinadas personas naturales; | I82: PRESTAR SERVICIOS DE APOYO EN LAS ACTIVIDADES DE SEGURIDAD Y CONVIVENCIA CIUDADANA, DE ACUERDO A LAS NECESIDADES Y ESTRATEGIAS DE LA ALCALDIA LOCAL DE LA CANDELARIA | J82: Inversión | K82: Un Nuevo Contrato Social y Ambiental para la Bogotá del Siglo XXI | L82: 43 | M82: =IF(ISERROR(VLOOKUP(L82,Proposito_programa!$C$2:$E$59,2,FALSE))," ",VLOOKUP(L82,Proposito_programa!$C$2:$E$59,2,FALSE)) -> Cultura ciudadana para la confianza, la convivencia y la participación desde la vida cotidiana | N82: =IF(ISERROR(VLOOKUP(L82,Proposito_programa!$C$2:$E$59,3,FALSE))," ",VLOOKUP(L82,Proposito_programa!$C$2:$E$59,3,FALSE)) -> Propósito 3: Inspirar confianza y legitimidad para vivir sin miedo y ser epicentro de cultura ciudadana, paz y reconciliación | O82: 1785 | P82: 1 | Q82: 52060667 | R82: NELLY CONTRERAS ROJAS | S82: Persona Natural | W82: 14220000 | Y82: 1 | Z82: 1211333 | AA82: 15431333 | AB82: 14641333 | AC82: 44279 | AD82: 44279 | AE82: 44576 | AF82: 270 | AH82: 23 | AO82: X | AQ82: 0.9488054596
A83: 1 | B83: 70 | C83: 2021 | D83: FDLC-CPS-070-2021 | E83: https://community.secop.gov.co/Public/Tendering/OpportunityDetail/Index?noticeUID=CO1.NTC.1869240&isFromPublicArea=True&isModal=true&asPopupView=true | F83: Contratos de prestación de servicios profesionales y de apoyo a la gestión | G83: Contratación directa | H83: Prestación de servicios profesionales y de apoyo a la gestión, o para la ejecución de trabajos artísticos que sólo puedan encomendarse a determinadas personas naturales; | I83: PRESTAR SERVICIOS DE APOYO EN LAS ACTIVIDADES DE SEGURIDAD Y CONVIVENCIA CIUDADANA, DE ACUERDO A LAS NECESIDADES Y ESTRATEGIAS DE LA ALCALDIA LOCAL DE LA CANDELARIA | J83: Inversión | K83: Un Nuevo Contrato Social y Ambiental para la Bogotá del Siglo XXI | L83: 43 | M83: =IF(ISERROR(VLOOKUP(L83,Proposito_programa!$C$2:$E$59,2,FALSE))," ",VLOOKUP(L83,Proposito_programa!$C$2:$E$59,2,FALSE)) -> Cultura ciudadana para la confianza, la convivencia y la participación desde la vida cotidiana | N83: =IF(ISERROR(VLOOKUP(L83,Proposito_programa!$C$2:$E$59,3,FALSE))," ",VLOOKUP(L83,Proposito_programa!$C$2:$E$59,3,FALSE)) -> Propósito 3: Inspirar confianza y legitimidad para vivir sin miedo y ser epicentro de cultura ciudadana, paz y reconciliación | O83: 1785 | P83: 1 | Q83: 1010203707 | R83: MICHAEL FELIPE RAMIREZ GARCIA | S83: Persona Natural | W83: 14220000 | Y83: 1 | Z83: 1211333 | AA83: 15431333 | AB83: 14641333 | AC83: 44279 | AD83: 44279 | AE83: 44576 | AF83: 270 | AH83: 23 | AO83: X | AQ83: 0.9488054596
A84: 1 | B84: 71 | C84: 2021 | D84: FDLC-CPS-071-2021 | E84: https://community.secop.gov.co/Public/Tendering/OpportunityDetail/Index?noticeUID=CO1.NTC.1869239&isFromPublicArea=True&isModal=true&asPopupView=true | F84: Contratos de prestación de servicios profesionales y de apoyo a la gestión | G84: Contratación directa | H84: Prestación de servicios profesionales y de apoyo a la gestión, o para la ejecución de trabajos artísticos que sólo puedan encomendarse a determinadas personas naturales; | I84: PRESTAR SERVICIOS DE APOYO EN LAS ACTIVIDADES DE SEGURIDAD Y CONVIVENCIA CIUDADANA, DE ACUERDO A LAS NECESIDADES Y ESTRATEGIAS DE LA ALCALDIA LOCAL DE LA CANDELARIA | J84: Inversión | K84: Un Nuevo Contrato Social y Ambiental para la Bogotá del Siglo XXI | L84: 43 | M84: =IF(ISERROR(VLOOKUP(L84,Proposito_programa!$C$2:$E$59,2,FALSE))," ",VLOOKUP(L84,Proposito_programa!$C$2:$E$59,2,FALSE)) -> Cultura ciudadana para la confianza, la convivencia y la participación desde la vida cotidiana | N84: =IF(ISERROR(VLOOKUP(L84,Proposito_programa!$C$2:$E$59,3,FALSE))," ",VLOOKUP(L84,Proposito_programa!$C$2:$E$59,3,FALSE)) -> Propósito 3: Inspirar confianza y legitimidad para vivir sin miedo y ser epicentro de cultura ciudadana, paz y reconciliación | O84: 1785 | P84: 1 | Q84: 1051654292 | R84: TITO JOSÉ MUTIS VALEST | S84: Persona Natural | W84: 14220000 | Y84: 1 | Z84: 1211333 | AA84: 15431333 | AB84: 14641333 | AC84: 44279 | AD84: 44279 | AE84: 44576 | AF84: 270 | AH84: 23 | AO84: X | AQ84: 0.9488054596
A85: 1 | B85: 72 | C85: 2021 | D85: FDLC-CPS-072-2021 | E85: https://community.secop.gov.co/Public/Tendering/OpportunityDetail/Index?noticeUID=CO1.NTC.1868886&isFromPublicArea=True&isModal=False | F85: Contratos de prestación de servicios profesionales y de apoyo a la gestión | G85: Contratación directa | H85: Prestación de servicios profesionales y de apoyo a la gestión, o para la ejecución de trabajos artísticos que sólo puedan encomendarse a determinadas personas naturales; | I85: PRESTAR SERVICIOS DE APOYO EN LAS ACTIVIDADES DE SEGURIDAD Y CONVIVENCIA CIUDADANA, DE ACUERDO A LAS NECESIDADES Y ESTRATEGIAS DE LA ALCALDIA LOCAL DE LA CANDELARIA | J85: Inversión | K85: Un Nuevo Contrato Social y Ambiental para la Bogotá del Siglo XXI | L85: 43 | M85: =IF(ISERROR(VLOOKUP(L85,Proposito_programa!$C$2:$E$59,2,FALSE))," ",VLOOKUP(L85,Proposito_programa!$C$2:$E$59,2,FALSE)) -> Cultura ciudadana para la confianza, la convivencia y la participación desde la vida cotidiana | N85: =IF(ISERROR(VLOOKUP(L85,Proposito_programa!$C$2:$E$59,3,FALSE))," ",VLOOKUP(L85,Proposito_programa!$C$2:$E$59,3,FALSE)) -> Propósito 3: Inspirar confianza y legitimidad para vivir sin miedo y ser epicentro de cultura ciudadana, paz y reconciliación | O85: 1785 | P85: 1 | Q85: 1010236602 | R85: IVAN FELIPE SIERRA SANCHEZ | S85: Persona Natural | W85: 14220000 | Y85: 1 | Z85: 1211333 | AA85: 15431333 | AB85: 13008667 | AC85: 44279 | AD85: 44279 | AE85: 44576 | AF85: 240 | AG85: 1 | AH85: 23 | AO85: X | AQ85: 0.8430034528
A86: 1 | B86: 73 | C86: 2021 | D86: FDLC-CPS-073-2021 | E86: https://community.secop.gov.co/Public/Tendering/OpportunityDetail/Index?noticeUID=CO1.NTC.1872316&isFromPublicArea=True&isModal=true&asPopupView=true | F86: Contratos de prestación de servicios profesionales y de apoyo a la gestión | G86: Contratación directa | H86: Prestación de servicios profesionales y de apoyo a la gestión, o para la ejecución de trabajos artísticos que sólo puedan encomendarse a determinadas personas naturales; | I86: PRESTAR SERVICIOS DE APOYO EN LAS ACTIVIDADES DE SEGURIDAD Y CONVIVENCIA CIUDADANA, DE ACUERDO A LAS NECESIDADES Y ESTRATEGIAS DE LA ALCALDIA LOCAL DE LA CANDELARIA | J86: Inversión | K86: Un Nuevo Contrato Social y Ambiental para la Bogotá del Siglo XXI | L86: 43 | M86: =IF(ISERROR(VLOOKUP(L86,Proposito_programa!$C$2:$E$59,2,FALSE))," ",VLOOKUP(L86,Proposito_programa!$C$2:$E$59,2,FALSE)) -> Cultura ciudadana para la confianza, la convivencia y la participación desde la vida cotidiana | N86: =IF(ISERROR(VLOOKUP(L86,Proposito_programa!$C$2:$E$59,3,FALSE))," ",VLOOKUP(L86,Proposito_programa!$C$2:$E$59,3,FALSE)) -> Propósito 3: Inspirar confianza y legitimidad para vivir sin miedo y ser epicentro de cultura ciudadana, paz y reconciliación | O86: 1785 | P86: 1 | Q86: 10101195092 | R86: MAYRA LIZETH DELGADO ACERO | S86: Persona Natural | W86: 14220000 | Y86: 1 | Z86: 1158667 | AA86: =+W86+X86+Z86 -> 15378667 | AB86: 11376000 | AC86: 44280 | AD86: 44280 | AE86: 44576 | AF86: 270 | AH86: 22 | AI86: 79579031 | AJ86: WILSON QUIROGA QUIROGA | AK86: 44530 | AL86: 1264000 | AO86: X | AQ86: 0.7397260114
A87: 1 | B87: 74 | C87: 2021 | D87: FDLC-CPS-074-2021 | E87: https://community.secop.gov.co/Public/Tendering/OpportunityDetail/Index?noticeUID=CO1.NTC.1871988&isFromPublicArea=True&isModal=true&asPopupView=true | F87: Contratos de prestación de servicios profesionales y de apoyo a la gestión | G87: Contratación directa | H87: Prestación de servicios profesionales y de apoyo a la gestión, o para la ejecución de trabajos artísticos que sólo puedan encomendarse a determinadas personas naturales; | I87: PRESTAR SERVICIOS DE APOYO EN LAS ACTIVIDADES DE SEGURIDAD Y CONVIVENCIA CIUDADANA, DE ACUERDO A LAS NECESIDADES Y ESTRATEGIAS DE LA ALCALDIA LOCAL DE LA CANDELARIA | J87: Inversión | K87: Un Nuevo Contrato Social y Ambiental para la Bogotá del Siglo XXI | L87: 43 | M87: =IF(ISERROR(VLOOKUP(L87,Proposito_programa!$C$2:$E$59,2,FALSE))," ",VLOOKUP(L87,Proposito_programa!$C$2:$E$59,2,FALSE)) -> Cultura ciudadana para la confianza, la convivencia y la participación desde la vida cotidiana | N87: =IF(ISERROR(VLOOKUP(L87,Proposito_programa!$C$2:$E$59,3,FALSE))," ",VLOOKUP(L87,Proposito_programa!$C$2:$E$59,3,FALSE)) -> Propósito 3: Inspirar confianza y legitimidad para vivir sin miedo y ser epicentro de cultura ciudadana, paz y reconciliación | O87: 1785 | P87: 1 | Q87: 79914457 | R87: TARCISIO TORO ZAMBRANO | S87: Persona Natural | W87: 14220000 | Y87: 1 | Z87: 1158667 | AA87: =+W87+X87+Z87 -> 15378667 | AB87: 14588666 | AC87: 44280 | AD87: 44280 | AE87: 44576 | AF87: 270 | AH87: 22 | AO87: X | AQ87: 0.9486300731
A88: 1 | B88: 75 | C88: 2021 | D88: FDLC-CPS-075-2021 | E88: https://community.secop.gov.co/Public/Tendering/OpportunityDetail/Index?noticeUID=CO1.NTC.1871987&isFromPublicArea=True&isModal=true&asPopupView=true | F88: Contratos de prestación de servicios profesionales y de apoyo a la gestión | G88: Contratación directa | H88: Prestación de servicios profesionales y de apoyo a la gestión, o para la ejecución de trabajos artísticos que sólo puedan encomendarse a determinadas personas naturales; | I88: PRESTAR SERVICIOS PROFESIONALES AL FONDO DE DESARROLLO LOCAL PARA APOYAR LA FORMULACIÓN, EJECUCIÓN, SEGUIMIENTO Y MEJORA CONTINUA DE LAS HERRAMIENTAS QUE CONFORMAN LA GESTIÓN AMBIENTAL INSTITUCIONAL DE LA ALCALDIA LOCAL | J88: Inversión | K88: Un Nuevo Contrato Social y Ambiental para la Bogotá del Siglo XXI | L88: 57 | M88: =IF(ISERROR(VLOOKUP(L88,Proposito_programa!$C$2:$E$59,2,FALSE))," ",VLOOKUP(L88,Proposito_programa!$C$2:$E$59,2,FALSE)) -> Gestión pública local | N88: =IF(ISERROR(VLOOKUP(L88,Proposito_programa!$C$2:$E$59,3,FALSE))," ",VLOOKUP(L88,Proposito_programa!$C$2:$E$59,3,FALSE)) -> Propósito 5: Construir Bogotá - Región con gobierno abierto, transparente y ciudadanía consciente | O88: 2021 | P88: 1 | Q88: 53032345 | R88: SULY PAOLA CONTRERAS CRUZ | S88: Persona Natural | W88: 33504000 | Y88: 1 | Z88: 5025600 | AA88: 38529600 | AB88: 34341600 | AC88: 44280 | AD88: 44280 | AE88: 44560 | AF88: 240 | AH88: 36 | AO88: X | AQ88: 0.8913043478
A89: 1 | B89: 76 | C89: 2020 | D89: FDLC-LP-023-2020 | E89: https://community.secop.gov.co/Public/Tendering/OpportunityDetail/Index?noticeUID=CO1.NTC.1608090&isFromPublicArea=True&isModal=true&asPopupView=true | F89: Obra pública | G89: Licitación pública | H89: No aplica | I89: REALIZAR A PRECIOS UNITARIOS FIJOS LA FASE DE AJUSTES Y OBRA, NECESARIAS PARA LA TERMINACIÓN DE LA CONSTRUCCIÓN DE LA “CASA CULTURAL DEL ZIPA” UBICADA EN LA CALLE 9 N° 3-37 DEL FONDO DE DESARROLLO LOCAL DE LA CANDELARIA | J89: Inversión | K89: Un Nuevo Contrato Social y Ambiental para la Bogotá del Siglo XXI | L89: 21 | M89: =IF(ISERROR(VLOOKUP(L89,Proposito_programa!$C$2:$E$59,2,FALSE))," ",VLOOKUP(L89,Proposito_programa!$C$2:$E$59,2,FALSE)) -> Creación y vida cotidiana: Apropiación ciudadana del arte, la cultura y el patrimonio, para la democracia cultural | N89: =IF(ISERROR(VLOOKUP(L89,Proposito_programa!$C$2:$E$59,3,FALSE))," ",VLOOKUP(L89,Proposito_programa!$C$2:$E$59,3,FALSE)) -> Propósito 1: Hacer un nuevo contrato social para incrementar la inclusión social, productiva y política | O89: 1625 | P89: 11 | Q89: 901468887 | R89: UNIÓN TEMPORAL RESTAURACIÓN ZIPA | S89: Unión Temporal | T89: 800011687 | U89: INCIVIAS S.A.S | V89: 50% | W89: 838211596 | Y89: 1 | Z89: 88118956 | AA89: 926330552 | AB89: 833692792 | AC89: 44286 | AD89: 44315 | AE89: 44513 | AF89: 193 | AG89: 1 | AH89: 30 | AO89: X | AQ89: 0.899994921
A90: 0 | B90: 76 | C90: 2020 | D90: FDLC-LP-023-2020 | E90: https://community.secop.gov.co/Public/Tendering/OpportunityDetail/Index?noticeUID=CO1.NTC.1608090&isFromPublicArea=True&isModal=true&asPopupView=true | F90: Obra pública | G90: Licitación pública | H90: No aplica | I90: REALIZAR A PRECIOS UNITARIOS FIJOS LA FASE DE AJUSTES Y OBRA, NECESARIAS PARA LA TERMINACIÓN DE LA CONSTRUCCIÓN DE LA “CASA CULTURAL DEL ZIPA” UBICADA EN LA CALLE 9 N° 3-37 DEL FONDO DE DESARROLLO LOCAL DE LA CANDELARIA | J90: Inversión | K90: Un Nuevo Contrato Social y Ambiental para la Bogotá del Siglo XXI | L90: 21 | M90: =IF(ISERROR(VLOOKUP(L90,Proposito_programa!$C$2:$E$59,2,FALSE))," ",VLOOKUP(L90,Proposito_programa!$C$2:$E$59,2,FALSE)) -> Creación y vida cotidiana: Apropiación ciudadana del arte, la cultura y el patrimonio, para la democracia cultural | N90: =IF(ISERROR(VLOOKUP(L90,Proposito_programa!$C$2:$E$59,3,FALSE))," ",VLOOKUP(L90,Proposito_programa!$C$2:$E$59,3,FALSE)) -> Propósito 1: Hacer un nuevo contrato social para incrementar la inclusión social, productiva y política | O90: 1625 | P90: 11 | Q90: 901468887 | R90: UNIÓN TEMPORAL RESTAURACIÓN ZIPA | S90: Unión Temporal | T90: 900388354 | U90: VAREGO SOCIEDAD POR ACCIONES SIMPLIFICADA O VAREGO S.A.S | V90: 50% | W90: 0 | AA90: 0 | AB90: 0 | AC90: 44286 | AD90: 44315 | AE90: 44513 | AF90: 193 | AO90: X | AQ90: =IF(ISERROR(AB90/AA90),"-",(AB90/AA90)) -> -
A91: 1 | B91: 77 | C91: 2020 | D91: FDLC-CMA-024-2020 | E91: https://community.secop.gov.co/Public/Tendering/OpportunityDetail/Index?noticeUID=CO1.NTC.1618547&isFromPublicArea=True&isModal=true&asPopupView=true | F91: Interventoría | G91: Concurso de méritos | H91: No aplica | I91: INTERVENTORIA TECNICA, ADMINISTRATIVA, LEGAL, AMBIENTAL, SST Y SOCIAL PARA REALIZAR A PRECIOS UNITARIOS FIJOS LA FASE DE AJUSTES Y OBRA, NECESARIAS PARA LA TERMINACIÓN DE LA CONSTRUCCIÓN DE LA “CASA CULTURAL DEL ZIPA” UBICADA EN LA CALLE 9 N° 3-93 DEL FONDO DE DESARROLLO LOCAL DE LA CANDELARIA | J91: Inversión | K91: Un Nuevo Contrato Social y Ambiental para la Bogotá del Siglo XXI | L91: 21 | M91: =IF(ISERROR(VLOOKUP(L91,Proposito_programa!$C$2:$E$59,2,FALSE))," ",VLOOKUP(L91,Proposito_programa!$C$2:$E$59,2,FALSE)) -> Creación y vida cotidiana: Apropiación ciudadana del arte, la cultura y el patrimonio, para la democracia cultural | N91: =IF(ISERROR(VLOOKUP(L91,Proposito_programa!$C$2:$E$59,3,FALSE))," ",VLOOKUP(L91,Proposito_programa!$C$2:$E$59,3,FALSE)) -> Propósito 1: Hacer un nuevo contrato social para incrementar la inclusión social, productiva y política | O91: 1625 | P91: 2 | Q91: 901465521 | R91: CONSORCIO EMUNARKING | S91: Consorcio | T91: 901200185 | U91: EMUNAH SAS | V91: 50% | W91: 119515360 | Y91: 1 | Z91: 21577318 | AA91: =+W91+X91+Z91 -> 141092678 | AB91: 103458760 | AC91: 44286 | AD91: 44315 | AE91: 44513 | AF91: 193 | AG91: 1 | AH91: 30 | AO91: X | AQ91: 0.7332681006
A92: 0 | B92: 77 | C92: 2020 | D92: FDLC-CMA-024-2020 | E92: https://community.secop.gov.co/Public/Tendering/OpportunityDetail/Index?noticeUID=CO1.NTC.1618547&isFromPublicArea=True&isModal=true&asPopupView=true | F92: Interventoría | G92: Concurso de méritos | H92: No aplica | I92: INTERVENTORIA TECNICA, ADMINISTRATIVA, LEGAL, AMBIENTAL, SST Y SOCIAL PARA REALIZAR A PRECIOS UNITARIOS FIJOS LA FASE DE AJUSTES Y OBRA, NECESARIAS PARA LA TERMINACIÓN DE LA CONSTRUCCIÓN DE LA “CASA CULTURAL DEL ZIPA” UBICADA EN LA CALLE 9 N° 3-93 DEL FONDO DE DESARROLLO LOCAL DE LA CANDELARIA | J92: Inversión | K92: Un Nuevo Contrato Social y Ambiental para la Bogotá del Siglo XXI | L92: 21 | M92: =IF(ISERROR(VLOOKUP(L92,Proposito_programa!$C$2:$E$59,2,FALSE))," ",VLOOKUP(L92,Proposito_programa!$C$2:$E$59,2,FALSE)) -> Creación y vida cotidiana: Apropiación ciudadana del arte, la cultura y el patrimonio, para la democracia cultural | N92: =IF(ISERROR(VLOOKUP(L92,Proposito_programa!$C$2:$E$59,3,FALSE))," ",VLOOKUP(L92,Proposito_programa!$C$2:$E$59,3,FALSE)) -> Propósito 1: Hacer un nuevo contrato social para incrementar la inclusión social, productiva y política | O92: 1625 | P92: 2 | Q92: 901465521 | R92: CONSORCIO EMUNARKING | S92: Consorcio | T92: 901368055 | U92: ARKING OBRAS Y CONSULTORÍAS SAS | V92: 50% | W92: 0 | AA92: 0 | AB92: 0 | AC92: 44286 | AD92: 44315 | AE92: 44513 | AF92: 193 | AG92: 1 | AH92: 30 | AO92: X | AQ92: -
A93: 1 | B93: 78 | C93: 2021 | D93: FDLC-CPS-078-2021 | E93: https://community.secop.gov.co/Public/Tendering/OpportunityDetail/Index?noticeUID=CO1.NTC.1875707&isFromPublicArea=True&isModal=true&asPopupView=true | F93: Contratos de prestación de servicios profesionales y de apoyo a la gestión | G93: Contratación directa | H93: Prestación de servicios profesionales y de apoyo a la gestión, o para la ejecución de trabajos artísticos que sólo puedan encomendarse a determinadas personas naturales; | I93: PRESTAR SERVICIOS DE APOYO EN LAS ACTIVIDADES DE SEGURIDAD Y CONVIVENCIA CIUDADANA, DE ACUERDO A LAS NECESIDADES Y ESTRATEGIAS DE LA ALCALDIA LOCAL DE LA CANDELARIA | J93: Inversión | K93: Un Nuevo Contrato Social y Ambiental para la Bogotá del Siglo XXI | L93: 43 | M93: =IF(ISERROR(VLOOKUP(L93,Proposito_programa!$C$2:$E$59,2,FALSE))," ",VLOOKUP(L93,Proposito_programa!$C$2:$E$59,2,FALSE)) -> Cultura ciudadana para la confianza, la convivencia y la participación desde la vida cotidiana | N93: =IF(ISERROR(VLOOKUP(L93,Proposito_programa!$C$2:$E$59,3,FALSE))," ",VLOOKUP(L93,Proposito_programa!$C$2:$E$59,3,FALSE)) -> Propósito 3: Inspirar confianza y legitimidad para vivir sin miedo y ser epicentro de cultura ciudadana, paz y reconciliación | O93: 1785 | P93: 1 | Q93: 39781586 | R93: ALEXI NORVEI OSORIO RUIZ | S93: Persona Natural | W93: 14220000 | Y93: 1 | Z93: 1106000 | AA93: =+W93+X93+Z93 -> 15326000 | AB93: 14535999 | AC93: 44281 | AD93: 44281 | AE93: 44576 | AF93: 270 | AH93: 21 | AO93: X | AQ93: 0.948453543
A94: 1 | B94: 79 | C94: 2021 | D94: FDLC-CPS-079-2021 | E94: https://community.secop.gov.co/Public/Tendering/OpportunityDetail/Index?noticeUID=CO1.NTC.1875488&isFromPublicArea=True&isModal=true&asPopupView=true | F94: Contratos de prestación de servicios profesionales y de apoyo a la gestión | G94: Contratación directa | H94: Prestación de servicios profesionales y de apoyo a la gestión, o para la ejecución de trabajos artísticos que sólo puedan encomendarse a determinadas personas naturales; | I94: PRESTAR SERVICIOS DE APOYO EN LAS ACTIVIDADES DE SEGURIDAD Y CONVIVENCIA CIUDADANA, DE ACUERDO A LAS NECESIDADES Y ESTRATEGIAS DE LA ALCALDIA LOCAL DE LA CANDELARIA | J94: Inversión | K94: Un Nuevo Contrato Social y Ambiental para la Bogotá del Siglo XXI | L94: 43 | M94: =IF(ISERROR(VLOOKUP(L94,Proposito_programa!$C$2:$E$59,2,FALSE))," ",VLOOKUP(L94,Proposito_programa!$C$2:$E$59,2,FALSE)) -> Cultura ciudadana para la confianza, la convivencia y la participación desde la vida cotidiana | N94: =IF(ISERROR(VLOOKUP(L94,Proposito_programa!$C$2:$E$59,3,FALSE))," ",VLOOKUP(L94,Proposito_programa!$C$2:$E$59,3,FALSE)) -> Propósito 3: Inspirar confianza y legitimidad para vivir sin miedo y ser epicentro de cultura ciudadana, paz y reconciliación | O94: 1785 | P94: 1 | Q94: 79984961 | R94: JOHN STEVE TIMBERLAKE OSORIO | S94: Persona Natural | W94: 14220000 | Y94: 1 | Z94: 1106000 | AA94: =+W94+X94+Z94 -> 15326000 | AB94: 14535999 | AC94: 44281 | AD94: 44281 | AE94: 44576 | AF94: 270 | AH94: 21 | AO94: X | AQ94: 0.948453543
A95: 1 | B95: 80 | C95: 2021 | D95: FDLC-CPS-080-2021 | E95: https://community.secop.gov.co/Public/Tendering/OpportunityDetail/Index?noticeUID=CO1.NTC.1875724&isFromPublicArea=True&isModal=true&asPopupView=true | F95: Contratos de prestación de servicios profesionales y de apoyo a la gestión | G95: Contratación directa | H95: Prestación de servicios profesionales y de apoyo a la gestión, o para la ejecución de trabajos artísticos que sólo puedan encomendarse a determinadas personas naturales; | I95: PRESTAR SERVICIOS PROFESIONALES AL FONDO DE DESARROLLO LOCAL DE LA CANDELARIA PARA APOYAR LA GESTION DE LOS ASUNTOS RELACIONADOS CON SEGURIDAD CIUDADANA Y CONVIVENCIA EN EL ESPACIO PÚBLICO DE LA LOCALIDAD | J95: Inversión | K95: Un Nuevo Contrato Social y Ambiental para la Bogotá del Siglo XXI | L95: 45 | M95: =IF(ISERROR(VLOOKUP(L95,Proposito_programa!$C$2:$E$59,2,FALSE))," ",VLOOKUP(L95,Proposito_programa!$C$2:$E$59,2,FALSE)) -> Espacio público más seguro y construido colectivamente | N95: =IF(ISERROR(VLOOKUP(L95,Proposito_programa!$C$2:$E$59,3,FALSE))," ",VLOOKUP(L95,Proposito_programa!$C$2:$E$59,3,FALSE)) -> Propósito 3: Inspirar confianza y legitimidad para vivir sin miedo y ser epicentro de cultura ciudadana, paz y reconciliación | O95: 1786 | P95: 1 | Q95: 65588590 | R95: LILIANA CECILIA OJEDA TIRADO | S95: Persona Natural | W95: 37692000 | Y95: 1 | Z95: 16752000 | AA95: 54444000 | AB95: 34202000 | AC95: 44281 | AD95: 44281 | AE95: 44676 | AF95: 270 | AG95: 1 | AH95: 120 | AI95: 12005600 | AJ95: ANDRES FELIPE RODRIGUEZ VERDUGO | AK95: 44469 | AL95: 44951200 | AO95: X | AQ95: 0.6282051282
A96: 1 | B96: 81 | C96: 2021 | D96: FDLC-CPS-081-2021 | E96: https://community.secop.gov.co/Public/Tendering/OpportunityDetail/Index?noticeUID=CO1.NTC.1907560&isFromPublicArea=True&isModal=true&asPopupView=true | F96: Contratos de prestación de servicios profesionales y de apoyo a la gestión | G96: Contratación directa | H96: Prestación de servicios profesionales y de apoyo a la gestión, o para la ejecución de trabajos artísticos que sólo puedan encomendarse a determinadas personas naturales; | I96: PRESTAR SERVICIOS PROFESIONALES AL FONDO DE DESARROLLO LOCAL DE LA CANDELARIA PARA APOYAR LA ARTICULACIÓN ENTRE EL DESPACHO DE LA ALCALDESA LOCAL CON LOS PROCESOS DE CONTRATACIÓN Y PLANEACIÓN EN LOS ASUNTOS PRIORITARIOS Y ESTRATÉGICOS PARA LA GESTIÓN CONTRACTUAL | J96: Inversión | K96: Un Nuevo Contrato Social y Ambiental para la Bogotá del Siglo XXI | L96: 57 | M96: =IF(ISERROR(VLOOKUP(L96,Proposito_programa!$C$2:$E$59,2,FALSE))," ",VLOOKUP(L96,Proposito_programa!$C$2:$E$59,2,FALSE)) -> Gestión pública local | N96: =IF(ISERROR(VLOOKUP(L96,Proposito_programa!$C$2:$E$59,3,FALSE))," ",VLOOKUP(L96,Proposito_programa!$C$2:$E$59,3,FALSE)) -> Propósito 5: Construir Bogotá - Región con gobierno abierto, transparente y ciudadanía consciente | O96: 2021 | P96: 1 | Q96: 1032363826 | R96: PAOLA ANDREA PADILLA AYARZA | S96: Persona Natural | W96: 43350000 | Y96: 1 | Z96: 4080000 | AA96: 47430000 | AB96: 44200000 | AC96: 44298 | AD96: 44298 | AE96: 44580 | AF96: 255 | AH96: 24 | AO96: X | AQ96: 0.9318996416
A97: 1 | B97: 82 | C97: 2021 | D97: FDLC-CPS-082-2021 | E97: https://community.secop.gov.co/Public/Tendering/OpportunityDetail/Index?noticeUID=CO1.NTC.1910126&isFromPublicArea=True&isModal=true&asPopupView=true | F97: Contratos de prestación de servicios profesionales y de apoyo a la gestión | G97: Contratación directa | H97: Prestación de servicios profesionales y de apoyo a la gestión, o para la ejecución de trabajos artísticos que sólo puedan encomendarse a determinadas personas naturales; | I97: PRESTAR SERVICIOS PROFESIONALES AL FONDO DE DESARROLLO LOCAL DE LA CANDELARIA EN LOS TRÁMITES RELACIONADOS CON LOS PROCESOS PRECONTRACTUALES, CONTRACTUALES Y POS CONTRACTUALES, ASÍ COMO LA ADQUISICIÓN DE BIENES Y SERVICIOS A TRAVÉS DE LA TIENDA VIRTUAL DEL ESTADO COLOMBIANO | J97: Inversión | K97: Un Nuevo Contrato Social y Ambiental para la Bogotá del Siglo XXI | L97: 57 | M97: =IF(ISERROR(VLOOKUP(L97,Proposito_programa!$C$2:$E$59,2,FALSE))," ",VLOOKUP(L97,Proposito_programa!$C$2:$E$59,2,FALSE)) -> Gestión pública local | N97: =IF(ISERROR(VLOOKUP(L97,Proposito_programa!$C$2:$E$59,3,FALSE))," ",VLOOKUP(L97,Proposito_programa!$C$2:$E$59,3,FALSE)) -> Propósito 5: Construir Bogotá - Región con gobierno abierto, transparente y ciudadanía consciente | O97: 2021 | P97: 1 | Q97: 91519052 | R97: HELBERTH ANTONIO LOPEZ PEDRAZA | S97: Persona Natural | W97: 42456000 | X97: -18043800 | AA97: 24412200 | AB97: 24412200 | AC97: 44299 | AD97: 44299 | AE97: 44542 | AF97: 240 | AO97: X | AQ97: 1
A98: 1 | B98: 83 | C98: 2021 | D98: FDLC-CPS-083-2021 | E98: https://community.secop.gov.co/Public/Tendering/OpportunityDetail/Index?noticeUID=CO1.NTC.1912063&isFromPublicArea=True&isModal=true&asPopupView=true | F98: Contratos de prestación de servicios profesionales y de apoyo a la gestión | G98: Contratación directa | H98: Prestación de servicios profesionales y de apoyo a la gestión, o para la ejecución de trabajos artísticos que sólo puedan encomendarse a determinadas personas naturales; | I98: PRESTAR SERVICIOS PROFESIONALES AL FONDO DE DESARROLLO LOCAL DE LA CANDELARIA PARA LA FORMULACIÓN Y SEGUIMIENTO A LA EJECUCIÓN DE PLANES, POLÍTICAS PROGRAMAS Y PROYECTOS RELACIONADOS CON DOTACIÓN DE COLEGIOS Y PROGRAMAS RELACIONADOS CON EDUCACIÓN Y DESARROLLO INTEGRAL | J98: Inversión | K98: Un Nuevo Contrato Social y Ambiental para la Bogotá del Siglo XXI | L98: 12 | M98: =IF(ISERROR(VLOOKUP(L98,Proposito_programa!$C$2:$E$59,2,FALSE))," ",VLOOKUP(L98,Proposito_programa!$C$2:$E$59,2,FALSE)) -> Educación inicial: Bases sólidas para la vida. | N98: =IF(ISERROR(VLOOKUP(L98,Proposito_programa!$C$2:$E$59,3,FALSE))," ",VLOOKUP(L98,Proposito_programa!$C$2:$E$59,3,FALSE)) -> Propósito 1: Hacer un nuevo contrato social para incrementar la inclusión social, productiva y política | O98: 1608 | P98: 1 | Q98: 41648295 | R98: ISABEL SANCHEZ RODRIGUEZ | S98: Persona Natural | W98: 20448000 | AA98: 20448000 | AB98: 20448000 | AC98: 44300 | AD98: 44300 | AE98: 44421 | AF98: 120 | AO98: X | AQ98: 1
A99: 1 | B99: 84 | C99: 2021 | D99: FDLC-CPS-084-2021 | E99: https://community.secop.gov.co/Public/Tendering/OpportunityDetail/Index?noticeUID=CO1.NTC.1912533&isFromPublicArea=True&isModal=true&asPopupView=true | F99: Contratos de prestación de servicios profesionales y de apoyo a la gestión | G99: Contratación directa | H99: Prestación de servicios profesionales y de apoyo a la gestión, o para la ejecución de trabajos artísticos que sólo puedan encomendarse a determinadas personas naturales; | I99: PRESTAR SERVICIOS PROFESIONALES AL FONDO DE DESARROLLO LOCAL DE LA CANDELARIA PARA LA FORMULACIÓN Y SEGUIMIENTO A LA EJECUCIÓN DE PLANES, POLÍTICAS PROGRAMAS Y PROYECTOS RELACIONADOS CON DOTACIÓN DE COLEGIOS Y PROGRAMAS RELACIONADOS CON EDUCACIÓN Y DESARROLLO INTEGRAL | J99: Inversión | K99: Un Nuevo Contrato Social y Ambiental para la Bogotá del Siglo XXI | L99: 14 | M99: =IF(ISERROR(VLOOKUP(L99,Proposito_programa!$C$2:$E$59,2,FALSE))," ",VLOOKUP(L99,Proposito_programa!$C$2:$E$59,2,FALSE)) -> Formación integral: más y mejor tiempo en los colegios | N99: =IF(ISERROR(VLOOKUP(L99,Proposito_programa!$C$2:$E$59,3,FALSE))," ",VLOOKUP(L99,Proposito_programa!$C$2:$E$59,3,FALSE)) -> Propósito 1: Hacer un nuevo contrato social para incrementar la inclusión social, productiva y política | O99: 1606 | P99: 1 | Q99: 1032451555 | R99: CRISTHIAN BRAINER PEÑA ORTIZ | S99: Persona Natural | W99: 30672000 | AA99: 30672000 | AB99: 30672000 | AC99: 44300 | AD99: 44300 | AE99: 44482 | AF99: 180 | AO99: X | AQ99: 1
A100: 1 | B100: 85 | C100: 2021 | D100: FDLC-CPS-085-2021 | E100: https://community.secop.gov.co/Public/Tendering/OpportunityDetail/Index?noticeUID=CO1.NTC.1912286&isFromPublicArea=True&isModal=true&asPopupView=true | F100: Contratos de prestación de servicios profesionales y de apoyo a la gestión | G100: Contratación directa | H100: Prestación de servicios profesionales y de apoyo a la gestión, o para la ejecución de trabajos artísticos que sólo puedan encomendarse a determinadas personas naturales; | I100: PRESTAR SERVICIOS PROFESIONALES AL FONDO DE DESARROLLO LOCAL DE LA CANDELARIA PARA LA FORMULACIÓN Y APOYO TÉCNICO EN EL SEGUIMIENTO DE PLANES, POLÍTICAS PROGRAMAS Y PROYECTOS ENMARCADOS ACTIVIDADES APOYO A PROCESOS EDUCATIVOS ASÍ COMO PROGRAMAS DE ACCESO A LA EDUCACION SUPERIOR | J100: Inversión | K100: Un Nuevo Contrato Social y Ambiental para la Bogotá del Siglo XXI | L100: 17 | M100: =IF(ISERROR(VLOOKUP(L100,Proposito_programa!$C$2:$E$59,2,FALSE))," ",VLOOKUP(L100,Proposito_programa!$C$2:$E$59,2,FALSE)) -> Jóvenes con capacidades: Proyecto de vida para la ciudadanía, la innovación y el trabajo del siglo XXI | N100: =IF(ISERROR(VLOOKUP(L100,Proposito_programa!$C$2:$E$59,3,FALSE))," ",VLOOKUP(L100,Proposito_programa!$C$2:$E$59,3,FALSE)) -> Propósito 1: Hacer un nuevo contrato social para incrementar la inclusión social, productiva y política | O100: 1607 | P100: 1 | Q100: 40020996 | R100: ANA MERCEDES PEDROZA ARIAS | S100: Persona Natural | W100: 30672000 | AA100: 30672000 | AB100: 30672000 | AC100: 44300 | AD100: 44300 | AE100: 44482 | AF100: 180 | AO100: X | AQ100: 1
A101: 1 | B101: 86 | C101: 2021 | D101: FDLC-CPS-086-2021 | E101: https://community.secop.gov.co/Public/Tendering/OpportunityDetail/Index?noticeUID=CO1.NTC.1915471&isFromPublicArea=True&isModal=true&asPopupView=true | F101: Contratos de prestación de servicios profesionales y de apoyo a la gestión | G101: Contratación directa | H101: Prestación de servicios profesionales y de apoyo a la gestión, o para la ejecución de trabajos artísticos que sólo puedan encomendarse a determinadas personas naturales; | I101: PRESTAR SERVICIOS PROFESIONALES PARA APOYAR AL FONDO DE DESARROLLO LOCAL DE LA CANDELARIA EN LA FORMULACIÓN,IMPLEMENTACIÓN Y SEGUIMIENTO DE LOS PROYECTOS Y ACTIVIDADES ARTÍSTICAS,CULTURALES, MUSICALES Y DEPORTIVAS DE COMPETENCIA DE LA ENTIDAD | J101: Inversión | K101: Un Nuevo Contrato Social y Ambiental para la Bogotá del Siglo XXI | L101: 21 | M101: =IF(ISERROR(VLOOKUP(L101,Proposito_programa!$C$2:$E$59,2,FALSE))," ",VLOOKUP(L101,Proposito_programa!$C$2:$E$59,2,FALSE)) -> Creación y vida cotidiana: Apropiación ciudadana del arte, la cultura y el patrimonio, para la democracia cultural | N101: =IF(ISERROR(VLOOKUP(L101,Proposito_programa!$C$2:$E$59,3,FALSE))," ",VLOOKUP(L101,Proposito_programa!$C$2:$E$59,3,FALSE)) -> Propósito 1: Hacer un nuevo contrato social para incrementar la inclusión social, productiva y política | O101: 1625 | P101: 1 | Q101: 79201995 | R101: FREDDY ALFONSO PAREJA PESCA | S101: Persona Natural | W101: 40896000 | AA101: 40896000 | AB101: 0 | AC101: 44301 | AD101: 44301 | AE101: 44544 | AF101: 240 | AI101: 79505441 | AJ101: GABRIEL ALBERTO MARTIN QUESADA GOERNITZ | AK101: 44398 | AL101: 24537600 | AO101: X | AQ101: 0
A102: 1 | B102: 87 | C102: 2021 | D102: FDLC-CPS-087-2021 | E102: https://community.secop.gov.co/Public/Tendering/OpportunityDetail/Index?noticeUID=CO1.NTC.1928640&isFromPublicArea=True&isModal=true&asPopupView=true | F102: Contratos de prestación de servicios profesionales y de apoyo a la gestión | G102: Contratación directa | H102: Prestación de servicios profesionales y de apoyo a la gestión, o para la ejecución de trabajos artísticos que sólo puedan encomendarse a determinadas personas naturales; | I102: PRESTAR SERVICIOS DE APOYO LOGÍSTICO EN LOS EVENTOS Y ACTIVIDADES DE LA ADMINISTRACIÓN LOCAL DE LA LOCALIDAD DE LA CANDELARIA | J102: Inversión | K102: Un Nuevo Contrato Social y Ambiental para la Bogotá del Siglo XXI | L102: 45 | M102: =IF(ISERROR(VLOOKUP(L102,Proposito_programa!$C$2:$E$59,2,FALSE))," ",VLOOKUP(L102,Proposito_programa!$C$2:$E$59,2,FALSE)) -> Espacio público más seguro y construido colectivamente | N102: =IF(ISERROR(VLOOKUP(L102,Proposito_programa!$C$2:$E$59,3,FALSE))," ",VLOOKUP(L102,Proposito_programa!$C$2:$E$59,3,FALSE)) -> Propósito 3: Inspirar confianza y legitimidad para vivir sin miedo y ser epicentro de cultura ciudadana, paz y reconciliación | O102: 1786 | P102: 1 | Q102: 80741660 | R102: OCTAVIO JIMENEZ GUTIERREZ | S102: Persona Natural | W102: 14520000 | AA102: 14520000 | AB102: 14520000 | AC102: 44307 | AD102: 44307 | AE102: 44550 | AF102: 240 | AO102: X | AQ102: 1
A103: 1 | B103: 88 | C103: 2021 | D103: FDLC-CPS-088-2021 | E103: https://community.secop.gov.co/Public/Tendering/OpportunityDetail/Index?noticeUID=CO1.NTC.1941073&isFromPublicArea=True&isModal=true&asPopupView=true | F103: Contratos de prestación de servicios profesionales y de apoyo a la gestión | G103: Contratación directa | H103: Prestación de servicios profesionales y de apoyo a la gestión, o para la ejecución de trabajos artísticos que sólo puedan encomendarse a determinadas personas naturales; | I103: PRESTACIÓN DE SERVICIOS PROFESIONALES EN LA IMPLEMENTACIÓN DE ACCIONES Y ESTRATEGIAS CULTURALES, MUSICALES Y ARTÍSTICAS ENFOCADAS A LAS INSTANCIAS DE PARTICIPACIÓN DE LA LOCALIDAD LA CANDELARIA, DE ACUERDO AL PROYECTO 1625 "LA CANDELARIA CULTURAL, ARTISTICA Y PATRIMONIAL | J103: Inversión | K103: Un Nuevo Contrato Social y Ambiental para la Bogotá del Siglo XXI | L103: 21 | M103: =IF(ISERROR(VLOOKUP(L103,Proposito_programa!$C$2:$E$59,2,FALSE))," ",VLOOKUP(L103,Proposito_programa!$C$2:$E$59,2,FALSE)) -> Creación y vida cotidiana: Apropiación ciudadana del arte, la cultura y el patrimonio, para la democracia cultural | N103: =IF(ISERROR(VLOOKUP(L103,Proposito_programa!$C$2:$E$59,3,FALSE))," ",VLOOKUP(L103,Proposito_programa!$C$2:$E$59,3,FALSE)) -> Propósito 1: Hacer un nuevo contrato social para incrementar la inclusión social, productiva y política | O103: 1625 | P103: 1 | Q103: 1010207254 | R103: ELY DAVID MURILLO CORDOBA | S103: Persona Natural | W103: 16284000 | AA103: 16284000 | AB103: 16284000 | AC103: 44313 | AD103: 44313 | AE103: 44434 | AF103: 120 | AO103: X | AQ103: 1
A104: 1 | B104: 89 | C104: 2021 | D104: FDLC-CPS-089-2021 | E104: https://community.secop.gov.co/Public/Tendering/OpportunityDetail/Index?noticeUID=CO1.NTC.1941076&isFromPublicArea=True&isModal=true&asPopupView=true | F104: Contratos de prestación de servicios profesionales y de apoyo a la gestión | G104: Contratación directa | H104: Prestación de servicios profesionales y de apoyo a la gestión, o para la ejecución de trabajos artísticos que sólo puedan encomendarse a determinadas personas naturales; | I104: PRESTAR SERVICIOS DE APOYO EN LA EMISORA A CARGO DEL FONDO DE DESARROLLO LOCAL LA CANDELARIA | J104: Inversión | K104: Un Nuevo Contrato Social y Ambiental para la Bogotá del Siglo XXI | L104: 21 | M104: =IF(ISERROR(VLOOKUP(L104,Proposito_programa!$C$2:$E$59,2,FALSE))," ",VLOOKUP(L104,Proposito_programa!$C$2:$E$59,2,FALSE)) -> Creación y vida cotidiana: Apropiación ciudadana del arte, la cultura y el patrimonio, para la democracia cultural | N104: =IF(ISERROR(VLOOKUP(L104,Proposito_programa!$C$2:$E$59,3,FALSE))," ",VLOOKUP(L104,Proposito_programa!$C$2:$E$59,3,FALSE)) -> Propósito 1: Hacer un nuevo contrato social para incrementar la inclusión social, productiva y política | O104: 1625 | P104: 1 | Q104: 14250858 | R104: RICARDO ABEL ROLDAN CORREA | S104: Persona Natural | W104: 9800000 | AA104: 9800000 | AB104: 9800000 | AC104: 44313 | AD104: 44313 | AE104: 44434 | AF104: 120 | AO104: X | AQ104: 1
A105: 1 | B105: 90 | C105: 2021 | D105: FDLC-CPS-090-2021 | E105: https://community.secop.gov.co/Public/Tendering/OpportunityDetail/Index?noticeUID=CO1.NTC.1942383&isFromPublicArea=True&isModal=true&asPopupView=true | F105: Contratos de prestación de servicios profesionales y de apoyo a la gestión | G105: Contratación directa | H105: Prestación de servicios profesionales y de apoyo a la gestión, o para la ejecución de trabajos artísticos que sólo puedan encomendarse a determinadas personas naturales; | I105: PRESTAR SERVICIOS DE APOYO ADMINISTRATIVO Y ASISTENCIAL AL ÁREA DE GESTIÓN DE DESARROLLO LOCAL, EN LOS PROCESOS DE COMPETENCIA RELACIONADOS CON LA PLANEACIÓN DE LA ALCALDÍA LOCAL DE LA CANDELARIA | J105: Inversión | K105: Un Nuevo Contrato Social y Ambiental para la Bogotá del Siglo XXI | L105: 57 | M105: =IF(ISERROR(VLOOKUP(L105,Proposito_programa!$C$2:$E$59,2,FALSE))," ",VLOOKUP(L105,Proposito_programa!$C$2:$E$59,2,FALSE)) -> Gestión pública local | N105: =IF(ISERROR(VLOOKUP(L105,Proposito_programa!$C$2:$E$59,3,FALSE))," ",VLOOKUP(L105,Proposito_programa!$C$2:$E$59,3,FALSE)) -> Propósito 5: Construir Bogotá - Región con gobierno abierto, transparente y ciudadanía consciente | O105: 2021 | P105: 1 | Q105: 1001281981 | R105: YEISON ESMIK GOMEZ HERNANDEZ | S105: Persona Natural | W105: 6000000 | AA105: 6000000 | AB105: 6000000 | AC105: 44314 | AD105: 44314 | AE105: 44435 | AF105: 120 | AO105: X | AQ105: 1
A106: 1 | B106: 91 | C106: 2021 | D106: FDLC-CPS-091-2021 | E106: https://community.secop.gov.co/Public/Tendering/OpportunityDetail/Index?noticeUID=CO1.NTC.1955027&isFromPublicArea=True&isModal=true&asPopupView=true | F106: Contratos de prestación de servicios profesionales y de apoyo a la gestión | G106: Contratación directa | H106: Prestación de servicios profesionales y de apoyo a la gestión, o para la ejecución de trabajos artísticos que sólo puedan encomendarse a determinadas personas naturales; | I106: PRESTAR SERVICIOS PROFESIONALES AL FONDO DE DESARROLLO LOCAL DE LA CANDELARIA PARA APOYAR EL SEGUIMIENTO Y EJECUCION DE LOS PROGRAMAS AMBIENTALES Y DE AGRICULTURA URBANA EN LA LOCALIDAD | J106: Inversión | K106: Un Nuevo Contrato Social y Ambiental para la Bogotá del Siglo XXI | L106: 24 | M106: =IF(ISERROR(VLOOKUP(L106,Proposito_programa!$C$2:$E$59,2,FALSE))," ",VLOOKUP(L106,Proposito_programa!$C$2:$E$59,2,FALSE)) -> Bogotá región emprendedora e innovadora | N106: =IF(ISERROR(VLOOKUP(L106,Proposito_programa!$C$2:$E$59,3,FALSE))," ",VLOOKUP(L106,Proposito_programa!$C$2:$E$59,3,FALSE)) -> Propósito 1: Hacer un nuevo contrato social para incrementar la inclusión social, productiva y política | O106: 1626 | P106: 1 | Q106: 1013628927 | R106: DAISSY TATIANA FAJARDO VELASCO | S106: Persona Natural | W106: 16752000 | AA106: 16752000 | AB106: 16752000 | AC106: 44320 | AD106: 44320 | AE106: 44442 | AF106: 120 | AO106: X | AQ106: 1
A107: 1 | B107: 92 | C107: 2021 | D107: FDLC-CPS-092-2021 | E107: https://community.secop.gov.co/Public/Tendering/OpportunityDetail/Index?noticeUID=CO1.NTC.1956135&isFromPublicArea=True&isModal=true&asPopupView=true | F107: Contratos de prestación de servicios profesionales y de apoyo a la gestión | G107: Contratación directa | H107: Prestación de servicios profesionales y de apoyo a la gestión, o para la ejecución de trabajos artísticos que sólo puedan encomendarse a determinadas personas naturales; | I107: PRESTAR SERVICIOS PROFESIONALES AL FONDO DE DESARROLLO LOCAL DE LA CANDELARIA PARA LA FORMULACIÓN Y SEGUIMIENTO A LA EJECUCIÓN DE PLANES, POLÍTICAS PROGRAMAS Y PROYECTOS RELACIONADOS CON LOS PROCESOS COMUNITARIOS Y DE PARTICIPACIÓN CIUDADANA EN LA LOCALIDAD | J107: Inversión | K107: Un Nuevo Contrato Social y Ambiental para la Bogotá del Siglo XXI | L107: 55 | M107: =IF(ISERROR(VLOOKUP(L107,Proposito_programa!$C$2:$E$59,2,FALSE))," ",VLOOKUP(L107,Proposito_programa!$C$2:$E$59,2,FALSE)) -> Fortalecimiento de cultura ciudadana y su institucionalidad | N107: =IF(ISERROR(VLOOKUP(L107,Proposito_programa!$C$2:$E$59,3,FALSE))," ",VLOOKUP(L107,Proposito_programa!$C$2:$E$59,3,FALSE)) -> Propósito 5: Construir Bogotá - Región con gobierno abierto, transparente y ciudadanía consciente | O107: 2019 | P107: 1 | Q107: 1067813377 | R107: DANIELA LUCIA OÑATE LOPEZ | S107: Persona Natural | W107: 20448000 | AA107: 20448000 | AB107: 20448000 | AC107: 44320 | AD107: 44320 | AE107: 44442 | AF107: 120 | AO107: X | AQ107: 1
A108: 1 | B108: 93 | C108: 2021 | D108: FDLC-CPS-093-2021 | E108: https://community.secop.gov.co/Public/Tendering/OpportunityDetail/Index?noticeUID=CO1.NTC.1969054&isFromPublicArea=True&isModal=False | F108: Contratos de prestación de servicios profesionales y de apoyo a la gestión | G108: Contratación directa | H108: Prestación de servicios profesionales y de apoyo a la gestión, o para la ejecución de trabajos artísticos que sólo puedan encomendarse a determinadas personas naturales; | I108: PRESTAR SERVICIOS DE APOYO TÉCNICO AL FONDO DE DESARROLLO LOCAL DE LA CANDELARIA PARA APOYAR LA GESTION DE LOS ASUNTOS RELACIONADOS CON SEGURIDAD CIUDADANA Y CONVIVENCIA EN EL ESPACIO PÚBLICO DE LA LOCALIDAD | J108: Inversión | K108: Un Nuevo Contrato Social y Ambiental para la Bogotá del Siglo XXI | L108: 45 | M108: =IF(ISERROR(VLOOKUP(L108,Proposito_programa!$C$2:$E$59,2,FALSE))," ",VLOOKUP(L108,Proposito_programa!$C$2:$E$59,2,FALSE)) -> Espacio público más seguro y construido colectivamente | N108: =IF(ISERROR(VLOOKUP(L108,Proposito_programa!$C$2:$E$59,3,FALSE))," ",VLOOKUP(L108,Proposito_programa!$C$2:$E$59,3,FALSE)) -> Propósito 3: Inspirar confianza y legitimidad para vivir sin miedo y ser epicentro de cultura ciudadana, paz y reconciliación | O108: 1786 | P108: 1 | Q108: 53121023 | R108: NUBIA ALEJANDRA TOVAR NUÑEZ | S108: Persona Natural | W108: 14535000 | Y108: 1 | Z108: 7267500 | AA108: 21802500 | AB108: 19476900 | AC108: 44327 | AD108: 44327 | AE108: 44479 | AF108: 150 | AO108: X | AQ108: 0.8933333333
A109: 1 | B109: 94 | C109: 2021 | D109: FDLC-CPS-094-2021 | E109: https://community.secop.gov.co/Public/Tendering/OpportunityDetail/Index?noticeUID=CO1.NTC.1969456&isFromPublicArea=True&isModal=true&asPopupView=true | F109: Contratos de prestación de servicios profesionales y de apoyo a la gestión | G109: Contratación directa | H109: Prestación de servicios profesionales y de apoyo a la gestión, o para la ejecución de trabajos artísticos que sólo puedan encomendarse a determinadas personas naturales; | I109: PRESTAR SERVICIOS PROFESIONALES PARA APOYAR AL FONDO DE DESARROLLO LOCAL DE LA CANDELARIA EN EL SEGUIMIENTO Y VISUALIZACION DE LA GESTION REALIZADA, EN DESARROLLO DE LOS PROGRAMAS DE ATENCIÓN Y PROTECCIÓN A LOS ANIMALES EN LA LOCALIDAD | J109: Inversión | K109: Un Nuevo Contrato Social y Ambiental para la Bogotá del Siglo XXI | L109: 34 | M109: =IF(ISERROR(VLOOKUP(L109,Proposito_programa!$C$2:$E$59,2,FALSE))," ",VLOOKUP(L109,Proposito_programa!$C$2:$E$59,2,FALSE)) -> Bogotá protectora de los animales | N109: =IF(ISERROR(VLOOKUP(L109,Proposito_programa!$C$2:$E$59,3,FALSE))," ",VLOOKUP(L109,Proposito_programa!$C$2:$E$59,3,FALSE)) -> Propósito 2 : Cambiar Nuestros Hábitos de Vida para Reverdecer a Bogotá y Adaptarnos y Mitigar la Crisis Climática | O109: 1704 | P109: 1 | Q109: 1072707755 | R109: NICOLLE SELESTE ROJAS CAMACHO | S109: Persona Natural | W109: 12000000 | AA109: 12000000 | AB109: 12000000 | AC109: 44327 | AD109: 44327 | AE109: 44418 | AF109: 90 | AO109: X | AQ109: 1
A110: 1 | B110: 95 | C110: 2021 | D110: FDLC-CPS-095-2021 | E110: https://community.secop.gov.co/Public/Tendering/OpportunityDetail/Index?noticeUID=CO1.NTC.1974903&isFromPublicArea=True&isModal=true&asPopupView=true | F110: Contratos de prestación de servicios profesionales y de apoyo a la gestión | G110: Contratación directa | H110: Prestación de servicios profesionales y de apoyo a la gestión, o para la ejecución de trabajos artísticos que sólo puedan encomendarse a determinadas personas naturales; | I110: PRESTAR SERVICIOS PROFESIONALES PARA APOYAR EL SEGUIMIENTO JURÍDICO DE LOS PROYECTOS DE INFRAESTRUCTURA Y OBRA, ASÍ COMO LOS DEMÁS ASUNTOS CONTRACTUALES QUE SE REQUIERAN | J110: Inversión | K110: Un Nuevo Contrato Social y Ambiental para la Bogotá del Siglo XXI | L110: 49 | M110: =IF(ISERROR(VLOOKUP(L110,Proposito_programa!$C$2:$E$59,2,FALSE))," ",VLOOKUP(L110,Proposito_programa!$C$2:$E$59,2,FALSE)) -> Movilidad segura, sostenible y accesible | N110: =IF(ISERROR(VLOOKUP(L110,Proposito_programa!$C$2:$E$59,3,FALSE))," ",VLOOKUP(L110,Proposito_programa!$C$2:$E$59,3,FALSE)) -> Propósito 4: Hacer de Bogotá Región un modelo de movilidad multimodal, incluyente y sostenible | O110: 2020 | P110: 1 | Q110: 86009829 | R110: ANDRES FERNANDO PINTO CALDERON | S110: Persona Natural | W110: 25560000 | Y110: 1 | Z110: 12780000 | AA110: 38340000 | AB110: 38340000 | AC110: 44329 | AD110: 44329 | AE110: 44557 | AF110: 150 | AG110: =+AD110+AF110+AH110 -> 44554 | AH110: 75 | AO110: X | AQ110: 1
A111: 1 | B111: 96 | C111: 2021 | D111: FDLC-CPS-096-2021 | E111: https://community.secop.gov.co/Public/Tendering/OpportunityDetail/Index?noticeUID=CO1.NTC.2030451&isFromPublicArea=True&isModal=False | F111: Contratos de prestación de servicios profesionales y de apoyo a la gestión | G111: Contratación directa | H111: Prestación de servicios profesionales y de apoyo a la gestión, o para la ejecución de trabajos artísticos que sólo puedan encomendarse a determinadas personas naturales; | I111: PRESTAR SERVICIOS PROFESIONALES PARA EL SEGUIMIENTO JURÍDICO DE LOS PROYECTOS DE INFRAESTRUCTURA, ASÍ COMO LOS DEMÁS ASUNTOS CONTRACTUALES QUE SE REQUIERAN. | J111: Inversión | K111: Un Nuevo Contrato Social y Ambiental para la Bogotá del Siglo XXI | L111: 49 | M111: =IF(ISERROR(VLOOKUP(L111,Proposito_programa!$C$2:$E$59,2,FALSE))," ",VLOOKUP(L111,Proposito_programa!$C$2:$E$59,2,FALSE)) -> Movilidad segura, sostenible y accesible | N111: =IF(ISERROR(VLOOKUP(L111,Proposito_programa!$C$2:$E$59,3,FALSE))," ",VLOOKUP(L111,Proposito_programa!$C$2:$E$59,3,FALSE)) -> Propósito 4: Hacer de Bogotá Región un modelo de movilidad multimodal, incluyente y sostenible | O111: 2020 | P111: 1 | Q111: 1102807537 | R111: JOSE MARIA CONDE AREVALO | S111: Persona Natural | W111: 33000000 | Y111: 1 | Z111: 7333333 | AA111: 40333333 | AB111: 20166665 | AC111: 44358 | AD111: 44358 | AE111: 44581 | AF111: 180 | AH111: 40 | AI111: 93236642 | AJ111: EDGAR FERNANDO SANDOVAL BOCANEGRA | AK111: 44525 | AL111: 28183335 | AO111: X | AQ111: =IF(ISERROR(AB111/AA111),"-",(AB111/AA111)) -> 0.4999999628
A112: 1 | B112: 97 | C112: 2021 | D112: FDLC-CPS-097-2021 | E112: https://community.secop.gov.co/Public/Tendering/OpportunityDetail/Index?noticeUID=CO1.NTC.2034687&isFromPublicArea=True&isModal=true&asPopupView=true | F112: Contratos de prestación de servicios profesionales y de apoyo a la gestión | G112: Contratación directa | H112: Prestación de servicios profesionales y de apoyo a la gestión, o para la ejecución de trabajos artísticos que sólo puedan encomendarse a determinadas personas naturales; | I112: PRESTAR SERVICIOS DE APOYO ADMINISTRATIVO Y ASISTENCIAL AL FONDO DE DESARROLLO LOCAL, EN LOS PROCESOS RELACIONADOS CON LA PARTICIPACION DE LAS JUVENTUDES EN LA LOCALIDAD | J112: Inversión | K112: Un Nuevo Contrato Social y Ambiental para la Bogotá del Siglo XXI | L112: 55 | M112: =IF(ISERROR(VLOOKUP(L112,Proposito_programa!$C$2:$E$59,2,FALSE))," ",VLOOKUP(L112,Proposito_programa!$C$2:$E$59,2,FALSE)) -> Fortalecimiento de cultura ciudadana y su institucionalidad | N112: =IF(ISERROR(VLOOKUP(L112,Proposito_programa!$C$2:$E$59,3,FALSE))," ",VLOOKUP(L112,Proposito_programa!$C$2:$E$59,3,FALSE)) -> Propósito 5: Construir Bogotá - Región con gobierno abierto, transparente y ciudadanía consciente | O112: 2019 | P112: 1 | Q112: 1000222737 | R112: VALENTINA BELLO CIFUENTES | S112: Persona Natural | W112: 4500000 | AA112: 4500000 | AB112: 4500000 | AC112: 44362 | AD112: 44362 | AE112: 44454 | AF112: 90 | AO112: X | AQ112: =IF(ISERROR(AB112/AA112),"-",(AB112/AA112)) -> 1
A113: 1 | B113: 98 | C113: 2021 | D113: FDLC-IMC-001-2021 | E113: https://community.secop.gov.co/Public/Tendering/OpportunityDetail/Index?noticeUID=CO1.NTC.1996707&isFromPublicArea=True&isModal=true&asPopupView=true | F113: Contratos de prestación de servicios | G113: Contratación mínima cuantia | H113: No aplica | I113: CONTRATAR LOS SERVICIOS DE UN OPERADOR QUE REALICE TALLERES DE FORMACIÓN EMPRESARIAL Y UNA FERIA EMPRESARIAL PARA EMPRENDIMIENTOS Y/O MIPYMES DE LA POBLACIÓN AFRODESCENDIENTE DE LA LOCALIDAD DE LA CANDELARIA | J113: Inversión | K113: Un Nuevo Contrato Social y Ambiental para la Bogotá del Siglo XXI | L113: 6 | M113: =IF(ISERROR(VLOOKUP(L113,Proposito_programa!$C$2:$E$59,2,FALSE))," ",VLOOKUP(L113,Proposito_programa!$C$2:$E$59,2,FALSE)) -> Sistema Distrital de Cuidado | N113: =IF(ISERROR(VLOOKUP(L113,Proposito_programa!$C$2:$E$59,3,FALSE))," ",VLOOKUP(L113,Proposito_programa!$C$2:$E$59,3,FALSE)) -> Propósito 1: Hacer un nuevo contrato social para incrementar la inclusión social, productiva y política | O113: 1628 | P113: 1 | Q113: 80085650 | R113: JORGE AURELIO MONTERROZA BARRIOS | S113: Persona Natural | W113: 7506333.1 | AA113: 7506333.1 | AB113: 3753166 | AC113: 44364 | AD113: 44416 | AE113: 44660 | AF113: 137 | AG113: 3 | AH113: 107 | AO113: X | AQ113: 0.4999999267
A114: 1 | B114: 99 | C114: 2021 | D114: FDLC-IMC-002-2021 | E114: https://community.secop.gov.co/Public/Tendering/OpportunityDetail/Index?noticeUID=CO1.NTC.1998758&isFromPublicArea=True&isModal=true&asPopupView=true | F114: Contratos de prestación de servicios | G114: Contratación mínima cuantia | H114: No aplica | I114: ADQUISICIÓN DEL SERVICIO DE MANTENIMIENTO PREVENTIVO Y CORRECTIVO INTEGRAL CON SUMINISTRO DE REPUESTOS Y MANO DE OBRA PARA EL VEHÍCULO NISSAN X-TRAIL QUE HACE PARTE DEL PARQUE AUTOMOTOR DEL FONDO DE DESARROLLO LOCAL DE LA CANDELARIA. | J114: Funcionamiento | K114: Un Nuevo Contrato Social y Ambiental para la Bogotá del Siglo XXI | L114: No aplica | M114: =IF(ISERROR(VLOOKUP(L114,Proposito_programa!$C$2:$E$59,2,FALSE))," ",VLOOKUP(L114,Proposito_programa!$C$2:$E$59,2,FALSE)) ->  | N114: =IF(ISERROR(VLOOKUP(L114,Proposito_programa!$C$2:$E$59,3,FALSE))," ",VLOOKUP(L114,Proposito_programa!$C$2:$E$59,3,FALSE)) ->  | O114: N/A | P114: 1 | Q114: 900274811 | R114: EYM COMPANY SAS | S114: Persona Jurídica | W114: 5011752 | Y114: 1 | Z114: 2000000 | AA114: 7011752 | AB114: 0 | AC114: 44364 | AD114: 44371 | AE114: 44581 | AF114: 120 | AG114: 1 | AH114: 90 | AO114: X | AQ114: 0
A115: 1 | B115: FDLC-CIA-001-2021 | C115: 2021 | D115: FDLC-CIA-001-2021 | E115: https://community.secop.gov.co/Public/Tendering/OpportunityDetail/Index?noticeUID=CO1.NTC.2037525&isFromPublicArea=True&isModal=False | F115: Contratos interadministrativos | G115: Contratación directa | H115: Contratos interadministrativos | I115: AUNAR ESFUERZOS TÉCNICOS, ADMINISTRATIVOS, LOGÍSTICOS ENTRE LA ALCALDÍA LOCAL DE LA CANDELARIA Y LA ORQUESTA FILARMÓNICA DE BOGOTÁ PARA LA CONTINUIDAD Y DESARROLLO DEL CENTRO FILARMÓNICO LOCAL, COMO UN ESPACIO PARA EL PROCESO DE FORMACIÓN MUSICAL IMPLEMENTADO POR LA ORQUESTA Y DIRIGIDO A LA LOCALIDAD, LAS CUALES SE DESARROLLARAN DE MANERA VIRTUAL, TENIENDO EN CUENTA LA SITUACION ACTUAL DE PANDEMIA NACIONAL QUE SUFRE EL PAIS | J115: Funcionamiento | K115: Un Nuevo Contrato Social y Ambiental para la Bogotá del Siglo XXI | L115: No aplica | M115: =IF(ISERROR(VLOOKUP(L115,Proposito_programa!$C$2:$E$59,2,FALSE))," ",VLOOKUP(L115,Proposito_programa!$C$2:$E$59,2,FALSE)) ->  | N115: =IF(ISERROR(VLOOKUP(L115,Proposito_programa!$C$2:$E$59,3,FALSE))," ",VLOOKUP(L115,Proposito_programa!$C$2:$E$59,3,FALSE)) ->  | P115: 1 | Q115: 899999282 | R115: ORQUESTA FILARMONICA DE BOGOTA | S115: Persona Jurídica | W115: 0 | AA115: 0 | AB115: 0 | AC115: 44363 | AD115: 44363 | AE115: 44560 | AF115: 194 | AO115: X | AQ115: -
A116: 1 | B116: FDLC-CIA-002-2021 | C116: 2021 | D116: FDLC-CIA-002-2021 | E116: https://www.contratos.gov.co/consultas/detalleProceso.do?numConstancia=21-22-27172&g-recaptcha-response=03AGdBq24G2MbM6GvdZgPmlfggKKXrEMuOLQ_si5bgDMntMj0xfmUpfrRLlaYO2eOPSU2oQDgOVCZaS6cYR8Nu-JAUqwGxKh9WDfkC0RgWZLHKfxiFsBL6EgW-7H41grTKF26PUaT0r_eHWeI5-01j3b21DfUx30M0tnWZrw2EXdUClvBXCmG7K_Q2W61c6hyrHXdaNTgn4Mo9lHuAYZCPhrnhy3JNR3eyuCv4w3uM4jKUOX_9InEVbNAiUkQwICW9bx9wxBrJYRfyqZYSZlYS6W1RIDfNQKWw4DJvE-Adm2h_HzQE9ef6KM6S1ib-RFU0T4InghfTKjD_kKSA8Z6EzfIOam2LDKKGK13hn1PBQ4IxC9iPLkRD2qpEZzu61zxyqBLtIjLKY1NhFJeJ3t1yAcghAF0ri3Vc17ly5qcaj1iRt8O-0Eko64H_x8SianQvpSa7EFgNQCLKs2vfCCvJSN6ySoHogKrUww | F116: Contratos interadministrativos | G116: Contratación directa | H116: Contratos interadministrativos | I116: Aunar esfuerzos técnicos, administrativos, juridicos y financieros entre la Secretaria de Educacn del Distrito y los Fondos de Desarrollo Local que hacen parte del Distrito Capital, para la implementación de un nuevo modelo inclusivo, eficiente y flexible para el acceso y la permanencia de las y los jóvenes egresados de instituciones de educación media a programas de educación superior. | J116: Inversión | K116: Un Nuevo Contrato Social y Ambiental para la Bogotá del Siglo XXI | L116: 17 | M116: =IF(ISERROR(VLOOKUP(L116,Proposito_programa!$C$2:$E$59,2,FALSE))," ",VLOOKUP(L116,Proposito_programa!$C$2:$E$59,2,FALSE)) -> Jóvenes con capacidades: Proyecto de vida para la ciudadanía, la innovación y el trabajo del siglo XXI | N116: =IF(ISERROR(VLOOKUP(L116,Proposito_programa!$C$2:$E$59,3,FALSE))," ",VLOOKUP(L116,Proposito_programa!$C$2:$E$59,3,FALSE)) -> Propósito 1: Hacer un nuevo contrato social para incrementar la inclusión social, productiva y política | O116: 1607 | P116: 1 | Q116: 899999061 | R116: SECRETARIA DISTRITAL DE EDUCACION | S116: Persona Jurídica | W116: 829911000 | AA116: 829911000 | AB116: 829911000 | AC116: 44375 | AD116: 44383 | AE116: 46568 | AF116: 2160 | AN116: X | AQ116: 1
A117: 1 | B117: 100 | C117: 2021 | D117: ORDEN DE COMPRA 71252 | E117: https://colombiacompra.gov.co/tienda-virtual-del-estado-colombiano/ordenes-compra/71252 | F117: Contratos de prestación de servicios | G117: Selección abreviada | H117: Acuerdo marco de precios | I117: ADQUIRIR EL SERVICIO DE MANTENIMIENTO PREVENTIVO Y CORRECTIVO INTEGRAL CON SUMINISTRO DE REPUESTOS, MANO DE OBRA Y EL SERVICIO DE REVISIÓN TÉCNICO MECÁNICA Y DE EMISIONES CONTAMINANTES PARA LOS VEHÍCULOS QUE CONFORMAN EL PARQUE AUTOMOTOR DEL FONDO DE DESARROLLO LOCAL DE LA CANDELARIA | J117: Funcionamiento | K117: Un Nuevo Contrato Social y Ambiental para la Bogotá del Siglo XXI | L117: No aplica | M117: =IF(ISERROR(VLOOKUP(L117,Proposito_programa!$C$2:$E$59,2,FALSE))," ",VLOOKUP(L117,Proposito_programa!$C$2:$E$59,2,FALSE)) ->  | N117: =IF(ISERROR(VLOOKUP(L117,Proposito_programa!$C$2:$E$59,3,FALSE))," ",VLOOKUP(L117,Proposito_programa!$C$2:$E$59,3,FALSE)) ->  | O117: N/A | P117: 1 | Q117: 900355181 | R117: AUTOSERVICIO MECANICO S.A.S | S117: Persona Jurídica | W117: 6362004 | Y117: 1 | Z117: 2000000 | AA117: =+W117+X117+Z117 -> 8362004 | AB117: 6356451 | AC117: 44383 | AD117: 44383 | AE117: 44651 | AF117: 268 | AG117: 1 | AH117: 90 | AO117: X | AQ117: 0.7601588088
A118: 1 | B118: 101 | C118: 2021 | D118: ORDEN DE COMPRA 71251 | E118: https://colombiacompra.gov.co/tienda-virtual-del-estado-colombiano/ordenes-compra/71251 | F118: Contratos de prestación de servicios | G118: Selección abreviada | H118: Acuerdo marco de precios | I118: ADQUIRIR EL SERVICIO DE MANTENIMIENTO PREVENTIVO Y CORRECTIVO INTEGRAL CON SUMINISTRO DE REPUESTOS, MANO DE OBRA Y EL SERVICIO DE REVISIÓN TÉCNICO MECÁNICA Y DE EMISIONES CONTAMINANTES PARA LOS VEHÍCULOS QUE CONFORMAN EL PARQUE AUTOMOTOR DEL FONDO DE DESARROLLO LOCAL DE LA CANDELARIA | J118: Funcionamiento | K118: Un Nuevo Contrato Social y Ambiental para la Bogotá del Siglo XXI | L118: No aplica | M118: =IF(ISERROR(VLOOKUP(L118,Proposito_programa!$C$2:$E$59,2,FALSE))," ",VLOOKUP(L118,Proposito_programa!$C$2:$E$59,2,FALSE)) ->  | N118: =IF(ISERROR(VLOOKUP(L118,Proposito_programa!$C$2:$E$59,3,FALSE))," ",VLOOKUP(L118,Proposito_programa!$C$2:$E$59,3,FALSE)) ->  | O118: N/A | P118: 1 | Q118: 800020006 | R118: AUTOINVERCOL S.A. | S118: Persona Jurídica | W118: 8626244 | Y118: 1 | Z118: 4313122 | AA118: 12939366 | AB118: 0 | AC118: 44383 | AD118: 44383 | AE118: 44650 | AF118: 267 | AG118: 1 | AH118: 90 | AO118: X | AQ118: 0
A119: 1 | B119: 102 | C119: 2021 | D119: FDLC-CPS-102-2021 | E119: https://community.secop.gov.co/Public/Tendering/OpportunityDetail/Index?noticeUID=CO1.NTC.2100313&isFromPublicArea=True&isModal=true&asPopupView=true | F119: Contratos de prestación de servicios profesionales y de apoyo a la gestión | G119: Contratación directa | H119: Prestación de servicios profesionales y de apoyo a la gestión, o para la ejecución de trabajos artísticos que sólo puedan encomendarse a determinadas personas naturales; | I119: PRESTAR SERVICIOS PROFESIONALES PARA LA PLANEACIÓN, IMPLEMENTACIÓN Y FORTALECIMIENTO DE PROYECTOS RELACIONADOS CON LAS ACTIVIDADES DEL TURISMO LOCAL, A TRAVÉS DE LA GESTIÓN, ARTICULACIÓN E INTERLOCUCIÓN CON CIUDADANÍA Y ENTIDADES PÚBLICAS Y PRIVADAS | J119: Inversión | K119: Un Nuevo Contrato Social y Ambiental para la Bogotá del Siglo XXI | L119: 6 | M119: =IF(ISERROR(VLOOKUP(L119,Proposito_programa!$C$2:$E$59,2,FALSE))," ",VLOOKUP(L119,Proposito_programa!$C$2:$E$59,2,FALSE)) -> Sistema Distrital de Cuidado | N119: =IF(ISERROR(VLOOKUP(L119,Proposito_programa!$C$2:$E$59,3,FALSE))," ",VLOOKUP(L119,Proposito_programa!$C$2:$E$59,3,FALSE)) -> Propósito 1: Hacer un nuevo contrato social para incrementar la inclusión social, productiva y política | O119: 1628 | P119: 1 | Q119: 1085290304 | R119: MARIA CAMILA CEBALLOS CAICEDO | S119: Persona Natural | W119: 21805000 | AA119: 21805000 | AB119: 19769866 | AC119: 44391 | AD119: 44392 | AE119: 44544 | AF119: 150 | AO119: X | AQ119: 0.9066666361
A120: 1 | B120: 103 | C120: 2021 | D120: FDLC-CPS-103-2021 | E120: https://community.secop.gov.co/Public/Tendering/OpportunityDetail/Index?noticeUID=CO1.NTC.2100224&isFromPublicArea=True&isModal=true&asPopupView=true | F120: Contratos de prestación de servicios profesionales y de apoyo a la gestión | G120: Contratación directa | H120: Prestación de servicios profesionales y de apoyo a la gestión, o para la ejecución de trabajos artísticos que sólo puedan encomendarse a determinadas personas naturales; | I120: PRESTAR SERVICIOS TÉCNICOS PARA APOYAR AL FONDO DE DESARROLLO LOCAL DE LA CANDELARIA EN LAS TAREAS OPERATIVAS DE CARÁCTER ARCHIVÍSTICO DESARROLLADAS, PARA GARANTIZAR LA APLICACIÓN CORRECTA DE LOS PROCEDIMIENTOS TÉCNICOS | J120: Inversión | K120: Un Nuevo Contrato Social y Ambiental para la Bogotá del Siglo XXI | L120: 57 | M120: =IF(ISERROR(VLOOKUP(L120,Proposito_programa!$C$2:$E$59,2,FALSE))," ",VLOOKUP(L120,Proposito_programa!$C$2:$E$59,2,FALSE)) -> Gestión pública local | N120: =IF(ISERROR(VLOOKUP(L120,Proposito_programa!$C$2:$E$59,3,FALSE))," ",VLOOKUP(L120,Proposito_programa!$C$2:$E$59,3,FALSE)) -> Propósito 5: Construir Bogotá - Región con gobierno abierto, transparente y ciudadanía consciente | O120: 2021 | P120: 1 | Q120: 1010175770 | R120: TEOFILO LEONARDO RAMIREZ HERNANDEZ | S120: Persona Natural | W120: 15495000 | AA120: 15495000 | AB120: 14048800 | AC120: 44391 | AD120: 44391 | AE120: 44544 | AF120: 150 | AO120: X | AQ120: 0.9066666667
A121: 1 | B121: 104 | C121: 2021 | D121: FDLC-CPS-104-2021 | E121: https://community.secop.gov.co/Public/Tendering/OpportunityDetail/Index?noticeUID=CO1.NTC.2102860&isFromPublicArea=True&isModal=true&asPopupView=true | F121: Contratos de prestación de servicios profesionales y de apoyo a la gestión | G121: Contratación directa | H121: Prestación de servicios profesionales y de apoyo a la gestión, o para la ejecución de trabajos artísticos que sólo puedan encomendarse a determinadas personas naturales; | I121: PRESTAR SERVICIOS DE APOYO ASISTENCIAL Y ADMINIISTRATIVO AL DESPACHO DE LA ALCALDESA LOCAL DE LA CANDELARIA | J121: Inversión | K121: Un Nuevo Contrato Social y Ambiental para la Bogotá del Siglo XXI | L121: 57 | M121: =IF(ISERROR(VLOOKUP(L121,Proposito_programa!$C$2:$E$59,2,FALSE))," ",VLOOKUP(L121,Proposito_programa!$C$2:$E$59,2,FALSE)) -> Gestión pública local | N121: =IF(ISERROR(VLOOKUP(L121,Proposito_programa!$C$2:$E$59,3,FALSE))," ",VLOOKUP(L121,Proposito_programa!$C$2:$E$59,3,FALSE)) -> Propósito 5: Construir Bogotá - Región con gobierno abierto, transparente y ciudadanía consciente | O121: 2021 | P121: 1 | Q121: 51838961 | R121: MARIA ADELAIDA LUNA BUENAVENTURA | S121: Persona Natural | W121: 11750000 | AA121: 11750000 | AB121: 11750000 | AC121: 44392 | AD121: 44392 | AE121: 44545 | AF121: 150 | AO121: X | AQ121: 1
A122: 1 | B122: 105 | C122: 2021 | D122: FDLC-CPS-105-2021 | E122: https://community.secop.gov.co/Public/Tendering/OpportunityDetail/Index?noticeUID=CO1.NTC.2131832&isFromPublicArea=True&isModal=False | F122: Contratos de prestación de servicios profesionales y de apoyo a la gestión | G122: Contratación directa | H122: Prestación de servicios profesionales y de apoyo a la gestión, o para la ejecución de trabajos artísticos que sólo puedan encomendarse a determinadas personas naturales; | I122: PRESTAR SERVICIOS PROFESIONALES PARA REALIZAR LA COORDINACION TÉCNICA DEL SEGUIMIENTO DE PLANES, POLÍTICAS, PROGRAMAS Y PROYECTOS DE INFRAESTRUCTURA Y OBRAS CIVILES QUE DESARROLLE LA ALCALDÍA LOCAL DE LA CANDELARIA | J122: Inversión | K122: Un Nuevo Contrato Social y Ambiental para la Bogotá del Siglo XXI | L122: 49 | M122: =IF(ISERROR(VLOOKUP(L122,Proposito_programa!$C$2:$E$59,2,FALSE))," ",VLOOKUP(L122,Proposito_programa!$C$2:$E$59,2,FALSE)) -> Movilidad segura, sostenible y accesible | N122: =IF(ISERROR(VLOOKUP(L122,Proposito_programa!$C$2:$E$59,3,FALSE))," ",VLOOKUP(L122,Proposito_programa!$C$2:$E$59,3,FALSE)) -> Propósito 4: Hacer de Bogotá Región un modelo de movilidad multimodal, incluyente y sostenible | O122: 2020 | P122: 1 | Q122: 79952565 | R122: RAFAEL LEONARDO OLMOS ROMERO | S122: Persona Natural | W122: 29610000 | Y122: 1 | Z122: 11844000 | AA122: 41454000 | AB122: 24280200 | AC122: 44405 | AD122: 44405 | AE122: 44254 | AF122: 211 | AG122: 1 | AH122: 60 | AO122: X | AQ122: 0.5857142857
A123: 1 | B123: 106 | C123: 2021 | D123: FDLC-SAMC-002-2021 | E123: https://community.secop.gov.co/Public/Tendering/OpportunityDetail/Index?noticeUID=CO1.NTC.2076161&isFromPublicArea=True&isModal=true&asPopupView=true | F123: Contratos de prestación de servicios | G123: Selección abreviada | H123: Selección abreviada por menor cuantía | I123: PRESTAR SERVICIOS PARA FORTALECER LAS ORGANIZACIONES SOCIALES, COMUNALES E INSTANCIAS DE PARTICIPACIÓN DE LA LOCALIDAD DE LA CANDELARIA CON FUNDAMENTO EN EL PROYECTO N 2019 DENOMÍNADO “LA CANDELARIA PARTICIPATIVA” | J123: Inversión | K123: Un Nuevo Contrato Social y Ambiental para la Bogotá del Siglo XXI | L123: 55 | M123: =IF(ISERROR(VLOOKUP(L123,Proposito_programa!$C$2:$E$59,2,FALSE))," ",VLOOKUP(L123,Proposito_programa!$C$2:$E$59,2,FALSE)) -> Fortalecimiento de cultura ciudadana y su institucionalidad | N123: =IF(ISERROR(VLOOKUP(L123,Proposito_programa!$C$2:$E$59,3,FALSE))," ",VLOOKUP(L123,Proposito_programa!$C$2:$E$59,3,FALSE)) -> Propósito 5: Construir Bogotá - Región con gobierno abierto, transparente y ciudadanía consciente | O123: 2019 | P123: 1 | Q123: 900843188 | R123: FUNDACION G3 | S123: Persona Jurídica | W123: 132256954 | AA123: 132256954 | AB123: 24217039 | AC123: 44407 | AD123: 44418 | AE123: 44539 | AF123: 120 | AO123: X | AQ123: 0.1831059787
A124: 1 | B124: 107 | C124: 2021 | D124: FDLC-SAMC-004-2021 | E124: https://community.secop.gov.co/Public/Tendering/OpportunityDetail/Index?noticeUID=CO1.NTC.2090852&isFromPublicArea=True&isModal=true&asPopupView=true | F124: Contratos de prestación de servicios | G124: Selección abreviada | H124: Selección abreviada por menor cuantía | I124: PRESTAR SERVICIOS DE ESTERILIZACION Y ATENCION EN BRIGADAS Y URGENCIAS MEDICAS VETERINARIAS A LOS CANINOS Y FELINOS VULNERABLES DE LA LOCALIDAD DE LA CANDELARIA CONFORME AL PROYECTO DE INVERSION NÚMERO 1704 LA CANDELARIA ANIMALISTA | J124: Inversión | K124: Un Nuevo Contrato Social y Ambiental para la Bogotá del Siglo XXI | L124: 34 | M124: =IF(ISERROR(VLOOKUP(L124,Proposito_programa!$C$2:$E$59,2,FALSE))," ",VLOOKUP(L124,Proposito_programa!$C$2:$E$59,2,FALSE)) -> Bogotá protectora de los animales | N124: =IF(ISERROR(VLOOKUP(L124,Proposito_programa!$C$2:$E$59,3,FALSE))," ",VLOOKUP(L124,Proposito_programa!$C$2:$E$59,3,FALSE)) -> Propósito 2 : Cambiar Nuestros Hábitos de Vida para Reverdecer a Bogotá y Adaptarnos y Mitigar la Crisis Climática | O124: 1704 | P124: 1 | Q124: 900359095 | R124: FUNDACION ECODES | S124: Persona Jurídica | W124: 77000000 | AA124: 77000000 | AB124: 63573046 | AC124: 44407 | AD124: 44410 | AE124: 44560 | AF124: 150 | AO124: X | AQ124: 0.825623974
A125: 1 | B125: 108 | C125: 2021 | D125: FDLC-IMC-003-2021 | E125: https://community.secop.gov.co/Public/Tendering/OpportunityDetail/Index?noticeUID=CO1.NTC.2078615&isFromPublicArea=True&isModal=true&asPopupView=true | F125: Contratos de prestación de servicios | G125: Contratación mínima cuantia | H125: No aplica | I125: Prestar el servicio demantenimiento preventivo y correctivo, incluyendo repuestos, para las impresoras, fotocopiadoras, sistema ininterrumpido de potencia (ups), aire acondicionado y plotter de propiedad del fondo de desarrollo local de la Alcaldía Local de la Candelaria | J125: Funcionamiento | K125: Un Nuevo Contrato Social y Ambiental para la Bogotá del Siglo XXI | L125: No aplica | M125: =IF(ISERROR(VLOOKUP(L125,Proposito_programa!$C$2:$E$59,2,FALSE))," ",VLOOKUP(L125,Proposito_programa!$C$2:$E$59,2,FALSE)) ->  | N125: =IF(ISERROR(VLOOKUP(L125,Proposito_programa!$C$2:$E$59,3,FALSE))," ",VLOOKUP(L125,Proposito_programa!$C$2:$E$59,3,FALSE)) ->  | O125: N/A | P125: 1 | Q125: 19322393 | R125: JAMES RIVEROS TELLEZ | S125: Persona Natural | W125: 10793300 | AA125: =+W125+X125+Z125 -> 10793300 | AB125: 8294000 | AC125: 44407 | AD125: 44413 | AE125: 44777 | AF125: 360 | AO125: X | AQ125: 0.7684396802
A126: 1 | B126: 109 | C126: 2021 | D126: FDLC-CPS-109-2021 | E126: https://community.secop.gov.co/Public/Tendering/OpportunityDetail/Index?noticeUID=CO1.NTC.2160856&isFromPublicArea=True&isModal=true&asPopupView=true | F126: Contratos de prestación de servicios profesionales y de apoyo a la gestión | G126: Contratación directa | H126: Prestación de servicios profesionales y de apoyo a la gestión, o para la ejecución de trabajos artísticos que sólo puedan encomendarse a determinadas personas naturales; | I126: PRESTAR SERVICIOS TÉCNICOS PARA APOYAR AL FONDO DE DESARROLLO LOCAL DE LA CANDELARIA EN LAS TAREAS OPERATIVAS DE CARÁCTER ARCHIVÍSTICO DESARROLLADAS, PARA GARANTIZAR LA APLICACIÓN CORRECTA DE LOS PROCEDIMIENTOS TÉCNICOS | J126: Inversión | K126: Un Nuevo Contrato Social y Ambiental para la Bogotá del Siglo XXI | L126: 57 | M126: =IF(ISERROR(VLOOKUP(L126,Proposito_programa!$C$2:$E$59,2,FALSE))," ",VLOOKUP(L126,Proposito_programa!$C$2:$E$59,2,FALSE)) -> Gestión pública local | N126: =IF(ISERROR(VLOOKUP(L126,Proposito_programa!$C$2:$E$59,3,FALSE))," ",VLOOKUP(L126,Proposito_programa!$C$2:$E$59,3,FALSE)) -> Propósito 5: Construir Bogotá - Región con gobierno abierto, transparente y ciudadanía consciente | O126: 2021 | P126: 1 | Q126: 52496566 | R126: SONIA MORENO SALGUERO | S126: Persona Natural | W126: 14771900 | AA126: 14771900 | AB126: 11569600 | AC126: 44417 | AD126: 44417 | AE126: 44560 | AF126: 143 | AO126: X | AQ126: 0.7832167832
A127: 1 | B127: 110 | C127: 2021 | D127: FDLC-CPS-110-2021 | E127: https://community.secop.gov.co/Public/Tendering/OpportunityDetail/Index?noticeUID=CO1.NTC.2164957&isFromPublicArea=True&isModal=true&asPopupView=true | F127: Contratos de prestación de servicios profesionales y de apoyo a la gestión | G127: Contratación directa | H127: Prestación de servicios profesionales y de apoyo a la gestión, o para la ejecución de trabajos artísticos que sólo puedan encomendarse a determinadas personas naturales; | I127: PRESTAR SERVICIOS PROFESIONALES COMO ABOGADO DE APOYO A LA IDENTIFICACIÓN, ANÁLISIS, REPARTO Y SEGUIMIENTO DE EXPEDIENTES PROCESALES EN EL ÁREA DE GESTIÓN POLICIVA DE LA ALCALDÍA LOCAL DE LA CANDELARI | J127: Inversión | K127: Un Nuevo Contrato Social y Ambiental para la Bogotá del Siglo XXI | L127: 57 | M127: =IF(ISERROR(VLOOKUP(L127,Proposito_programa!$C$2:$E$59,2,FALSE))," ",VLOOKUP(L127,Proposito_programa!$C$2:$E$59,2,FALSE)) -> Gestión pública local | N127: =IF(ISERROR(VLOOKUP(L127,Proposito_programa!$C$2:$E$59,3,FALSE))," ",VLOOKUP(L127,Proposito_programa!$C$2:$E$59,3,FALSE)) -> Propósito 5: Construir Bogotá - Región con gobierno abierto, transparente y ciudadanía consciente | O127: 2023 | P127: 1 | Q127: 1022973767 | R127: CAROLINA ROJAS CARVAJAL | S127: Persona Natural | W127: 18100000 | Y127: 1 | Z127: 4675833 | AA127: 22775833 | AB127: 21267500 | AC127: 44418 | AD127: 44418 | AE127: 44571 | AF127: 120 | AG127: 1 | AH127: 31 | AO127: X | AQ127: 0.9337748481
A128: 1 | B128: 111 | C128: 2021 | D128: FDLC-CPS-111-2021 | E128: https://community.secop.gov.co/Public/Tendering/OpportunityDetail/Index?noticeUID=CO1.NTC.2165243&isFromPublicArea=True&isModal=true&asPopupView=true | F128: Contratos de prestación de servicios profesionales y de apoyo a la gestión | G128: Contratación directa | H128: Prestación de servicios profesionales y de apoyo a la gestión, o para la ejecución de trabajos artísticos que sólo puedan encomendarse a determinadas personas naturales; | I128: PRESTAR SERVICIOS DE APOYO ADMINISTRATIVO Y ASISTENCIAL EN LA GESTIÓN DOCUMENTAL DE LA ALCALDÍA LOCAL DE LA CANDELARIA, ACOMPAÑANDO AL EQUIPO JURÍDICO DE DEPURACIÓN EN LAS LABORES OPERATIVAS QUE GENERA EL PROCESO DE IMPULSO DE LAS ACTUACIONES ADMINISTRATIVAS | J128: Inversión | K128: Un Nuevo Contrato Social y Ambiental para la Bogotá del Siglo XXI | L128: 57 | M128: =IF(ISERROR(VLOOKUP(L128,Proposito_programa!$C$2:$E$59,2,FALSE))," ",VLOOKUP(L128,Proposito_programa!$C$2:$E$59,2,FALSE)) -> Gestión pública local | N128: =IF(ISERROR(VLOOKUP(L128,Proposito_programa!$C$2:$E$59,3,FALSE))," ",VLOOKUP(L128,Proposito_programa!$C$2:$E$59,3,FALSE)) -> Propósito 5: Construir Bogotá - Región con gobierno abierto, transparente y ciudadanía consciente | O128: 2023 | P128: 1 | Q128: 49729700 | R128: NEREIDA HERNANDEZ FLOREZ | S128: Persona Natural | W128: 10340000 | Y128: 1 | Z128: 3532833 | AA128: 13872833 | AB128: 12149500 | AC128: 44418 | AD128: 44418 | AE128: 44571 | AF128: 120 | AH128: 31 | AO128: X | AQ128: 0.8757764186
A129: 1 | B129: 112 | C129: 2021 | D129: FDLC-CPS-112-2021 | E129: https://community.secop.gov.co/Public/Tendering/OpportunityDetail/Index?noticeUID=CO1.NTC.2165098&isFromPublicArea=True&isModal=true&asPopupView=true | F129: Contratos de prestación de servicios profesionales y de apoyo a la gestión | G129: Contratación directa | H129: Prestación de servicios profesionales y de apoyo a la gestión, o para la ejecución de trabajos artísticos que sólo puedan encomendarse a determinadas personas naturales; | I129: PRESTAR SERVICIOS PROFESIONALES ESPECIALIZADOS AL FONDO DE DESARROLLO LOCAL DE LA CANDELARIA EN EL DESPACHO DE LA ALCALDESA LOCAL PARA BRINDAR LINEAMIENTOS JURIDICOS, EVALUAR Y ORIENTAR TEMAS PRIORITARIOS DE LA ENTIDAD | J129: Inversión | K129: Un Nuevo Contrato Social y Ambiental para la Bogotá del Siglo XXI | L129: 57 | M129: =IF(ISERROR(VLOOKUP(L129,Proposito_programa!$C$2:$E$59,2,FALSE))," ",VLOOKUP(L129,Proposito_programa!$C$2:$E$59,2,FALSE)) -> Gestión pública local | N129: =IF(ISERROR(VLOOKUP(L129,Proposito_programa!$C$2:$E$59,3,FALSE))," ",VLOOKUP(L129,Proposito_programa!$C$2:$E$59,3,FALSE)) -> Propósito 5: Construir Bogotá - Región con gobierno abierto, transparente y ciudadanía consciente | O129: 2021 | P129: 1 | Q129: 80239278 | R129: JOHN FREDY PULIDO RINCON | S129: Persona Natural | W129: 35100000 | Y129: 1 | Z129: 3120000 | AA129: 38220000 | AB129: 28860000 | AC129: 44418 | AD129: 44418 | AE129: 44566 | AF129: 135 | AH129: 12 | AO129: X | AQ129: 0.7551020408
A130: 1 | B130: 114 | C130: 2021 | D130: FDLC-CPS-114-2021 | E130: https://community.secop.gov.co/Public/Tendering/OpportunityDetail/Index?noticeUID=CO1.NTC.2167163&isFromPublicArea=True&isModal=true&asPopupView=true | F130: Contratos de prestación de servicios profesionales y de apoyo a la gestión | G130: Contratación directa | H130: Prestación de servicios profesionales y de apoyo a la gestión, o para la ejecución de trabajos artísticos que sólo puedan encomendarse a determinadas personas naturales; | I130: PRESTAR SERVICIOS PROFESIONALES PARA APOYAR JURÍDICAMENTE LA EJECUCIÓN DE LAS ACCIONES REQUERIDAS PARA LA DEPURACIÓN DE LAS ACTUACIONES ADMINISTRATIVAS QUE CURSAN EN LA ALCALDÍA LOCAL DE LA CANDELARIA | J130: Inversión | K130: Un Nuevo Contrato Social y Ambiental para la Bogotá del Siglo XXI | L130: 57 | M130: =IF(ISERROR(VLOOKUP(L130,Proposito_programa!$C$2:$E$59,2,FALSE))," ",VLOOKUP(L130,Proposito_programa!$C$2:$E$59,2,FALSE)) -> Gestión pública local | N130: =IF(ISERROR(VLOOKUP(L130,Proposito_programa!$C$2:$E$59,3,FALSE))," ",VLOOKUP(L130,Proposito_programa!$C$2:$E$59,3,FALSE)) -> Propósito 5: Construir Bogotá - Región con gobierno abierto, transparente y ciudadanía consciente | O130: 2023 | P130: 1 | Q130: 51875915 | R130: LUZ SOFIA AMAYA CASTAÑEDA | S130: Persona Natural | W130: 18100000 | Y130: 1 | Z130: 4525000 | AA130: 22625000 | AB130: 21116667 | AC130: 44419 | AD130: 44419 | AE130: 44571 | AF130: 120 | AH130: 30 | AO130: X | AQ130: 0.9333333481
A131: 1 | B131: 115 | C131: 2021 | D131: FDLC-CPS-115-2021 | E131: https://community.secop.gov.co/Public/Tendering/OpportunityDetail/Index?noticeUID=CO1.NTC.2171123&isFromPublicArea=True&isModal=true&asPopupView=true | F131: Contratos de prestación de servicios profesionales y de apoyo a la gestión | G131: Contratación directa | H131: Prestación de servicios profesionales y de apoyo a la gestión, o para la ejecución de trabajos artísticos que sólo puedan encomendarse a determinadas personas naturales; | I131: PRESTAR SERVICIOS PROFESIONALES PARA APOYAR TÉCNICAMENTE LAS DISTINTAS ETAPAS DE LOS PROCESOS DE COMPETENCIA DE LA ALCALDÍA LOCAL PARA LA DEPURACIÓN DE ACTUACIONES ADMINITRATIVAS | J131: Inversión | K131: Un Nuevo Contrato Social y Ambiental para la Bogotá del Siglo XXI | L131: 57 | M131: =IF(ISERROR(VLOOKUP(L131,Proposito_programa!$C$2:$E$59,2,FALSE))," ",VLOOKUP(L131,Proposito_programa!$C$2:$E$59,2,FALSE)) -> Gestión pública local | N131: =IF(ISERROR(VLOOKUP(L131,Proposito_programa!$C$2:$E$59,3,FALSE))," ",VLOOKUP(L131,Proposito_programa!$C$2:$E$59,3,FALSE)) -> Propósito 5: Construir Bogotá - Región con gobierno abierto, transparente y ciudadanía consciente | O131: 2023 | P131: 1 | Q131: 79507928 | R131: FRANCISCO JAVIER HIGUERA NOVA | S131: Persona Natural | W131: 19988000 | AA131: 19988000 | AB131: 19988000 | AC131: 44420 | AD131: 44420 | AE131: 44541 | AF131: 120 | AO131: X | AQ131: 1
A132: 1 | B132: 116 | C132: 2021 | D132: FDLC-CPS-116-2021 | E132: https://community.secop.gov.co/Public/Tendering/OpportunityDetail/Index?noticeUID=CO1.NTC.2171605&isFromPublicArea=True&isModal=False | F132: Contratos de prestación de servicios profesionales y de apoyo a la gestión | G132: Contratación directa | H132: Prestación de servicios profesionales y de apoyo a la gestión, o para la ejecución de trabajos artísticos que sólo puedan encomendarse a determinadas personas naturales; | I132: PRESTAR SERVICIOS PROFESIONALES PARA APOYAR JURÍDICAMENTE LA EJECUCIÓN DE LAS ACCIONES REQUERIDAS PARA EL TRÁMITE E IMPULSO PROCESAL DE LAS ACTUACIONES CONTRAVENCIONALES Y/O QUERELLAS QUE CURSEN EN LAS INSPECCIONES DE POLICÍA DE LA LOCALIDAD DE LA CANDELARIA | J132: Inversión | K132: Un Nuevo Contrato Social y Ambiental para la Bogotá del Siglo XXI | L132: 57 | M132: =IF(ISERROR(VLOOKUP(L132,Proposito_programa!$C$2:$E$59,2,FALSE))," ",VLOOKUP(L132,Proposito_programa!$C$2:$E$59,2,FALSE)) -> Gestión pública local | N132: =IF(ISERROR(VLOOKUP(L132,Proposito_programa!$C$2:$E$59,3,FALSE))," ",VLOOKUP(L132,Proposito_programa!$C$2:$E$59,3,FALSE)) -> Propósito 5: Construir Bogotá - Región con gobierno abierto, transparente y ciudadanía consciente | O132: 2023 | P132: 1 | Q132: 1018443671 | R132: JOSE RICARDO PULGARIN ALVAREZ | S132: Persona Natural | W132: 18100000 | Y132: 1 | Z132: 4525000 | AA132: 22625000 | AB132: 16440833 | AC132: 44420 | AD132: 44420 | AE132: 44572 | AF132: 151 | AG132: 1 | AH132: 30 | AO132: X | AQ132: 0.7266666519
A133: 1 | B133: 117 | C133: 2021 | D133: FDLC-CPS-117-2021 | E133: https://community.secop.gov.co/Public/Tendering/OpportunityDetail/Index?noticeUID=CO1.NTC.2174358&isFromPublicArea=True&isModal=true&asPopupView=true | F133: Contratos de prestación de servicios profesionales y de apoyo a la gestión | G133: Contratación directa | H133: Prestación de servicios profesionales y de apoyo a la gestión, o para la ejecución de trabajos artísticos que sólo puedan encomendarse a determinadas personas naturales; | I133: PRESTAR SERVICIOS TÉCNICOS ADMINISTRATIVOS EN LAS DISTINTAS ETAPAS DE LOS PROCESOS CONTRACTUALES DE COMPETENCIA DE LA ALCALDIA LOCAL DE LA CANDELARIA | J133: Inversión | K133: Un Nuevo Contrato Social y Ambiental para la Bogotá del Siglo XXI | L133: 57 | M133: =IF(ISERROR(VLOOKUP(L133,Proposito_programa!$C$2:$E$59,2,FALSE))," ",VLOOKUP(L133,Proposito_programa!$C$2:$E$59,2,FALSE)) -> Gestión pública local | N133: =IF(ISERROR(VLOOKUP(L133,Proposito_programa!$C$2:$E$59,3,FALSE))," ",VLOOKUP(L133,Proposito_programa!$C$2:$E$59,3,FALSE)) -> Propósito 5: Construir Bogotá - Región con gobierno abierto, transparente y ciudadanía consciente | O133: 2021 | P133: 1 | Q133: 52305372 | R133: ELCY JEANETH PULIDO AMORTEGUI | S133: Persona Natural | W133: 14000000 | Y133: 1 | Z133: 3266667 | AA133: 17266667 | AB133: 16216667 | AC133: 44421 | AD133: 44421 | AE133: 44570 | AF133: 120 | AG133: 1 | AH133: 28 | AO133: X | AQ133: 0.9391891904
A134: 1 | B134: 118 | C134: 2021 | D134: FDLC-CPS-118-2021 | E134: https://community.secop.gov.co/Public/Tendering/OpportunityDetail/Index?noticeUID=CO1.NTC.2174188&isFromPublicArea=True&isModal=true&asPopupView=true | F134: Contratos de prestación de servicios profesionales y de apoyo a la gestión | G134: Contratación directa | H134: Prestación de servicios profesionales y de apoyo a la gestión, o para la ejecución de trabajos artísticos que sólo puedan encomendarse a determinadas personas naturales; | I134: PRESTAR SERVICIOS PROFESIONALES AL FONDO DE DESARROLLO LOCAL DE LA CANDELARIA COMO ABOGADO DE APOYO AL DESPACHO DE LA ALCALDESA LOCAL, EN LAS DIFERENTES ACTIVIDADES Y FUNCIONES QUE LE COMPETEN A ESTA DEPENDENCIA | J134: Inversión | K134: Un Nuevo Contrato Social y Ambiental para la Bogotá del Siglo XXI | L134: 57 | M134: =IF(ISERROR(VLOOKUP(L134,Proposito_programa!$C$2:$E$59,2,FALSE))," ",VLOOKUP(L134,Proposito_programa!$C$2:$E$59,2,FALSE)) -> Gestión pública local | N134: =IF(ISERROR(VLOOKUP(L134,Proposito_programa!$C$2:$E$59,3,FALSE))," ",VLOOKUP(L134,Proposito_programa!$C$2:$E$59,3,FALSE)) -> Propósito 5: Construir Bogotá - Región con gobierno abierto, transparente y ciudadanía consciente | O134: 2021 | P134: 1 | Q134: 52314352 | R134: CONSTANZA DEL PILAR LEYTON RICO | S134: Persona Natural | W134: 20000000 | Y134: 1 | Z134: 4833333 | AA134: 24833333 | AB134: 23166666 | AC134: 44421 | AD134: 44421 | AE134: 44571 | AF134: 120 | AH134: 29 | AO134: X | AQ134: 0.9328858917
A135: 1 | B135: 119 | C135: 2021 | D135: FDLC-CPS-119-2021 | E135: https://community.secop.gov.co/Public/Tendering/OpportunityDetail/Index?noticeUID=CO1.NTC.2185019&isFromPublicArea=True&isModal=true&asPopupView=true | F135: Contratos de prestación de servicios profesionales y de apoyo a la gestión | G135: Contratación directa | H135: Prestación de servicios profesionales y de apoyo a la gestión, o para la ejecución de trabajos artísticos que sólo puedan encomendarse a determinadas personas naturales; | I135: PRESTAR SERVICIOS PROFESIONALES PARA APOYAR JURÍDICAMENTE LA EJECUCIÓN DE LAS ACCIONES REQUERIDAS PARA LA DEPURACIÓN DE LAS ACTUACIONES ADMINISTRATIVAS QUE CURSAN EN LA ALCALDÍA LOCAL DE LA CANDELARIA ASÍ COMO EL SEGUIMIENTO AL CIERRE DE LOS RESPECTIVOS EXPEDIENTES | J135: Inversión | K135: Un Nuevo Contrato Social y Ambiental para la Bogotá del Siglo XXI | L135: 57 | M135: =IF(ISERROR(VLOOKUP(L135,Proposito_programa!$C$2:$E$59,2,FALSE))," ",VLOOKUP(L135,Proposito_programa!$C$2:$E$59,2,FALSE)) -> Gestión pública local | N135: =IF(ISERROR(VLOOKUP(L135,Proposito_programa!$C$2:$E$59,3,FALSE))," ",VLOOKUP(L135,Proposito_programa!$C$2:$E$59,3,FALSE)) -> Propósito 5: Construir Bogotá - Región con gobierno abierto, transparente y ciudadanía consciente | O135: 2023 | P135: 1 | Q135: 1032356337 | R135: ANDRES FERNANDO RIVERA SOLINA | S135: Persona Natural | W135: 22000000 | AA135: 22000000 | AB135: 22000000 | AC135: 44427 | AD135: 44427 | AE135: 44548 | AF135: 120 | AO135: X | AQ135: 1
A136: 1 | B136: 120 | C136: 2021 | D136: FDLC-CPS-120-2021 | E136: https://community.secop.gov.co/Public/Tendering/OpportunityDetail/Index?noticeUID=CO1.NTC.2185512&isFromPublicArea=True&isModal=true&asPopupView=true | F136: Contratos de prestación de servicios profesionales y de apoyo a la gestión | G136: Contratación directa | H136: Prestación de servicios profesionales y de apoyo a la gestión, o para la ejecución de trabajos artísticos que sólo puedan encomendarse a determinadas personas naturales; | I136: PRESTAR SERVICIOS PROFESIONALES AL FONDO DE DESARROLLO LOCAL DE LA CANDELARIA PARA LA OPERACIÓN, PRESTACIÓN, SEGUIMIENTO Y CUMPLIMIENTO DE LOS PROCEDIMIENTOS ADMINISTRATIVOS, OPERATIVOS Y PROGRAMÁTICOS DEL SERVICIO APOYO ECONÓMICO TIPO C, QUE CONTRIBUYAN A LA GARANTÍA DE LOS DERECHOS DE LA POBLACIÓN MAYOR EN EL MARCO DE LA POLÍTICA PÚBLICA SOCIAL PARA EL ENVEJECIMIENTO Y LA VEJEZ EN EL DISTRITO CAPITAL A CARGO DE LA ALCALDÍA LOCAL | J136: Inversión | K136: Un Nuevo Contrato Social y Ambiental para la Bogotá del Siglo XXI | L136: 1 | M136: =IF(ISERROR(VLOOKUP(L136,Proposito_programa!$C$2:$E$59,2,FALSE))," ",VLOOKUP(L136,Proposito_programa!$C$2:$E$59,2,FALSE)) -> Subsidios y transferencias para la equidad | N136: =IF(ISERROR(VLOOKUP(L136,Proposito_programa!$C$2:$E$59,3,FALSE))," ",VLOOKUP(L136,Proposito_programa!$C$2:$E$59,3,FALSE)) -> Propósito 1: Hacer un nuevo contrato social para incrementar la inclusión social, productiva y política | O136: 1605 | P136: 1 | Q136: 1010190450 | R136: VIVIANA LIZETH MONROY RAMIREZ | S136: Persona Natural | W136: 16752000 | Y136: 1 | Z136: 3210800 | AA136: =+W136+X136+Z136 -> 19962800 | AB136: 18566800 | AC136: 44427 | AD136: 44427 | AE136: 44571 | AF136: 120 | AG136: 1 | AH136: 23 | AO136: X | AQ136: 0.9300699301
A137: 1 | B137: FDLC-ACI-001-2021 | C137: 2021 | D137: FDLC-ACI-001-2021 | E137: https://community.secop.gov.co/Public/Tendering/OpportunityDetail/Index?noticeUID=CO1.NTC.2222582&isFromPublicArea=True&isModal=False | F137: Convenios de cooperacion | G137: Régimen especial | H137: Decreto 92 de 2017 | I137: “Aunar esfuerzos para la cooperación administrativa, técnica y económica, entre el Programa para las Naciones Unidas para el Desarrollo (PNUD) y El Fondo de Desarrollo Local, con el fin de fortalecer a los emprendimientos de la economía popular de la localidad de la Candelaria y las unidades productivas y/o poblaciones dedicadas a actividades tradicionales que permiten generar ingresos (autoempleo), así́ como de las micro y pequeñas empresas locales, a través de un proceso de acompañamiento especializado y de entrega de incentivos, que permita el mejoramiento de las competencias de los emprendedores, empresarios y las condiciones de sus negocios” | J137: Inversión | K137: Un Nuevo Contrato Social y Ambiental para la Bogotá del Siglo XXI | L137: 6 | M137: =IF(ISERROR(VLOOKUP(L137,Proposito_programa!$C$2:$E$59,2,FALSE))," ",VLOOKUP(L137,Proposito_programa!$C$2:$E$59,2,FALSE)) -> Sistema Distrital de Cuidado | N137: =IF(ISERROR(VLOOKUP(L137,Proposito_programa!$C$2:$E$59,3,FALSE))," ",VLOOKUP(L137,Proposito_programa!$C$2:$E$59,3,FALSE)) -> Propósito 1: Hacer un nuevo contrato social para incrementar la inclusión social, productiva y política | O137: 1628 | P137: 1 | Q137: 800091076 | R137: PROGRAMA DE LAS NACIONES UNIDAS PARA EL DESARROLLO PNUD | S137: Persona Jurídica | W137: 755000000 | Y137: 1 | Z137: 52645195 | AA137: 807645195 | AB137: 755000000 | AC137: 44431 | AD137: 44431 | AE137: 44585 | AF137: 150 | AO137: X | AQ137: 0.9348164326
A138: 1 | B138: 121 | C138: 2021 | D138: FDLC-CPS-121-2021 | E138: https://community.secop.gov.co/Public/Tendering/OpportunityDetail/Index?noticeUID=CO1.NTC.2200428&isFromPublicArea=True&isModal=true&asPopupView=true | F138: Contratos de prestación de servicios profesionales y de apoyo a la gestión | G138: Contratación directa | H138: Prestación de servicios profesionales y de apoyo a la gestión, o para la ejecución de trabajos artísticos que sólo puedan encomendarse a determinadas personas naturales; | I138: PRESTAR SERVICIOS PROFESIONALES COMO ABOGADO COBRO PERSUASIVO - EN EL ÁREA DE GESTIÓN POLICIVA Y JURÍDICA DE LA ALCALDIA LOCAL DE LA CANDELARIA | J138: Inversión | K138: Un Nuevo Contrato Social y Ambiental para la Bogotá del Siglo XXI | L138: 57 | M138: =IF(ISERROR(VLOOKUP(L138,Proposito_programa!$C$2:$E$59,2,FALSE))," ",VLOOKUP(L138,Proposito_programa!$C$2:$E$59,2,FALSE)) -> Gestión pública local | N138: =IF(ISERROR(VLOOKUP(L138,Proposito_programa!$C$2:$E$59,3,FALSE))," ",VLOOKUP(L138,Proposito_programa!$C$2:$E$59,3,FALSE)) -> Propósito 5: Construir Bogotá - Región con gobierno abierto, transparente y ciudadanía consciente | O138: 2023 | P138: 1 | Q138: 32645897 | R138: MIRYAM ESTHER LOPEZ RODRIGUEZ | S138: Persona Natural | W138: 18100000 | AA138: 18100000 | AB138: 12670000 | AC138: 44433 | AD138: 44433 | AE138: 44554 | AF138: 120 | AI138: 41794885 | AJ138: TERESA HERREÑO SOLANO | AK138: 44467 | AL138: 13122500 | AO138: X | AQ138: 0.7
A139: 1 | B139: 122 | C139: 2021 | D139: FDLC-CPS-122-2021 | E139: https://community.secop.gov.co/Public/Tendering/OpportunityDetail/Index?noticeUID=CO1.NTC.2199943&isFromPublicArea=True&isModal=true&asPopupView=true | F139: Contratos de prestación de servicios profesionales y de apoyo a la gestión | G139: Contratación directa | H139: Prestación de servicios profesionales y de apoyo a la gestión, o para la ejecución de trabajos artísticos que sólo puedan encomendarse a determinadas personas naturales; | I139: PRESTAR SERVICIOS PROFESIONALES PARA APOYAR JURÍDICAMENTE LA EJECUCIÓN DE LAS ACCIONES REQUERIDAS PARA LA DEPURACIÓN DE LAS ACTUACIONES ADMINISTRATIVAS QUE CURSAN EN LA ALCALDÍA LOCAL DE LA CANDELARIA | J139: Inversión | K139: Un Nuevo Contrato Social y Ambiental para la Bogotá del Siglo XXI | L139: 57 | M139: =IF(ISERROR(VLOOKUP(L139,Proposito_programa!$C$2:$E$59,2,FALSE))," ",VLOOKUP(L139,Proposito_programa!$C$2:$E$59,2,FALSE)) -> Gestión pública local | N139: =IF(ISERROR(VLOOKUP(L139,Proposito_programa!$C$2:$E$59,3,FALSE))," ",VLOOKUP(L139,Proposito_programa!$C$2:$E$59,3,FALSE)) -> Propósito 5: Construir Bogotá - Región con gobierno abierto, transparente y ciudadanía consciente | O139: 2023 | P139: 1 | Q139: 53166387 | R139: DIANA MARCELA ORTIZ DUQUE | S139: Persona Natural | W139: 18100000 | AA139: 18100000 | AB139: 14480000 | AC139: 44433 | AD139: 44433 | AE139: 44554 | AF139: 120 | AO139: X | AQ139: 0.8
A140: 1 | B140: 123 | C140: 2021 | D140: FDLC-CPS-123-2021 | E140: https://community.secop.gov.co/Public/Tendering/OpportunityDetail/Index?noticeUID=CO1.NTC.2201647&isFromPublicArea=True&isModal=true&asPopupView=true | F140: Contratos de prestación de servicios profesionales y de apoyo a la gestión | G140: Contratación directa | H140: Prestación de servicios profesionales y de apoyo a la gestión, o para la ejecución de trabajos artísticos que sólo puedan encomendarse a determinadas personas naturales; | I140: PRESTAR SERVICIOS DE APOYO ADMINISTRATIVO Y ASISTENCIAL EN LA GESTIÓN DE LA ALCALDÍA LOCAL DE LA CANDELARIA EN EL TRÁMITE DE LOS COMPARENDOS Y QUERELLAS, DE CONFORMIDAD CON EL CODIGO NACIONAL DE POLICIA-LEY 1801 DE 2016 | J140: Inversión | K140: Un Nuevo Contrato Social y Ambiental para la Bogotá del Siglo XXI | L140: 57 | M140: =IF(ISERROR(VLOOKUP(L140,Proposito_programa!$C$2:$E$59,2,FALSE))," ",VLOOKUP(L140,Proposito_programa!$C$2:$E$59,2,FALSE)) -> Gestión pública local | N140: =IF(ISERROR(VLOOKUP(L140,Proposito_programa!$C$2:$E$59,3,FALSE))," ",VLOOKUP(L140,Proposito_programa!$C$2:$E$59,3,FALSE)) -> Propósito 5: Construir Bogotá - Región con gobierno abierto, transparente y ciudadanía consciente | O140: 2023 | P140: 1 | Q140: 1022973767 | R140: JARRY EMERSON RIAÑO DELGADO | S140: Persona Natural | W140: 8800000 | Y140: 1 | Z140: 1173333 | AA140: 9973333 | AB140: 9240000 | AC140: 44434 | AD140: 44434 | AE140: 44571 | AF140: 120 | AH140: 16 | AO140: X | AQ140: 0.9264706192
A141: 1 | B141: 124 | C141: 2021 | D141: FDLC-IMC-004-2021 | E141: https://community.secop.gov.co/Public/Tendering/OpportunityDetail/Index?noticeUID=CO1.NTC.2180137&isFromPublicArea=True&isModal=true&asPopupView=true | F141: Compraventa de bienes muebles | G141: Contratación mínima cuantia | H141: No aplica | I141: ADQUISICIÓN DE MESAS MÓVILES PLEGABLES PARA EL USO DE ACTIVIDADES INSTITUCIONALES, DE CONFORMIDAD CON LAS ESPECIFICACIONES TÉCNICAS | J141: Inversión | K141: Un Nuevo Contrato Social y Ambiental para la Bogotá del Siglo XXI | L141: 6 | M141: =IF(ISERROR(VLOOKUP(L141,Proposito_programa!$C$2:$E$59,2,FALSE))," ",VLOOKUP(L141,Proposito_programa!$C$2:$E$59,2,FALSE)) -> Sistema Distrital de Cuidado | N141: =IF(ISERROR(VLOOKUP(L141,Proposito_programa!$C$2:$E$59,3,FALSE))," ",VLOOKUP(L141,Proposito_programa!$C$2:$E$59,3,FALSE)) -> Propósito 1: Hacer un nuevo contrato social para incrementar la inclusión social, productiva y política | O141: 1628 | P141: 1 | Q141: 900007203 | R141: MARKETGROUP SAS | S141: Persona Jurídica | W141: 18400000 | AA141: 18400000 | AB141: 18400000 | AC141: 44438 | AD141: 44440 | AE141: 44469 | AF141: 30 | AO141: X | AQ141: 1
A142: 1 | B142: 125 | C142: 2021 | D142: FDLC-CPS-125-2021 | E142: https://community.secop.gov.co/Public/Tendering/OpportunityDetail/Index?noticeUID=CO1.NTC.2216056&isFromPublicArea=True&isModal=true&asPopupView=true | F142: Contratos de prestación de servicios profesionales y de apoyo a la gestión | G142: Contratación directa | H142: Prestación de servicios profesionales y de apoyo a la gestión, o para la ejecución de trabajos artísticos que sólo puedan encomendarse a determinadas personas naturales; | I142: PRESTAR SERVICIOS DE APOYO ADMINISTRATIVO Y ASISTENCIAL EN LOS PROCESOS EFECTUADOS POR EL EQUIPO JURÍDICO DE LA ALCALDÍA LOCAL DE LA CANDELRIA | J142: Inversión | K142: Un Nuevo Contrato Social y Ambiental para la Bogotá del Siglo XXI | L142: 57 | M142: =IF(ISERROR(VLOOKUP(L142,Proposito_programa!$C$2:$E$59,2,FALSE))," ",VLOOKUP(L142,Proposito_programa!$C$2:$E$59,2,FALSE)) -> Gestión pública local | N142: =IF(ISERROR(VLOOKUP(L142,Proposito_programa!$C$2:$E$59,3,FALSE))," ",VLOOKUP(L142,Proposito_programa!$C$2:$E$59,3,FALSE)) -> Propósito 5: Construir Bogotá - Región con gobierno abierto, transparente y ciudadanía consciente | O142: 2023 | P142: 1 | Q142: 43904066 | R142: MARIA NATHALIE INFANTE GOMEZ | S142: Persona Natural | W142: 6800000 | AA142: 6800000 | AB142: 5100000 | AC142: 44440 | AD142: 44440 | AE142: 44560 | AF142: 120 | AO142: X | AQ142: 0.75
A143: 1 | B143: 126 | C143: 2021 | D143: FDLC-CPS-126- 2021 | E143: https://community.secop.gov.co/Public/Tendering/OpportunityDetail/Index?noticeUID=CO1.NTC.2217420&isFromPublicArea=True&isModal=true&asPopupView=true | F143: Contratos de prestación de servicios profesionales y de apoyo a la gestión | G143: Contratación directa | H143: Prestación de servicios profesionales y de apoyo a la gestión, o para la ejecución de trabajos artísticos que sólo puedan encomendarse a determinadas personas naturales; | I143: PRESTAR SERVICIOS PROFESIONALES PARA APOYAR JURÍDICAMENTE LA EJECUCIÓN DE LAS ACCIONES REQUERIDAS PARA LA DEPURACIÓN DE LAS ACTUACIONES ADMINISTRATIVAS QUE CURSAN EN LA ALCALDÍA LOCAL DE LA CANDELARIA | J143: Inversión | K143: Un Nuevo Contrato Social y Ambiental para la Bogotá del Siglo XXI | L143: 57 | M143: =IF(ISERROR(VLOOKUP(L143,Proposito_programa!$C$2:$E$59,2,FALSE))," ",VLOOKUP(L143,Proposito_programa!$C$2:$E$59,2,FALSE)) -> Gestión pública local | N143: =IF(ISERROR(VLOOKUP(L143,Proposito_programa!$C$2:$E$59,3,FALSE))," ",VLOOKUP(L143,Proposito_programa!$C$2:$E$59,3,FALSE)) -> Propósito 5: Construir Bogotá - Región con gobierno abierto, transparente y ciudadanía consciente | O143: 2023 | P143: 1 | Q143: 22463659 | R143: DIGNORA LOPEZ MONCADA | S143: Persona Natural | W143: 18100000 | AA143: 18100000 | AB143: 13575000 | AC143: 44440 | AD143: 44440 | AE143: 44560 | AF143: 120 | AO143: X | AQ143: =IF(ISERROR(AB143/AA143),"-",(AB143/AA143)) -> 0.75
A144: 1 | B144: 127 | C144: 2021 | D144: FDLC-IMC-005-2021 | E144: https://community.secop.gov.co/Public/Tendering/OpportunityDetail/Index?noticeUID=CO1.NTC.2188244&isFromPublicArea=True&isModal=False | F144: Suministro | G144: Contratación mínima cuantia | H144: No aplica | I144: SUMINISTRO DE REFRIGERIOS, A PRECIOS UNITARIOS Y A MONTO AGOTABLE PARA FORTALECER LA PARTICIPACIÓN EN EL PROCESO DE RENDICION DE CUENTAS PARA EL FORTALECIMIENTO INSITUCIONAL | J144: Inversión | K144: Un Nuevo Contrato Social y Ambiental para la Bogotá del Siglo XXI | L144: 57 | M144: =IF(ISERROR(VLOOKUP(L144,Proposito_programa!$C$2:$E$59,2,FALSE))," ",VLOOKUP(L144,Proposito_programa!$C$2:$E$59,2,FALSE)) -> Gestión pública local | N144: =IF(ISERROR(VLOOKUP(L144,Proposito_programa!$C$2:$E$59,3,FALSE))," ",VLOOKUP(L144,Proposito_programa!$C$2:$E$59,3,FALSE)) -> Propósito 5: Construir Bogotá - Región con gobierno abierto, transparente y ciudadanía consciente | O144: 2021 | P144: 1 | Q144: 800081700 | R144: FRUPYS LTDA | S144: Persona Jurídica | W144: 3502000 | AA144: 3502000 | AB144: 3502000 | AC144: 44440 | AD144: 44441 | AE144: 44621 | AF144: 180 | AN144: X | AQ144: 1
A145: 0 | B145: 127 | C145: 2021 | D145: FDLC-IMC-005-2021 | E145: https://community.secop.gov.co/Public/Tendering/OpportunityDetail/Index?noticeUID=CO1.NTC.2188244&isFromPublicArea=True&isModal=False | F145: Suministro | G145: Contratación mínima cuantia | H145: No aplica | I145: SUMINISTRO DE REFRIGERIOS, A PRECIOS UNITARIOS Y A MONTO AGOTABLE PARA FORTALECER LA PARTICIPACIÓN EN EL PROCESO DE RENDICION DE CUENTAS PARA EL FORTALECIMIENTO INSITUCIONAL | J145: Inversión | K145: Un Nuevo Contrato Social y Ambiental para la Bogotá del Siglo XXI | L145: 55 | M145: =IF(ISERROR(VLOOKUP(L145,Proposito_programa!$C$2:$E$59,2,FALSE))," ",VLOOKUP(L145,Proposito_programa!$C$2:$E$59,2,FALSE)) -> Fortalecimiento de cultura ciudadana y su institucionalidad | N145: =IF(ISERROR(VLOOKUP(L145,Proposito_programa!$C$2:$E$59,3,FALSE))," ",VLOOKUP(L145,Proposito_programa!$C$2:$E$59,3,FALSE)) -> Propósito 5: Construir Bogotá - Región con gobierno abierto, transparente y ciudadanía consciente | O145: 2019 | P145: 1 | Q145: 800081700 | R145: FRUPYS LTDA | S145: Persona Jurídica | W145: 1444075 | AA145: =+W145+X145+Z145 -> 1444075 | AB145: 1444075 | AC145: 44440 | AD145: 44441 | AE145: 44621 | AF145: 180 | AN145: X | AQ145: =IF(ISERROR(AB145/AA145),"-",(AB145/AA145)) -> 1
A146: 1 | B146: 128 | C146: 2021 | D146: FDLC-SAMC-005-2021 | E146: https://community.secop.gov.co/Public/Tendering/OpportunityDetail/Index?noticeUID=CO1.NTC.2174560&isFromPublicArea=True&isModal=False | F146: Contratos de prestación de servicios | G146: Selección abreviada | H146: Selección abreviada por menor cuantía | I146: PRESTAR SERVICIOS PARA REALIZAR LAS ACTIVIDADES QUE PROMUEVAN EL RECONOCIMIENTO Y PROTECCIÓN DE LOS DERECHOS DE LAS MUJERES CANDELARIAS EN EL MARCO DEL PROYECTO 1781 “LA CANDELARIA SEGURA: MUJERES LIBRES DE VIOLENCIAS | J146: Inversión | K146: Un Nuevo Contrato Social y Ambiental para la Bogotá del Siglo XXI | L146: 40 | M146: =IF(ISERROR(VLOOKUP(L146,Proposito_programa!$C$2:$E$59,2,FALSE))," ",VLOOKUP(L146,Proposito_programa!$C$2:$E$59,2,FALSE)) -> Más mujeres viven una vida libre de violencias, se sienten seguras y acceden con confianza al sistema de justicia | N146: =IF(ISERROR(VLOOKUP(L146,Proposito_programa!$C$2:$E$59,3,FALSE))," ",VLOOKUP(L146,Proposito_programa!$C$2:$E$59,3,FALSE)) -> Propósito 3: Inspirar confianza y legitimidad para vivir sin miedo y ser epicentro de cultura ciudadana, paz y reconciliación | O146: 1781 | P146: 1 | Q146: 901071739 | R146: ONNIX PRODUCCIONES SAS | S146: Persona Jurídica | W146: 104973470 | AA146: 104973470 | AB146: 0 | AC146: 44446 | AD146: 44447 | AE146: 44599 | AF146: 150 | AN146: X | AQ146: 0
A147: 1 | B147: 129 | C147: 2021 | D147: FDLC-CPS-129-2021 | E147: https://community.secop.gov.co/Public/Tendering/OpportunityDetail/Index?noticeUID=CO1.NTC.2227880&isFromPublicArea=True&isModal=False | F147: Contratos de prestación de servicios profesionales y de apoyo a la gestión | G147: Contratación directa | H147: Prestación de servicios profesionales y de apoyo a la gestión, o para la ejecución de trabajos artísticos que sólo puedan encomendarse a determinadas personas naturales; | I147: PRESTAR SERVICIOS PROFESIONALES PARA REALIZAR LA COORDINACION TÉCNICA DEL SEGUIMIENTO DE PLANES, POLÍTICAS, PROGRAMAS Y PROYECTOS DE INFRAESTRUCTURA Y OBRAS CIVILES QUE DESARROLLE LA ALCALDÍA LOCAL DE LA CANDELARIA | J147: Inversión | K147: Un Nuevo Contrato Social y Ambiental para la Bogotá del Siglo XXI | L147: 57 | M147: =IF(ISERROR(VLOOKUP(L147,Proposito_programa!$C$2:$E$59,2,FALSE))," ",VLOOKUP(L147,Proposito_programa!$C$2:$E$59,2,FALSE)) -> Gestión pública local | N147: =IF(ISERROR(VLOOKUP(L147,Proposito_programa!$C$2:$E$59,3,FALSE))," ",VLOOKUP(L147,Proposito_programa!$C$2:$E$59,3,FALSE)) -> Propósito 5: Construir Bogotá - Región con gobierno abierto, transparente y ciudadanía consciente | O147: 2023 | P147: 1 | Q147: 17951133 | R147: FABIAN ENRIQUE SIERRA CHIRINO | S147: Persona Natural | W147: 22898400 | AA147: 22898400 | AB147: 16779000 | AC147: 44445 | AD147: 44445 | AE147: 44561 | AF147: 116 | AO147: X | AQ147: 0.7327586207
A148: 1 | B148: 130 | C148: 2021 | D148: FDLC-CPS-130-2021 | E148: https://community.secop.gov.co/Public/Tendering/OpportunityDetail/Index?noticeUID=CO1.NTC.2228059&isFromPublicArea=True&isModal=False | F148: Contratos de prestación de servicios profesionales y de apoyo a la gestión | G148: Contratación directa | H148: Prestación de servicios profesionales y de apoyo a la gestión, o para la ejecución de trabajos artísticos que sólo puedan encomendarse a determinadas personas naturales; | I148: PRESTAR SERVICIOS PROFESIONALES AL FONDO DE DESARROLLO LOCAL DE LA CANDELARIA EN LOS TRÁMITES RELACIONADOS CON LOS PROCESOS PRECONTRACTUALES, CONTRACTUALES Y POS CONTRACTUALES QUE SE ADELANTEN A TRAVÉS DE SECOP I Y II, ASÍ COMO LA ADQUISICIÓN DE BIENES Y SERVICIOS A TRAVÉS DE LA TIENDA VIRTUAL DEL ESTADO COLOMBIANO. | J148: Inversión | K148: Un Nuevo Contrato Social y Ambiental para la Bogotá del Siglo XXI | L148: 57 | M148: =IF(ISERROR(VLOOKUP(L148,Proposito_programa!$C$2:$E$59,2,FALSE))," ",VLOOKUP(L148,Proposito_programa!$C$2:$E$59,2,FALSE)) -> Gestión pública local | N148: =IF(ISERROR(VLOOKUP(L148,Proposito_programa!$C$2:$E$59,3,FALSE))," ",VLOOKUP(L148,Proposito_programa!$C$2:$E$59,3,FALSE)) -> Propósito 5: Construir Bogotá - Región con gobierno abierto, transparente y ciudadanía consciente | O148: 2021 | P148: 1 | Q148: 1049634530 | R148: NELLYR NATHALIA JIMENEZ SANCHEZ | S148: Persona Natural | W148: 16333200 | AA148: 16333200 | AB148: 11866000 | AC148: 44445 | AD148: 44445 | AE148: 44561 | AF148: 116 | AO148: X | AQ148: 0.7264957265
A149: 1 | B149: 131 | C149: 2021 | D149: FDLC-CPS-131-2021 | E149: https://community.secop.gov.co/Public/Tendering/OpportunityDetail/Index?noticeUID=CO1.NTC.2233177&isFromPublicArea=True&isModal=False | F149: Contratos de prestación de servicios profesionales y de apoyo a la gestión | G149: Contratación directa | H149: Prestación de servicios profesionales y de apoyo a la gestión, o para la ejecución de trabajos artísticos que sólo puedan encomendarse a determinadas personas naturales; | I149: PRESTAR SERVICIOS PROFESIONALES PARA APOYAR AL FONDO DE DESARROLLO LOCAL DE LA CANDELARIA EN EL SEGUIMIENTO Y VISUALIZACION DE LA GESTION REALIZADA, EN DESARROLLO DE LOS PROGRAMAS DE ATENCIÓN Y PROTECCIÓN A LOS ANIMALES EN LA LOCALIDAD | J149: Inversión | K149: Un Nuevo Contrato Social y Ambiental para la Bogotá del Siglo XXI | L149: 34 | M149: =IF(ISERROR(VLOOKUP(L149,Proposito_programa!$C$2:$E$59,2,FALSE))," ",VLOOKUP(L149,Proposito_programa!$C$2:$E$59,2,FALSE)) -> Bogotá protectora de los animales | N149: =IF(ISERROR(VLOOKUP(L149,Proposito_programa!$C$2:$E$59,3,FALSE))," ",VLOOKUP(L149,Proposito_programa!$C$2:$E$59,3,FALSE)) -> Propósito 2 : Cambiar Nuestros Hábitos de Vida para Reverdecer a Bogotá y Adaptarnos y Mitigar la Crisis Climática | O149: 1704 | P149: 1 | Q149: 1072707755 | R149: NICOLLE SELESTE ROJAS CAMACHO | S149: Persona Natural | W149: 14000000 | AA149: 14000000 | AB149: 14000000 | AC149: 44447 | AD149: 44447 | AE149: 44552 | AF149: 105 | AO149: X | AQ149: 1
A150: 1 | B150: 132 | C150: 2021 | D150: FDLC-CPS-132-2021 | E150: https://community.secop.gov.co/Public/Tendering/ContractNoticePhases/View?PPI=CO1.PPI.14974147&isFromPublicArea=True&isModal=False | F150: Contratos de prestación de servicios profesionales y de apoyo a la gestión | G150: Contratación directa | H150: Prestación de servicios profesionales y de apoyo a la gestión, o para la ejecución de trabajos artísticos que sólo puedan encomendarse a determinadas personas naturales; | I150: PRESTAR SERVICIOS PROFESIONALES AL FONDO DE DESARROLLO LOCAL DE LA CANDELARIA EN LOS TRÁMITES RELACIONADOS CON LOS PROCESOS PRECONTRACTUALES, CONTRACTUALES Y POS CONTRACTUALES, ASÍ COMO LA ADQUISICIÓN DE BIENES Y SERVICIOS A TRAVÉS DE LA TIENDA VIRTUAL DEL ESTADO COLOMBIANO | J150: Inversión | K150: Un Nuevo Contrato Social y Ambiental para la Bogotá del Siglo XXI | L150: 57 | M150: =IF(ISERROR(VLOOKUP(L150,Proposito_programa!$C$2:$E$59,2,FALSE))," ",VLOOKUP(L150,Proposito_programa!$C$2:$E$59,2,FALSE)) -> Gestión pública local | N150: =IF(ISERROR(VLOOKUP(L150,Proposito_programa!$C$2:$E$59,3,FALSE))," ",VLOOKUP(L150,Proposito_programa!$C$2:$E$59,3,FALSE)) -> Propósito 5: Construir Bogotá - Región con gobierno abierto, transparente y ciudadanía consciente | O150: 2021 | P150: 1 | Q150: 1032456470 | R150: DIANA CATHERINE GONZALEZ MOLANO | S150: Persona Natural | W150: 17600000 | Y150: 1 | Z150: 3360000 | AA150: 20960000 | AB150: 18240000 | AC150: 44447 | AD150: 44447 | AE150: 44578 | AF150: 110 | AH150: 21 | AO150: X | AQ150: 0.8702290076
A151: 1 | B151: 133 | C151: 2021 | D151: FDLC-CPS-133-2021 | E151: https://community.secop.gov.co/Public/Tendering/OpportunityDetail/Index?noticeUID=CO1.NTC.2239377&isFromPublicArea=True&isModal=False | F151: Contratos de prestación de servicios profesionales y de apoyo a la gestión | G151: Contratación directa | H151: Prestación de servicios profesionales y de apoyo a la gestión, o para la ejecución de trabajos artísticos que sólo puedan encomendarse a determinadas personas naturales; | I151: PRESTACIÓN DE SERVICIOS PROFESIONALES EN LA IMPLEMENTACIÓN DE ACCIONES Y ESTRATEGIAS CULTURALES, MUSICALES Y ARTÍSTICAS ENFOCADAS A LAS INSTANCIAS DE PARTICIPACIÓN DE LA LOCALIDAD LA CANDELARIA, DE ACUERDO AL PROYECTO 1625 "LA CANDELARIA CULTURAL, ARTISTICA Y PATRIMONIAL | J151: Inversión | K151: Un Nuevo Contrato Social y Ambiental para la Bogotá del Siglo XXI | L151: 21 | M151: =IF(ISERROR(VLOOKUP(L151,Proposito_programa!$C$2:$E$59,2,FALSE))," ",VLOOKUP(L151,Proposito_programa!$C$2:$E$59,2,FALSE)) -> Creación y vida cotidiana: Apropiación ciudadana del arte, la cultura y el patrimonio, para la democracia cultural | N151: =IF(ISERROR(VLOOKUP(L151,Proposito_programa!$C$2:$E$59,3,FALSE))," ",VLOOKUP(L151,Proposito_programa!$C$2:$E$59,3,FALSE)) -> Propósito 1: Hacer un nuevo contrato social para incrementar la inclusión social, productiva y política | O151: 1625 | P151: 1 | Q151: 1010207254 | R151: ELY DAVID MURILLO CORDOBA | S151: Persona Natural | W151: 14927000 | Y151: 1 | Z151: 2985400 | AA151: 17912400 | AB151: 6920700 | AC151: 44449 | AD151: 44449 | AE151: 44581 | AF151: 110 | AG151: 1 | AH151: 22 | AO151: X | AQ151: 0.3863636364
A152: 1 | B152: 134 | C152: 2021 | D152: FDLC-SAMC-006-2021 | E152: https://community.secop.gov.co/Public/Tendering/OpportunityDetail/Index?noticeUID=CO1.NTC.2195033&isFromPublicArea=True&isModal=False | F152: Contratos de prestación de servicios | G152: Selección abreviada | H152: Selección abreviada por menor cuantía | I152: PRESTAR SERVICIOS PARA REALIZAR ACTIVIDADES QUE PROMUEVAN LA RESIGNIFICACIÓN DEL TRABAJO DE CUIDADO, ASÍ COMO GENERAR ESPACIOS DE RESPIRO PARA LAS PERSONAS CUIDADORAS EN LA LOCALIDAD, EN EL MARCO DEL PROYECTO 1663 “LA CANDELARIA REDISTRIBUTIVA: DEMOCRATIZANDO EL TRABAJO DE CUIDADO | J152: Inversión | K152: Un Nuevo Contrato Social y Ambiental para la Bogotá del Siglo XXI | L152: 6 | M152: =IF(ISERROR(VLOOKUP(L152,Proposito_programa!$C$2:$E$59,2,FALSE))," ",VLOOKUP(L152,Proposito_programa!$C$2:$E$59,2,FALSE)) -> Sistema Distrital de Cuidado | N152: =IF(ISERROR(VLOOKUP(L152,Proposito_programa!$C$2:$E$59,3,FALSE))," ",VLOOKUP(L152,Proposito_programa!$C$2:$E$59,3,FALSE)) -> Propósito 1: Hacer un nuevo contrato social para incrementar la inclusión social, productiva y política | O152: 1663 | P152: 1 | Q152: 900175374 | R152: ASOCIACION DE HOGARES SI A LA VIDA | S152: Persona Jurídica | W152: 79573859 | AA152: 79573859 | AB152: 0 | AC152: 44455 | AD152: 44460 | AE152: 44581 | AF152: 120 | AN152: X | AQ152: 0
A153: 1 | B153: 135 | C153: 2021 | D153: ORDEN DE COMPRA 75024 | E153: https://colombiacompra.gov.co/tienda-virtual-del-estado-colombiano/ordenes-compra/75024 | F153: Compraventa de bienes muebles | G153: Selección abreviada | H153: Acuerdo marco de precios | I153: ADQUISICIÓN A TRAVES DE ACUERDO MARCO DE ELEMENTOS DIDÁCTICOS, ARTÍSTICOS, DEPORTIVOS Y DE AUDIOVISUALES NECESARIOS PARA DOTACIÓN DE CENTRO AMAR UBICADO EN LA LOCALIDAD LA CANDELARIA | J153: Inversión | K153: Un Nuevo Contrato Social y Ambiental para la Bogotá del Siglo XXI | L153: 6 | M153: =IF(ISERROR(VLOOKUP(L153,Proposito_programa!$C$2:$E$59,2,FALSE))," ",VLOOKUP(L153,Proposito_programa!$C$2:$E$59,2,FALSE)) -> Sistema Distrital de Cuidado | N153: =IF(ISERROR(VLOOKUP(L153,Proposito_programa!$C$2:$E$59,3,FALSE))," ",VLOOKUP(L153,Proposito_programa!$C$2:$E$59,3,FALSE)) -> Propósito 1: Hacer un nuevo contrato social para incrementar la inclusión social, productiva y política | O153: 1662 | P153: 1 | Q153: 900552715 | R153: GRUPO EMPRESARIAL MADEX S A S | S153: Persona Jurídica | W153: 761300 | AA153: 761300 | AB153: 761299 | AC153: 44434 | AD153: 44438 | AE153: 44469 | AF153: 30 | AO153: X | AQ153: 0.9999986865
A154: 1 | B154: 136 | C154: 2021 | D154: ORDEN DE COMPRA 75025 | E154: https://colombiacompra.gov.co/tienda-virtual-del-estado-colombiano/ordenes-compra/75025 | F154: Compraventa de bienes muebles | G154: Selección abreviada | H154: Acuerdo marco de precios | I154: ADQUISICIÓN A TRAVES DE ACUERDO MARCO DE ELEMENTOS DIDÁCTICOS, ARTÍSTICOS, DEPORTIVOS Y DE AUDIOVISUALES NECESARIOS PARA DOTACIÓN DE CENTRO AMAR UBICADO EN LA LOCALIDAD LA CANDELARIA | J154: Inversión | K154: Un Nuevo Contrato Social y Ambiental para la Bogotá del Siglo XXI | L154: 6 | M154: =IF(ISERROR(VLOOKUP(L154,Proposito_programa!$C$2:$E$59,2,FALSE))," ",VLOOKUP(L154,Proposito_programa!$C$2:$E$59,2,FALSE)) -> Sistema Distrital de Cuidado | N154: =IF(ISERROR(VLOOKUP(L154,Proposito_programa!$C$2:$E$59,3,FALSE))," ",VLOOKUP(L154,Proposito_programa!$C$2:$E$59,3,FALSE)) -> Propósito 1: Hacer un nuevo contrato social para incrementar la inclusión social, productiva y política | O154: 1662 | P154: 1 | Q154: 900838665 | R154: ABOVE SAS | S154: Persona Jurídica | W154: 5656506 | AA154: =+W154+X154+Z154 -> 5656506 | AB154: 5656506 | AC154: 44434 | AD154: 44459 | AE154: 44511 | AF154: 30 | AH154: 23 | AO154: X | AQ154: 1
A155: 1 | B155: 137 | C155: 2021 | D155: ORDEN DE COMPRA 75026 | E155: https://colombiacompra.gov.co/tienda-virtual-del-estado-colombiano/ordenes-compra/75026 | F155: Compraventa de bienes muebles | G155: Selección abreviada | H155: Acuerdo marco de precios | I155: ADQUISICIÓN A TRAVES DE ACUERDO MARCO DE ELEMENTOS DIDÁCTICOS, ARTÍSTICOS, DEPORTIVOS Y DE AUDIOVISUALES NECESARIOS PARA DOTACIÓN DE CENTRO AMAR UBICADO EN LA LOCALIDAD LA CANDELARIA | J155: Inversión | K155: Un Nuevo Contrato Social y Ambiental para la Bogotá del Siglo XXI | L155: 6 | M155: =IF(ISERROR(VLOOKUP(L155,Proposito_programa!$C$2:$E$59,2,FALSE))," ",VLOOKUP(L155,Proposito_programa!$C$2:$E$59,2,FALSE)) -> Sistema Distrital de Cuidado | N155: =IF(ISERROR(VLOOKUP(L155,Proposito_programa!$C$2:$E$59,3,FALSE))," ",VLOOKUP(L155,Proposito_programa!$C$2:$E$59,3,FALSE)) -> Propósito 1: Hacer un nuevo contrato social para incrementar la inclusión social, productiva y política | O155: 1662 | P155: 1 | Q155: 900353659 | R155: JM GRUPO EMPRESARIAL SAS | S155: Persona Jurídica | W155: 368186 | AA155: =+W155+X155+Z155 -> 368186 | AB155: 368186 | AC155: 44434 | AD155: 44438 | AE155: 44469 | AF155: 30 | AO155: X | AQ155: =IF(ISERROR(AB155/AA155),"-",(AB155/AA155)) -> 1
A156: 1 | B156: 138 | C156: 2021 | D156: ORDEN DE COMPRA 75027 | E156: https://colombiacompra.gov.co/tienda-virtual-del-estado-colombiano/ordenes-compra/75027 | F156: Compraventa de bienes muebles | G156: Selección abreviada | H156: Acuerdo marco de precios | I156: ADQUISICIÓN A TRAVES DE ACUERDO MARCO DE ELEMENTOS DIDÁCTICOS, ARTÍSTICOS, DEPORTIVOS Y DE AUDIOVISUALES NECESARIOS PARA DOTACIÓN DE CENTRO AMAR UBICADO EN LA LOCALIDAD LA CANDELARIA | J156: Inversión | K156: Un Nuevo Contrato Social y Ambiental para la Bogotá del Siglo XXI | L156: 6 | M156: =IF(ISERROR(VLOOKUP(L156,Proposito_programa!$C$2:$E$59,2,FALSE))," ",VLOOKUP(L156,Proposito_programa!$C$2:$E$59,2,FALSE)) -> Sistema Distrital de Cuidado | N156: =IF(ISERROR(VLOOKUP(L156,Proposito_programa!$C$2:$E$59,3,FALSE))," ",VLOOKUP(L156,Proposito_programa!$C$2:$E$59,3,FALSE)) -> Propósito 1: Hacer un nuevo contrato social para incrementar la inclusión social, productiva y política | O156: 1662 | P156: 1 | Q156: 52430291 | R156: NELLY CARMENSA FIGUEROA ANACONA | S156: Persona Natural | W156: 546172 | AA156: 546172 | AB156: 546171 | AC156: 44434 | AD156: 44438 | AE156: 44469 | AF156: 30 | AO156: X | AQ156: 0.9999981691
A157: 1 | B157: 139 | C157: 2021 | D157: ORDEN DE COMPRA 75028 | E157: https://colombiacompra.gov.co/tienda-virtual-del-estado-colombiano/ordenes-compra/75028 | F157: Compraventa de bienes muebles | G157: Selección abreviada | H157: Acuerdo marco de precios | I157: ADQUISICIÓN A TRAVES DE ACUERDO MARCO DE ELEMENTOS DIDÁCTICOS, ARTÍSTICOS, DEPORTIVOS Y DE AUDIOVISUALES NECESARIOS PARA DOTACIÓN DE CENTRO AMAR UBICADO EN LA LOCALIDAD LA CANDELARIA | J157: Inversión | K157: Un Nuevo Contrato Social y Ambiental para la Bogotá del Siglo XXI | L157: 6 | M157: =IF(ISERROR(VLOOKUP(L157,Proposito_programa!$C$2:$E$59,2,FALSE))," ",VLOOKUP(L157,Proposito_programa!$C$2:$E$59,2,FALSE)) -> Sistema Distrital de Cuidado | N157: =IF(ISERROR(VLOOKUP(L157,Proposito_programa!$C$2:$E$59,3,FALSE))," ",VLOOKUP(L157,Proposito_programa!$C$2:$E$59,3,FALSE)) -> Propósito 1: Hacer un nuevo contrato social para incrementar la inclusión social, productiva y política | O157: 1662 | P157: 1 | Q157: 830037278 | R157: NUEVA ERA SOLUCIONES SAS | S157: Persona Jurídica | W157: 4258248 | AA157: 4258248 | AB157: 4258248 | AC157: 44434 | AD157: 44438 | AE157: 44469 | AF157: 30 | AO157: X | AQ157: 1
A158: 1 | B158: 140 | C158: 2021 | D158: ORDEN DE COMPRA 75029 | E158: https://colombiacompra.gov.co/tienda-virtual-del-estado-colombiano/ordenes-compra/75029 | F158: Compraventa de bienes muebles | G158: Selección abreviada | H158: Acuerdo marco de precios | I158: ADQUISICIÓN A TRAVES DE ACUERDO MARCO DE ELEMENTOS DIDÁCTICOS, ARTÍSTICOS, DEPORTIVOS Y DE AUDIOVISUALES NECESARIOS PARA DOTACIÓN DE CENTRO AMAR UBICADO EN LA LOCALIDAD LA CANDELARIA | J158: Inversión | K158: Un Nuevo Contrato Social y Ambiental para la Bogotá del Siglo XXI | L158: 6 | M158: =IF(ISERROR(VLOOKUP(L158,Proposito_programa!$C$2:$E$59,2,FALSE))," ",VLOOKUP(L158,Proposito_programa!$C$2:$E$59,2,FALSE)) -> Sistema Distrital de Cuidado | N158: =IF(ISERROR(VLOOKUP(L158,Proposito_programa!$C$2:$E$59,3,FALSE))," ",VLOOKUP(L158,Proposito_programa!$C$2:$E$59,3,FALSE)) -> Propósito 1: Hacer un nuevo contrato social para incrementar la inclusión social, productiva y política | O158: 1662 | P158: 1 | Q158: 901495650 | R158: UNIÓN TEMPORAL PEDAGÓGICOS 2021 | S158: Unión Temporal | T158: 860403480 | U158: IMDICOL LTDA | V158: 0.5 | W158: 5940480 | AA158: 5940480 | AB158: 5940480 | AC158: 44434 | AD158: 44438 | AE158: 44469 | AF158: 30 | AO158: X | AQ158: 1
A159: 0 | B159: 140 | C159: 2021 | D159: ORDEN DE COMPRA 75029 | E159: https://colombiacompra.gov.co/tienda-virtual-del-estado-colombiano/ordenes-compra/75029 | F159: Compraventa de bienes muebles | G159: Selección abreviada | H159: Acuerdo marco de precios | I159: ADQUISICIÓN A TRAVES DE ACUERDO MARCO DE ELEMENTOS DIDÁCTICOS, ARTÍSTICOS, DEPORTIVOS Y DE AUDIOVISUALES NECESARIOS PARA DOTACIÓN DE CENTRO AMAR UBICADO EN LA LOCALIDAD LA CANDELARIA | J159: Inversión | K159: Un Nuevo Contrato Social y Ambiental para la Bogotá del Siglo XXI | L159: 6 | M159: =IF(ISERROR(VLOOKUP(L159,Proposito_programa!$C$2:$E$59,2,FALSE))," ",VLOOKUP(L159,Proposito_programa!$C$2:$E$59,2,FALSE)) -> Sistema Distrital de Cuidado | N159: =IF(ISERROR(VLOOKUP(L159,[9]Proposito_programa!$C$2:$E$59,3,FALSE))," ",VLOOKUP(L159,[9]Proposito_programa!$C$2:$E$59,3,FALSE)) -> Propósito 1: Hacer un nuevo contrato social para incrementar la inclusión social, productiva y política | O159: 1662 | P159: 1 | Q159: 901495650 | R159: UNIÓN TEMPORAL PEDAGÓGICOS 2021 | S159: Unión Temporal | T159: 900488496 | U159: BUSSINES SAS | V159: 0.5 | W159: 0 | AA159: 0 | AB159: 0 | AC159: 44434 | AD159: 44438 | AE159: 44469 | AF159: 30 | AO159: X | AQ159: -
A160: 1 | B160: 141 | C160: 2021 | D160: FDLC-SASI-001-2021 | E160: https://community.secop.gov.co/Public/Tendering/OpportunityDetail/Index?noticeUID=CO1.NTC.2174927&isFromPublicArea=True&isModal=False | F160: Compraventa de bienes muebles | G160: Selección abreviada | H160: Subasta inversa | I160: ADQUISICIÓN DE ELEMENTOS DIDÁCTICOS, ARTÍSTICOS, DEPORTIVOS Y DE AUDIOVISUALES NECESARIOS PARA DOTACIÓN DE CENTRO AMAR UBICADO EN LA LOCALIDAD LA CANDELARIA- (LOTE 1) | J160: Inversión | K160: Un Nuevo Contrato Social y Ambiental para la Bogotá del Siglo XXI | L160: 6 | M160: =IF(ISERROR(VLOOKUP(L160,Proposito_programa!$C$2:$E$59,2,FALSE))," ",VLOOKUP(L160,Proposito_programa!$C$2:$E$59,2,FALSE)) -> Sistema Distrital de Cuidado | N160: =IF(ISERROR(VLOOKUP(L160,Proposito_programa!$C$2:$E$59,3,FALSE))," ",VLOOKUP(L160,Proposito_programa!$C$2:$E$59,3,FALSE)) -> Propósito 1: Hacer un nuevo contrato social para incrementar la inclusión social, productiva y política | O160: 1662 | P160: 7 | Q160: 830084135 | R160: DIDACTICOS SIMBOLOS Y SIGNOS S EN C | S160: Persona Jurídica | W160: 28000000 | AA160: 28000000 | AB160: 28000000 | AC160: 44461 | AD160: 44461 | AE160: 44491 | AF160: 30 | AO160: X | AQ160: 1
A161: 1 | B161: 142 | C161: 2021 | D161: FDLC-SASI-001-2021 | E161: https://community.secop.gov.co/Public/Tendering/OpportunityDetail/Index?noticeUID=CO1.NTC.2174927&isFromPublicArea=True&isModal=False | F161: Compraventa de bienes muebles | G161: Selección abreviada | H161: Subasta inversa | I161: ADQUISICIÓN DE ELEMENTOS DIDÁCTICOS, ARTÍSTICOS, DEPORTIVOS Y DE AUDIOVISUALES NECESARIOS PARA DOTACIÓN DE CENTRO AMAR UBICADO EN LA LOCALIDAD LA CANDELARIA- (LOTE 2) | J161: Inversión | K161: Un Nuevo Contrato Social y Ambiental para la Bogotá del Siglo XXI | L161: 6 | M161: =IF(ISERROR(VLOOKUP(L161,Proposito_programa!$C$2:$E$59,2,FALSE))," ",VLOOKUP(L161,Proposito_programa!$C$2:$E$59,2,FALSE)) -> Sistema Distrital de Cuidado | N161: =IF(ISERROR(VLOOKUP(L161,Proposito_programa!$C$2:$E$59,3,FALSE))," ",VLOOKUP(L161,Proposito_programa!$C$2:$E$59,3,FALSE)) -> Propósito 1: Hacer un nuevo contrato social para incrementar la inclusión social, productiva y política | O161: 1662 | P161: 7 | Q161: 830084135 | R161: DIDACTICOS SIMBOLOS Y SIGNOS S EN C | S161: Persona Jurídica | W161: 11985792 | AA161: 11985792 | AB161: 11985792 | AC161: 44461 | AD161: 44461 | AE161: 44491 | AF161: 30 | AO161: X | AQ161: 1
A162: 1 | B162: 143 | C162: 2021 | D162: FDLC-SASI-001-2021 | E162: https://community.secop.gov.co/Public/Tendering/OpportunityDetail/Index?noticeUID=CO1.NTC.2174927&isFromPublicArea=True&isModal=False | F162: Compraventa de bienes muebles | G162: Selección abreviada | H162: Subasta inversa | I162: ADQUISICIÓN DE ELEMENTOS DIDÁCTICOS, ARTÍSTICOS, DEPORTIVOS Y DE AUDIOVISUALES NECESARIOS PARA DOTACIÓN DE CENTRO AMAR UBICADO EN LA LOCALIDAD LA CANDELARIA- (LOTE 1) | J162: Inversión | K162: Un Nuevo Contrato Social y Ambiental para la Bogotá del Siglo XXI | L162: 6 | M162: =IF(ISERROR(VLOOKUP(L162,Proposito_programa!$C$2:$E$59,2,FALSE))," ",VLOOKUP(L162,Proposito_programa!$C$2:$E$59,2,FALSE)) -> Sistema Distrital de Cuidado | N162: =IF(ISERROR(VLOOKUP(L162,Proposito_programa!$C$2:$E$59,3,FALSE))," ",VLOOKUP(L162,Proposito_programa!$C$2:$E$59,3,FALSE)) -> Propósito 1: Hacer un nuevo contrato social para incrementar la inclusión social, productiva y política | O162: 1662 | P162: 7 | Q162: 830084135 | R162: DIDACTICOS SIMBOLOS Y SIGNOS S EN C | S162: Persona Jurídica | W162: 25000000 | AA162: 25000000 | AB162: 25000000 | AC162: 44461 | AD162: 44461 | AE162: 44491 | AF162: 30 | AO162: X | AQ162: 1
A163: 1 | B163: 144 | C163: 2021 | D163: FDLC-SASI-001-2021 | E163: https://community.secop.gov.co/Public/Tendering/OpportunityDetail/Index?noticeUID=CO1.NTC.2174927&isFromPublicArea=True&isModal=False | F163: Compraventa de bienes muebles | G163: Selección abreviada | H163: Subasta inversa | I163: ADQUISICIÓN DE ELEMENTOS DIDÁCTICOS, ARTÍSTICOS, DEPORTIVOS Y DE AUDIOVISUALES NECESARIOS PARA DOTACIÓN DE CENTRO AMAR UBICADO EN LA LOCALIDAD LA CANDELARIA- (LOTE 1) | J163: Inversión | K163: Un Nuevo Contrato Social y Ambiental para la Bogotá del Siglo XXI | L163: 6 | M163: =IF(ISERROR(VLOOKUP(L163,Proposito_programa!$C$2:$E$59,2,FALSE))," ",VLOOKUP(L163,Proposito_programa!$C$2:$E$59,2,FALSE)) -> Sistema Distrital de Cuidado | N163: =IF(ISERROR(VLOOKUP(L163,Proposito_programa!$C$2:$E$59,3,FALSE))," ",VLOOKUP(L163,Proposito_programa!$C$2:$E$59,3,FALSE)) -> Propósito 1: Hacer un nuevo contrato social para incrementar la inclusión social, productiva y política | O163: 1662 | P163: 7 | Q163: 830084135 | R163: DIDACTICOS SIMBOLOS Y SIGNOS S EN C | S163: Persona Jurídica | W163: 6522000 | AA163: 6522000 | AB163: 6522000 | AC163: 44461 | AD163: 44461 | AE163: 44491 | AF163: 30 | AO163: X | AQ163: 1
A164: 1 | B164: 145 | C164: 2021 | D164: FDLC-SASI-001-2021 | E164: https://community.secop.gov.co/Public/Tendering/OpportunityDetail/Index?noticeUID=CO1.NTC.2174927&isFromPublicArea=True&isModal=False | F164: Compraventa de bienes muebles | G164: Selección abreviada | H164: Subasta inversa | I164: ADQUISICIÓN DE ELEMENTOS DIDÁCTICOS, ARTÍSTICOS, DEPORTIVOS Y DE AUDIOVISUALES NECESARIOS PARA DOTACIÓN DE CENTRO AMAR UBICADO EN LA LOCALIDAD LA CANDELARIA- (LOTE 1) | J164: Inversión | K164: Un Nuevo Contrato Social y Ambiental para la Bogotá del Siglo XXI | L164: 6 | M164: =IF(ISERROR(VLOOKUP(L164,Proposito_programa!$C$2:$E$59,2,FALSE))," ",VLOOKUP(L164,Proposito_programa!$C$2:$E$59,2,FALSE)) -> Sistema Distrital de Cuidado | N164: =IF(ISERROR(VLOOKUP(L164,Proposito_programa!$C$2:$E$59,3,FALSE))," ",VLOOKUP(L164,Proposito_programa!$C$2:$E$59,3,FALSE)) -> Propósito 1: Hacer un nuevo contrato social para incrementar la inclusión social, productiva y política | O164: 1662 | P164: 7 | Q164: 900125810 | R164: INVERSIONES RIME S A S | S164: Persona Jurídica | W164: 4410000 | AA164: 4410000 | AB164: 4409969 | AC164: 44461 | AD164: 44461 | AE164: 44491 | AF164: 30 | AO164: X | AQ164: 0.9999929705
A165: 1 | B165: 146 | C165: 2021 | D165: FDLC-CPS-146- 2021 | E165: https://community.secop.gov.co/Public/Tendering/OpportunityDetail/Index?noticeUID=CO1.NTC.2270546&isFromPublicArea=True&isModal=False | F165: Contratos de prestación de servicios profesionales y de apoyo a la gestión | G165: Contratación directa | H165: Prestación de servicios profesionales y de apoyo a la gestión, o para la ejecución de trabajos artísticos que sólo puedan encomendarse a determinadas personas naturales; | I165: PRESTAR SERVICIOS DE APOYO TÉCNICO AL FONDO DE DESARROLLO LOCAL DE LA CANDELARIA EN LOS PROCEDIMIENTOS ADMINISTRATIVOS DERIVADOS DE LOS PROYECTOS SOCIALES Y DE SALUD EN LA LOCALIDAD | J165: Inversión | K165: Un Nuevo Contrato Social y Ambiental para la Bogotá del Siglo XXI | L165: 6 | M165: =IF(ISERROR(VLOOKUP(L165,Proposito_programa!$C$2:$E$59,2,FALSE))," ",VLOOKUP(L165,Proposito_programa!$C$2:$E$59,2,FALSE)) -> Sistema Distrital de Cuidado | N165: =IF(ISERROR(VLOOKUP(L165,Proposito_programa!$C$2:$E$59,3,FALSE))," ",VLOOKUP(L165,Proposito_programa!$C$2:$E$59,3,FALSE)) -> Propósito 1: Hacer un nuevo contrato social para incrementar la inclusión social, productiva y política | O165: 1662 | P165: 1 | Q165: 79907754 | R165: JUAN ANGEL LOPEZ ARDILA | S165: Persona Natural | W165: 8643600 | AA165: 8643600 | AB165: 5997600 | AC165: 44462 | AD165: 44462 | AE165: 44560 | AF165: 98 | AO165: X | AQ165: 0.693877551
A166: 1 | B166: 147 | C166: 2021 | D166: FDLC-CPS-147-2021 | E166: https://community.secop.gov.co/Public/Tendering/OpportunityDetail/Index?noticeUID=CO1.NTC.2271123&isFromPublicArea=True&isModal=False | F166: Contratos de prestación de servicios profesionales y de apoyo a la gestión | G166: Contratación directa | H166: Prestación de servicios profesionales y de apoyo a la gestión, o para la ejecución de trabajos artísticos que sólo puedan encomendarse a determinadas personas naturales; | I166: PRESTACIÓN DE SERVICIOS PROFESIONALES AL FONDO DE DESARROLLO LOCAL DE LA CANDELARIA PARA APOYAR EL SEGUIMIENTO, EJECUCION Y VISUALIZACIÓN DE LA GESTIÓN, RELACIONADOS CON LOS PROYECTOS DE MUJERES, EQUIDAD DE GÉNERO, VIOLENCIA INTRAFAMILIAR, CUIDADORAS Y CUIDADORES. | J166: Inversión | K166: Un Nuevo Contrato Social y Ambiental para la Bogotá del Siglo XXI | L166: 6 | M166: =IF(ISERROR(VLOOKUP(L166,Proposito_programa!$C$2:$E$59,2,FALSE))," ",VLOOKUP(L166,Proposito_programa!$C$2:$E$59,2,FALSE)) -> Sistema Distrital de Cuidado | N166: =IF(ISERROR(VLOOKUP(L166,Proposito_programa!$C$2:$E$59,3,FALSE))," ",VLOOKUP(L166,Proposito_programa!$C$2:$E$59,3,FALSE)) -> Propósito 1: Hacer un nuevo contrato social para incrementar la inclusión social, productiva y política | O166: 1662 | P166: 1 | Q166: 52962137 | R166: DIANA CAROLINA BLANCO LADINO | S166: Persona Natural | W166: 5900000 | AA166: 5900000 | AB166: 1376667 | AC166: 44462 | AD166: 44462 | AE166: 44552 | AF166: 90 | AO166: X | AQ166: 0.2333333898
A167: 0 | B167: 147 | C167: 2021 | D167: FDLC-CPS-147-2021 | E167: https://community.secop.gov.co/Public/Tendering/OpportunityDetail/Index?noticeUID=CO1.NTC.2271123&isFromPublicArea=True&isModal=False | F167: Contratos de prestación de servicios profesionales y de apoyo a la gestión | G167: Contratación directa | H167: Prestación de servicios profesionales y de apoyo a la gestión, o para la ejecución de trabajos artísticos que sólo puedan encomendarse a determinadas personas naturales; | I167: PRESTACIÓN DE SERVICIOS PROFESIONALES AL FONDO DE DESARROLLO LOCAL DE LA CANDELARIA PARA APOYAR EL SEGUIMIENTO, EJECUCION Y VISUALIZACIÓN DE LA GESTIÓN, RELACIONADOS CON LOS PROYECTOS DE MUJERES, EQUIDAD DE GÉNERO, VIOLENCIA INTRAFAMILIAR, CUIDADORAS Y CUIDADORES. | J167: Inversión | K167: Un Nuevo Contrato Social y Ambiental para la Bogotá del Siglo XXI | L167: 6 | M167: =IF(ISERROR(VLOOKUP(L167,Proposito_programa!$C$2:$E$59,2,FALSE))," ",VLOOKUP(L167,Proposito_programa!$C$2:$E$59,2,FALSE)) -> Sistema Distrital de Cuidado | N167: =IF(ISERROR(VLOOKUP(L167,Proposito_programa!$C$2:$E$59,3,FALSE))," ",VLOOKUP(L167,Proposito_programa!$C$2:$E$59,3,FALSE)) -> Propósito 1: Hacer un nuevo contrato social para incrementar la inclusión social, productiva y política | O167: 1663 | P167: 1 | Q167: 52962137 | R167: DIANA CAROLINA BLANCO LADINO | S167: Persona Natural | W167: 5900000 | AA167: =+W167+X167+Z167 -> 5900000 | AB167: 5900000 | AC167: 44462 | AD167: 44462 | AE167: 44552 | AF167: 90 | AO167: X | AQ167: =IF(ISERROR(AB167/AA167),"-",(AB167/AA167)) -> 1
A168: 0 | B168: 147 | C168: 2021 | D168: FDLC-CPS-147-2021 | E168: https://community.secop.gov.co/Public/Tendering/OpportunityDetail/Index?noticeUID=CO1.NTC.2271123&isFromPublicArea=True&isModal=False | F168: Contratos de prestación de servicios profesionales y de apoyo a la gestión | G168: Contratación directa | H168: Prestación de servicios profesionales y de apoyo a la gestión, o para la ejecución de trabajos artísticos que sólo puedan encomendarse a determinadas personas naturales; | I168: PRESTACIÓN DE SERVICIOS PROFESIONALES AL FONDO DE DESARROLLO LOCAL DE LA CANDELARIA PARA APOYAR EL SEGUIMIENTO, EJECUCION Y VISUALIZACIÓN DE LA GESTIÓN, RELACIONADOS CON LOS PROYECTOS DE MUJERES, EQUIDAD DE GÉNERO, VIOLENCIA INTRAFAMILIAR, CUIDADORAS Y CUIDADORES. | J168: Inversión | K168: Un Nuevo Contrato Social y Ambiental para la Bogotá del Siglo XXI | L168: 40 | M168: =IF(ISERROR(VLOOKUP(L168,Proposito_programa!$C$2:$E$59,2,FALSE))," ",VLOOKUP(L168,Proposito_programa!$C$2:$E$59,2,FALSE)) -> Más mujeres viven una vida libre de violencias, se sienten seguras y acceden con confianza al sistema de justicia | N168: =IF(ISERROR(VLOOKUP(L168,Proposito_programa!$C$2:$E$59,3,FALSE))," ",VLOOKUP(L168,Proposito_programa!$C$2:$E$59,3,FALSE)) -> Propósito 3: Inspirar confianza y legitimidad para vivir sin miedo y ser epicentro de cultura ciudadana, paz y reconciliación | O168: 1781 | P168: 1 | Q168: 52962137 | R168: DIANA CAROLINA BLANCO LADINO | S168: Persona Natural | W168: 5900000 | AA168: 5900000 | AB168: 5900000 | AC168: 44462 | AD168: 44462 | AE168: 44552 | AF168: 90 | AO168: X | AQ168: 1
A169: 1 | B169: 148 | C169: 2021 | D169: FDLC CPS 148-2021 | E169: https://community.secop.gov.co/Public/Tendering/OpportunityDetail/Index?noticeUID=CO1.NTC.2270917&isFromPublicArea=True&isModal=False | F169: Contratos de prestación de servicios profesionales y de apoyo a la gestión | G169: Contratación directa | H169: Prestación de servicios profesionales y de apoyo a la gestión, o para la ejecución de trabajos artísticos que sólo puedan encomendarse a determinadas personas naturales; | I169: PRESTAR SERVICIOS DE APOYO ADMINISTRATIVO Y ASISTENCIAL AL FONDO DE DESARROLLO LOCAL, EN LOS PROCESOS RELACIONADOS CON LA PARTICIPACION DE LAS JUVENTUDES EN LA LOCALIDAD. | J169: Inversión | K169: Un Nuevo Contrato Social y Ambiental para la Bogotá del Siglo XXI | L169: 55 | M169: =IF(ISERROR(VLOOKUP(L169,Proposito_programa!$C$2:$E$59,2,FALSE))," ",VLOOKUP(L169,Proposito_programa!$C$2:$E$59,2,FALSE)) -> Fortalecimiento de cultura ciudadana y su institucionalidad | N169: =IF(ISERROR(VLOOKUP(L169,Proposito_programa!$C$2:$E$59,3,FALSE))," ",VLOOKUP(L169,Proposito_programa!$C$2:$E$59,3,FALSE)) -> Propósito 5: Construir Bogotá - Región con gobierno abierto, transparente y ciudadanía consciente | O169: 2019 | P169: 1 | Q169: 1000222737 | R169: VALENTINA BELLO CIFUENTES | S169: Persona Natural | W169: 7840000 | Y169: 1 | Z169: 880000 | AA169: 8720000 | AB169: 5440000 | AC169: 44462 | AD169: 44462 | AE169: 44571 | AF169: 98 | AH169: 11 | AO169: X | AQ169: 0.623853211
A170: 1 | B170: 149 | C170: 2021 | D170: FDLC-IMC-007-2021 | E170: https://community.secop.gov.co/Public/Tendering/OpportunityDetail/Index?noticeUID=CO1.NTC.2278880&isFromPublicArea=True&isModal=False | F170: Suministro | G170: Contratación mínima cuantia | H170: No aplica | I170: Contratar el suministro de refrigerios y alimentos calientes, así como suministro de bonos canjeables para el desarrollo de las actividades denominadas tertulia historia familiar y estaciones literarias de la Institución Educativa Distrital Escuela Nacional de Comercio en el marco del proyecto denominado La Candelaria pedagógica bases sólidas para la vida | J170: Inversión | K170: Un Nuevo Contrato Social y Ambiental para la Bogotá del Siglo XXI | L170: 12 | M170: =IF(ISERROR(VLOOKUP(L170,Proposito_programa!$C$2:$E$59,2,FALSE))," ",VLOOKUP(L170,Proposito_programa!$C$2:$E$59,2,FALSE)) -> Educación inicial: Bases sólidas para la vida. | N170: =IF(ISERROR(VLOOKUP(L170,Proposito_programa!$C$2:$E$59,3,FALSE))," ",VLOOKUP(L170,Proposito_programa!$C$2:$E$59,3,FALSE)) -> Propósito 1: Hacer un nuevo contrato social para incrementar la inclusión social, productiva y política | O170: 1608 | P170: 11 | Q170: 800081700 | R170: FRUPYS LTDA | S170: Persona Jurídica | W170: 5271000 | AA170: 5271000 | AB170: 0 | AC170: 44461 | AD170: 44462 | AE170: 44643 | AF170: 90 | AN170: X | AQ170: 0
A171: 1 | B171: 150 | C171: 2021 | D171: FLDC-CPS-150-2021 | E171: https://community.secop.gov.co/Public/Tendering/OpportunityDetail/Index?noticeUID=CO1.NTC.2271005&isFromPublicArea=True&isModal=False | F171: Contratos de prestación de servicios profesionales y de apoyo a la gestión | G171: Contratación directa | H171: Prestación de servicios profesionales y de apoyo a la gestión, o para la ejecución de trabajos artísticos que sólo puedan encomendarse a determinadas personas naturales; | I171: o PRESTAR LOS SERVICIOS TÉCNICOS PARA LA OPERACIÓN, SEGUIMIENTO Y CUMPLIMIENTO DE LOS PROCESOS Y PROCEDIMIENTOS DEL SERVICIO APOYOS ECONÓMICOS TIPO C, REQUERIDOS PARA EL OPORTUNO Y ADECUADO REGISTRO, CRUCE Y REPORTE DE LOS DATOS EN EL SISTEMA MISIONAL¿SIRBE, QUE CONTRIBUYAN A LA GARANTÍA DE LOS DERECHOS DE LA POBLACIÓN MAYOR EN EL MARCO DE LA POLÍTICA PÚBLICA SOCIAL PARA EL ENVEJECIMIENTO Y LA VEJEZ EN EL DISTRITO CAPITAL A CARGO DE LA ALCALDÍA LOCAL. | J171: Inversión | K171: Un Nuevo Contrato Social y Ambiental para la Bogotá del Siglo XXI | L171: 1 | M171: =IF(ISERROR(VLOOKUP(L171,Proposito_programa!$C$2:$E$59,2,FALSE))," ",VLOOKUP(L171,Proposito_programa!$C$2:$E$59,2,FALSE)) -> Subsidios y transferencias para la equidad | N171: =IF(ISERROR(VLOOKUP(L171,Proposito_programa!$C$2:$E$59,3,FALSE))," ",VLOOKUP(L171,Proposito_programa!$C$2:$E$59,3,FALSE)) -> Propósito 1: Hacer un nuevo contrato social para incrementar la inclusión social, productiva y política | O171: 1605 | P171: 1 | Q171: 80263860 | R171: PEDRO SIERRA GARCIA | S171: Persona Natural | W171: 9114000 | Y171: 1 | Z171: 1023000 | AA171: 10137000 | AB171: 9207000 | AC171: 44462 | AD171: 44462 | AE171: 44571 | AF171: 98 | AG171: 1 | AH171: 11 | AN171: X | AQ171: 0.9082568807
A172: 1 | B172: 151 | C172: 2021 | D172: FDLC-SASI-002-2021 | E172: https://community.secop.gov.co/Public/Tendering/OpportunityDetail/Index?noticeUID=CO1.NTC.2193591&isFromPublicArea=True&isModal=False | F172: Compraventa de bienes muebles | G172: Selección abreviada | H172: Subasta inversa | I172: ADQUISICIÓN DE CARPAS PARA EL USO DE ACTIVIDADES INSTITUCIONALES, DE CONFORMIDAD CON LAS ESPECIFICACIONES TÉCNICAS | J172: Inversión | K172: Un Nuevo Contrato Social y Ambiental para la Bogotá del Siglo XXI | L172: 6 | M172: =IF(ISERROR(VLOOKUP(L172,Proposito_programa!$C$2:$E$59,2,FALSE))," ",VLOOKUP(L172,Proposito_programa!$C$2:$E$59,2,FALSE)) -> Sistema Distrital de Cuidado | N172: =IF(ISERROR(VLOOKUP(L172,Proposito_programa!$C$2:$E$59,3,FALSE))," ",VLOOKUP(L172,Proposito_programa!$C$2:$E$59,3,FALSE)) -> Propósito 1: Hacer un nuevo contrato social para incrementar la inclusión social, productiva y política | O172: 1628 | P172: 4 | Q172: 901525481 | R172: U T KYC 2021 | S172: Unión Temporal | T172: 901061836 | U172: CASTECK SAS | V172: 0.5 | W172: 31628403 | AA172: 31628403 | AB172: 31628403 | AC172: 44463 | AD172: 44470 | AE172: 44500 | AF172: 30 | AO172: X | AQ172: 1
A173: 0 | B173: 151 | C173: 2021 | D173: FDLC-SASI-002-2021 | E173: https://community.secop.gov.co/Public/Tendering/OpportunityDetail/Index?noticeUID=CO1.NTC.2193591&isFromPublicArea=True&isModal=False | F173: Compraventa de bienes muebles | G173: Selección abreviada | H173: Subasta inversa | I173: ADQUISICIÓN DE CARPAS PARA EL USO DE ACTIVIDADES INSTITUCIONALES, DE CONFORMIDAD CON LAS ESPECIFICACIONES TÉCNICAS | J173: Inversión | K173: Un Nuevo Contrato Social y Ambiental para la Bogotá del Siglo XXI | L173: 6 | M173: =IF(ISERROR(VLOOKUP(L173,Proposito_programa!$C$2:$E$59,2,FALSE))," ",VLOOKUP(L173,Proposito_programa!$C$2:$E$59,2,FALSE)) -> Sistema Distrital de Cuidado | N173: =IF(ISERROR(VLOOKUP(L173,Proposito_programa!$C$2:$E$59,3,FALSE))," ",VLOOKUP(L173,Proposito_programa!$C$2:$E$59,3,FALSE)) -> Propósito 1: Hacer un nuevo contrato social para incrementar la inclusión social, productiva y política | O173: 1628 | P173: 4 | Q173: 901525481 | R173: U T KYC 2021 | S173: Unión Temporal | T173: 900934968 | U173: CORPORACION KAYROS SAS | V173: 0.5 | W173: 0 | AA173: 0 | AB173: 0 | AC173: 44463 | AD173: 44470 | AE173: 44500 | AF173: 30 | AO173: X | AQ173: -
A174: 1 | B174: 152 | C174: 2021 | D174: FDLC-IMC-006-2021 | E174: https://community.secop.gov.co/Public/Tendering/OpportunityDetail/Index?noticeUID=CO1.NTC.2236614&isFromPublicArea=True&isModal=False | F174: Suministro | G174: Contratación mínima cuantia | H174: No aplica | I174: SUMINISTRO DE PRODUCTOS DE PAPELERÍA, ELEMENTOS, ÚTILES Y ARTÍCULOS DE OFICINA NECESARIOS PARA EL CUMPLIMIENTO DE LAS FUNCIONES ADMINISTRATIVAS Y MISIONALES DE LA ALCALDÍA LOCAL DE LA CANDELARIA | J174: Funcionamiento | K174: Un Nuevo Contrato Social y Ambiental para la Bogotá del Siglo XXI | L174: No aplica | M174: =IF(ISERROR(VLOOKUP(L174,Proposito_programa!$C$2:$E$59,2,FALSE))," ",VLOOKUP(L174,Proposito_programa!$C$2:$E$59,2,FALSE)) ->  | N174: =IF(ISERROR(VLOOKUP(L174,Proposito_programa!$C$2:$E$59,3,FALSE))," ",VLOOKUP(L174,Proposito_programa!$C$2:$E$59,3,FALSE)) ->  | O174: N/A | P174: 11 | Q174: 53010819 | R174: ANGELA JOHANNA RODRIGUEZ CASTRO | S174: Persona Natural | W174: 6455500 | AA174: 6455500 | AB174: 6455500 | AC174: 44463 | AD174: 44467 | AE174: 44497 | AF174: 30 | AO174: X | AQ174: 1
A175: 1 | B175: 153 | C175: 2021 | D175: FDLC-CPS-153-2021 | E175: https://community.secop.gov.co/Public/Tendering/OpportunityDetail/Index?noticeUID=CO1.NTC.2272930&isFromPublicArea=True&isModal=False | F175: Contratos de prestación de servicios profesionales y de apoyo a la gestión | G175: Contratación directa | H175: Prestación de servicios profesionales y de apoyo a la gestión, o para la ejecución de trabajos artísticos que sólo puedan encomendarse a determinadas personas naturales; | I175: PRESTAR SERVICIOS PROFESIONALES AL FONDO DE DESARROLLO LOCAL DE LA CANDELARIA PARA APOYAR EL SEGUIMIENTO Y EJECUCION DE LOS PROGRAMAS AMBIENTALES Y DE AGRICULTURA URBANA EN LA LOCALIDAD. | J175: Inversión | K175: Un Nuevo Contrato Social y Ambiental para la Bogotá del Siglo XXI | L175: 24 | M175: =IF(ISERROR(VLOOKUP(L175,Proposito_programa!$C$2:$E$59,2,FALSE))," ",VLOOKUP(L175,Proposito_programa!$C$2:$E$59,2,FALSE)) -> Bogotá región emprendedora e innovadora | N175: =IF(ISERROR(VLOOKUP(L175,Proposito_programa!$C$2:$E$59,3,FALSE))," ",VLOOKUP(L175,Proposito_programa!$C$2:$E$59,3,FALSE)) -> Propósito 1: Hacer un nuevo contrato social para incrementar la inclusión social, productiva y política | O175: 1626 | P175: 1 | Q175: 1013628927 | R175: DAISSY TATIANA FAJARDO VELASCO | S175: Persona Natural | W175: 13541200 | Y175: 1 | Z175: 1535600 | AA175: 15076800 | AB175: 9353200 | AC175: 44463 | AD175: 44463 | AE175: 44571 | AF175: 97 | AG175: 1 | AH175: 11 | AN175: X | AQ175: 0.6203703704
A176: 1 | B176: 154 | C176: 2021 | D176: FDLC-CPS-154-2021 | E176: https://community.secop.gov.co/Public/Tendering/OpportunityDetail/Index?noticeUID=CO1.NTC.2279672&isFromPublicArea=True&isModal=False | F176: Contratos de prestación de servicios profesionales y de apoyo a la gestión | G176: Contratación directa | H176: Prestación de servicios profesionales y de apoyo a la gestión, o para la ejecución de trabajos artísticos que sólo puedan encomendarse a determinadas personas naturales; | I176: PRESTAR SERVICIOS DE APOYO EN LA EMISORA A CARGO DEL FONDO DE DESARROLLO LOCAL LA CANDELARIA. | J176: Inversión | K176: Un Nuevo Contrato Social y Ambiental para la Bogotá del Siglo XXI | L176: 21 | M176: =IF(ISERROR(VLOOKUP(L176,Proposito_programa!$C$2:$E$59,2,FALSE))," ",VLOOKUP(L176,Proposito_programa!$C$2:$E$59,2,FALSE)) -> Creación y vida cotidiana: Apropiación ciudadana del arte, la cultura y el patrimonio, para la democracia cultural | N176: =IF(ISERROR(VLOOKUP(L176,Proposito_programa!$C$2:$E$59,3,FALSE))," ",VLOOKUP(L176,Proposito_programa!$C$2:$E$59,3,FALSE)) -> Propósito 1: Hacer un nuevo contrato social para incrementar la inclusión social, productiva y política | O176: 1625 | P176: 1 | Q176: 14250858 | R176: RICARDO ABEL ROLDAN CORREA | S176: Persona Natural | W176: 7350000 | AA176: 7350000 | AB176: 5145000 | AC176: 44467 | AD176: 44467 | AE176: 44557 | AF176: 90 | AO176: X | AQ176: 0.7
A177: 1 | B177: 155 | C177: 2021 | D177: FDLC-CPS-155-2021 | E177: https://community.secop.gov.co/Public/Tendering/OpportunityDetail/Index?noticeUID=CO1.NTC.2279673&isFromPublicArea=True&isModal=False | F177: Contratos de prestación de servicios profesionales y de apoyo a la gestión | G177: Contratación directa | H177: Prestación de servicios profesionales y de apoyo a la gestión, o para la ejecución de trabajos artísticos que sólo puedan encomendarse a determinadas personas naturales; | I177: PRESTAR SERVICIOS DE APOYO ADMINISTRATIVO Y ASISTENCIAL AL ÁREA DE GESTIÓN DE DESARROLLO LOCAL, EN LOS PROCESOS DE COMPETENCIA RELACIONADOS CON LAS ACTIVIDADES DE GESTION DOCUMENTAL DE LA ALCALDÍA LOCAL DE LA CANDELARIA. | J177: Inversión | K177: Un Nuevo Contrato Social y Ambiental para la Bogotá del Siglo XXI | L177: 57 | M177: =IF(ISERROR(VLOOKUP(L177,Proposito_programa!$C$2:$E$59,2,FALSE))," ",VLOOKUP(L177,Proposito_programa!$C$2:$E$59,2,FALSE)) -> Gestión pública local | N177: =IF(ISERROR(VLOOKUP(L177,Proposito_programa!$C$2:$E$59,3,FALSE))," ",VLOOKUP(L177,Proposito_programa!$C$2:$E$59,3,FALSE)) -> Propósito 5: Construir Bogotá - Región con gobierno abierto, transparente y ciudadanía consciente | O177: 2021 | P177: 1 | Q177: 1001281981 | R177: YEISON ESMIK GOMEZ HERNANDEZ | S177: Persona Natural | W177: 5400000 | AA177: 5400000 | AB177: 1920000 | AC177: 44467 | AD177: 44467 | AE177: 44557 | AF177: 90 | AO177: X | AQ177: 0.3555555556
A178: 1 | B178: 156 | C178: 2021 | D178: FDLC-SAMC-007-2021 | E178: https://community.secop.gov.co/Public/Tendering/OpportunityDetail/Index?noticeUID=CO1.NTC.2278880&isFromPublicArea=True&isModal=False | F178: Contratos de prestación de servicios | G178: Selección abreviada | H178: Selección abreviada por menor cuantía | I178: PRESTAR SERVICIOS PARA REALIZAR ACTIVIDADES QUE PROMUEVAN LA PREVENCION DE VIOLENCIA INTRAFAMILIAR Y SEXUAL SOBRE POBLACIONES EN SITUACIONES DE RIESGO Y VULNERACIÓN DE DERECHOS EN EL MARCO DEL PROYECTO 1662 LA CANDELARIA TERRITORIO LIBRE DE VIOLENCIA INTRAFAMILIAR Y SEXUAL | J178: Inversión | K178: Un Nuevo Contrato Social y Ambiental para la Bogotá del Siglo XXI | L178: 6 | M178: =IF(ISERROR(VLOOKUP(L178,Proposito_programa!$C$2:$E$59,2,FALSE))," ",VLOOKUP(L178,Proposito_programa!$C$2:$E$59,2,FALSE)) -> Sistema Distrital de Cuidado | N178: =IF(ISERROR(VLOOKUP(L178,Proposito_programa!$C$2:$E$59,3,FALSE))," ",VLOOKUP(L178,Proposito_programa!$C$2:$E$59,3,FALSE)) -> Propósito 1: Hacer un nuevo contrato social para incrementar la inclusión social, productiva y política | O178: 1662 | P178: 11 | Q178: 830095614 | R178: FUNVIVE 2.0 | S178: Persona Jurídica | W178: 105696000 | AA178: 105696000 | AB178: 0 | AC178: 44480 | AD178: 44483 | AE178: 44574 | AF178: 90 | AN178: X | AQ178: 0
A179: 1 | B179: 157 | C179: 2021 | D179: FDLC-CPS-157-2021 | E179: https://community.secop.gov.co/Public/Tendering/OpportunityDetail/Index?noticeUID=CO1.NTC.2315643&isFromPublicArea=True&isModal=False | F179: Contratos de prestación de servicios profesionales y de apoyo a la gestión | G179: Contratación directa | H179: Prestación de servicios profesionales y de apoyo a la gestión, o para la ejecución de trabajos artísticos que sólo puedan encomendarse a determinadas personas naturales; | I179: PRESTACIÓN DE SERVICIOS DE APOYO LOGÍSTICO EN LOS EVENTOS Y ACTIVIDADES DE LA ADMINISTRACIÓN LOCAL DE LA LOCALIDAD DE LA CANDELARIA. | J179: Inversión | K179: Un Nuevo Contrato Social y Ambiental para la Bogotá del Siglo XXI | L179: 6 | M179: =IF(ISERROR(VLOOKUP(L179,Proposito_programa!$C$2:$E$59,2,FALSE))," ",VLOOKUP(L179,Proposito_programa!$C$2:$E$59,2,FALSE)) -> Sistema Distrital de Cuidado | N179: =IF(ISERROR(VLOOKUP(L179,Proposito_programa!$C$2:$E$59,3,FALSE))," ",VLOOKUP(L179,Proposito_programa!$C$2:$E$59,3,FALSE)) -> Propósito 1: Hacer un nuevo contrato social para incrementar la inclusión social, productiva y política | O179: 1628 | P179: 1 | Q179: 19458700 | R179: OSCAR BARRERA ARROYAVE | S179: Persona Natural | W179: 3932500 | AA179: 3932500 | AB179: 2117500 | AC179: 44495 | AD179: 44495 | AE179: 44560 | AF179: 65 | AO179: X | AQ179: 0.5384615385
A180: 1 | B180: 158 | C180: 2021 | D180: FDLC-CPS-158-2021 | E180: https://community.secop.gov.co/Public/Tendering/OpportunityDetail/Index?noticeUID=CO1.NTC.2332005&isFromPublicArea=True&isModal=False | F180: Contratos de prestación de servicios profesionales y de apoyo a la gestión | G180: Contratación directa | H180: Prestación de servicios profesionales y de apoyo a la gestión, o para la ejecución de trabajos artísticos que sólo puedan encomendarse a determinadas personas naturales; | I180: PRESTACIÓN DE SERVICIOS TÉCNICOS AL ÁREA DE GESTIÓN DE DESARROLLO LOCAL DE LA ALCALDÍA LOCAL DE LA CANDELARIA, PARA APOYAR LA GESTIÓN Y LAS CONVOCATORIAS REALIZADAS POR LA ALCALDÍA LOCAL EN BENEFICIO DE LA COMUNIDAD | J180: Inversión | K180: Un Nuevo Contrato Social y Ambiental para la Bogotá del Siglo XXI | L180: 21 | M180: =IF(ISERROR(VLOOKUP(L180,Proposito_programa!$C$2:$E$59,2,FALSE))," ",VLOOKUP(L180,Proposito_programa!$C$2:$E$59,2,FALSE)) -> Creación y vida cotidiana: Apropiación ciudadana del arte, la cultura y el patrimonio, para la democracia cultural | N180: =IF(ISERROR(VLOOKUP(L180,Proposito_programa!$C$2:$E$59,3,FALSE))," ",VLOOKUP(L180,Proposito_programa!$C$2:$E$59,3,FALSE)) -> Propósito 1: Hacer un nuevo contrato social para incrementar la inclusión social, productiva y política | O180: 1625 | P180: 1 | Q180: 41621560 | R180: NELLY PARRA TOCORA | S180: Persona Natural | W180: 6783000 | AA180: 6783000 | AB180: 3876000 | AC180: 44490 | AD180: 44490 | AE180: 44560 | AF180: 70 | AO180: X | AQ180: 0.5714285714
A181: 1 | B181: 159 | C181: 2021 | D181: FDLC-CPS-159-2021 | E181: https://community.secop.gov.co/Public/Tendering/OpportunityDetail/Index?noticeUID=CO1.NTC.2315279&isFromPublicArea=True&isModal=False | F181: Contratos de prestación de servicios profesionales y de apoyo a la gestión | G181: Contratación directa | H181: Prestación de servicios profesionales y de apoyo a la gestión, o para la ejecución de trabajos artísticos que sólo puedan encomendarse a determinadas personas naturales; | I181: PRESTACIÓN DE SERVICIOS PROFESIONALES DE APOYO AL FONDO DE DESARROLLO LOCAL DE LA CANDELARIA PARA APOYAR EL SEGUIMIENTO Y EJECUCION DE LOS PROYECTOS DE MUJERES, EQUIDAD DE GÉNERO, VIOLENCIA INTRAFAMILIAR, CUIDADORAS Y CUIDADORES. | J181: Inversión | K181: Un Nuevo Contrato Social y Ambiental para la Bogotá del Siglo XXI | L181: 6 | M181: =IF(ISERROR(VLOOKUP(L181,Proposito_programa!$C$2:$E$59,2,FALSE))," ",VLOOKUP(L181,Proposito_programa!$C$2:$E$59,2,FALSE)) -> Sistema Distrital de Cuidado | N181: =IF(ISERROR(VLOOKUP(L181,Proposito_programa!$C$2:$E$59,3,FALSE))," ",VLOOKUP(L181,Proposito_programa!$C$2:$E$59,3,FALSE)) -> Propósito 1: Hacer un nuevo contrato social para incrementar la inclusión social, productiva y política | O181: 1662 | P181: 1 | Q181: 41648295 | R181: ISABEL SANCHEZ RODRIGUEZ | S181: Persona Natural | W181: 11338599 | AA181: 11338599 | AB181: 6977600 | AC181: 44482 | AD181: 44482 | AE181: 44560 | AF181: 78 | AO181: X | AQ181: 0.6153846697
A182: 1 | B182: 160 | C182: 2021 | D182: FDLC-CPS-160-2021 | E182: https://community.secop.gov.co/Public/Tendering/OpportunityDetail/Index?noticeUID=CO1.NTC.2314796&isFromPublicArea=True&isModal=False | F182: Contratos de prestación de servicios profesionales y de apoyo a la gestión | G182: Contratación directa | H182: Prestación de servicios profesionales y de apoyo a la gestión, o para la ejecución de trabajos artísticos que sólo puedan encomendarse a determinadas personas naturales; | I182: PRESTAR SERVICIOS PROFESIONALES AL FONDO DE DESARROLLO LOCAL DE LA CANDELARIA PARA LA FORMULACIÓN Y SEGUIMIENTO DE PLANES, POLITICAS PROGRAMAS Y PROYECTOS RELACIONADOS CON LA ESTRATEGIA DE CUIDADO, PREVENCIÓN DE VIOLENCIAS Y PROYECTOS CON ENFOQUE DE GÉNERO DEL PLAN DE DESARROLLO LOCAL. | J182: Inversión | K182: Un Nuevo Contrato Social y Ambiental para la Bogotá del Siglo XXI | L182: 6 | M182: =IF(ISERROR(VLOOKUP(L182,Proposito_programa!$C$2:$E$59,2,FALSE))," ",VLOOKUP(L182,Proposito_programa!$C$2:$E$59,2,FALSE)) -> Sistema Distrital de Cuidado | N182: =IF(ISERROR(VLOOKUP(L182,Proposito_programa!$C$2:$E$59,3,FALSE))," ",VLOOKUP(L182,Proposito_programa!$C$2:$E$59,3,FALSE)) -> Propósito 1: Hacer un nuevo contrato social para incrementar la inclusión social, productiva y política | O182: 1663 | P182: 1 | Q182: 1010221878 | R182: LUISA MARIA MURILLO LOREO | S182: Persona Natural | W182: 13083000 | AA182: 13083000 | AB182: 2616600 | AC182: 44482 | AD182: 44482 | AE182: 44560 | AF182: 77 | AO182: X | AQ182: 0.2
A183: 1 | B183: 161 | C183: 2021 | D183: FDLC-CPS-161-2021 | E183: https://community.secop.gov.co/Public/Tendering/OpportunityDetail/Index?noticeUID=CO1.NTC.2342192&isFromPublicArea=True&isModal=False | F183: Contratos de prestación de servicios profesionales y de apoyo a la gestión | G183: Contratación directa | H183: Prestación de servicios profesionales y de apoyo a la gestión, o para la ejecución de trabajos artísticos que sólo puedan encomendarse a determinadas personas naturales; | I183: PRESTAR SERVICIOS PROFESIONALES PARA APOYAR AL FONDO DE DESARROLLO LOCAL DE LA CANDELARIA, EN LA IMPLEMENTACIÓN Y SEGUIMIENTO DE LAS ACTIVIDADES CULTURALES, ARTÍSTICAS Y MUSICALES, ASI COMO TAMBIEN, LA FORMULACIÓN DEL PROYECTO SALVAMENTO DE TEATROS | J183: Inversión | K183: Un Nuevo Contrato Social y Ambiental para la Bogotá del Siglo XXI | L183: 21 | M183: =IF(ISERROR(VLOOKUP(L183,Proposito_programa!$C$2:$E$59,2,FALSE))," ",VLOOKUP(L183,Proposito_programa!$C$2:$E$59,2,FALSE)) -> Creación y vida cotidiana: Apropiación ciudadana del arte, la cultura y el patrimonio, para la democracia cultural | N183: =IF(ISERROR(VLOOKUP(L183,Proposito_programa!$C$2:$E$59,3,FALSE))," ",VLOOKUP(L183,Proposito_programa!$C$2:$E$59,3,FALSE)) -> Propósito 1: Hacer un nuevo contrato social para incrementar la inclusión social, productiva y política | O183: 1625 | P183: 1 | Q183: 79911301 | R183: CLIMACO ESTEBAN ZABALA RAMIREZ | S183: Persona Natural | W183: 12805000 | AA183: 12805000 | AB183: 0 | AC183: 44495 | AD183: 44495 | AE183: 44560 | AF183: 65 | AO183: X | AQ183: 0
A184: 1 | B184: 162 | C184: 2021 | D184: FDLC-CPS-162-2021 | E184: https://community.secop.gov.co/Public/Tendering/OpportunityDetail/Index?noticeUID=CO1.NTC.2343241&isFromPublicArea=True&isModal=False | F184: Contratos de prestación de servicios profesionales y de apoyo a la gestión | G184: Contratación directa | H184: Prestación de servicios profesionales y de apoyo a la gestión, o para la ejecución de trabajos artísticos que sólo puedan encomendarse a determinadas personas naturales; | I184: PRESTACIÓN DE SERVICIOS DE APOYO LOGÍSTICO EN LOS EVENTOS Y ACTIVIDADES DE LA ADMINISTRACIÓN LOCAL DE LA LOCALIDAD DE LA CANDELARIA. | J184: Inversión | K184: Un Nuevo Contrato Social y Ambiental para la Bogotá del Siglo XXI | L184: 6 | M184: =IF(ISERROR(VLOOKUP(L184,Proposito_programa!$C$2:$E$59,2,FALSE))," ",VLOOKUP(L184,Proposito_programa!$C$2:$E$59,2,FALSE)) -> Sistema Distrital de Cuidado | N184: =IF(ISERROR(VLOOKUP(L184,Proposito_programa!$C$2:$E$59,3,FALSE))," ",VLOOKUP(L184,Proposito_programa!$C$2:$E$59,3,FALSE)) -> Propósito 1: Hacer un nuevo contrato social para incrementar la inclusión social, productiva y política | O184: 1628 | P184: 1 | Q184: 80108185 | R184: ALEXIS ROLANDO CASTELLANOS MOSQUERA | S184: Persona Natural | W184: 3932500 | AA184: 3932500 | AB184: 2117500 | AC184: 44495 | AD184: 44495 | AE184: 44560 | AF184: 65 | AO184: X | AQ184: 0.5384615385
A185: 1 | B185: FDLC-CIA-005-2021 | C185: 2021 | D185: FDLC-CIA-005-2021 | E185: https://community.secop.gov.co/Public/Tendering/OpportunityDetail/Index?noticeUID=CO1.NTC.2381784&isFromPublicArea=True&isModal=False | F185: Contratos interadministrativos | G185: Contratación directa | H185: Contratos interadministrativos | I185: AUNAR ESFUERZOS TÉCNICOS, ADMINISTRATIVOS Y FINANCIEROS, PARA EJECUTAR LAS ETAPAS DEL PROCESO DE OTORGAMIENTO DE DISPOSITIVOS DE ASISTENCIA PERSONAL - AYUDAS TÉCNICAS (NO INCLUIDOS EN LOS PLANES DE BENEFICIO), A PERSONAS CON DISCAPACIDAD, DANDO RESPUESTA A LAS NECESIDADES TERRITORIALES DESDE LOS ENFOQUES DEL BUEN VIVIR, SOCIAL Y DE DERECHOS. | J185: Inversión | K185: Un Nuevo Contrato Social y Ambiental para la Bogotá del Siglo XXI | L185: 6 | M185: =IF(ISERROR(VLOOKUP(L185,Proposito_programa!$C$2:$E$59,2,FALSE))," ",VLOOKUP(L185,Proposito_programa!$C$2:$E$59,2,FALSE)) -> Sistema Distrital de Cuidado | N185: =IF(ISERROR(VLOOKUP(L185,Proposito_programa!$C$2:$E$59,3,FALSE))," ",VLOOKUP(L185,Proposito_programa!$C$2:$E$59,3,FALSE)) -> Propósito 1: Hacer un nuevo contrato social para incrementar la inclusión social, productiva y política | O185: 1664 | P185: 1 | Q185: 900959051 | R185: SUBRED INTEGRADA DE SERVICIOS DE SALUD CENTRO ORIENTE ESE | S185: Persona Jurídica | W185: 71492730 | AA185: 71492730 | AB185: 0 | AC185: 44541 | AD185: 44541 | AE185: 44691 | AF185: 180 | AN185: X | AQ185: 0
A186: 1 | B186: FDLC-CIA-006-2021 | C186: 2021 | D186: FDLC-CIA-006-2021 | E186: https://community.secop.gov.co/Public/Tendering/OpportunityDetail/Index?noticeUID=CO1.NTC.2389555&isFromPublicArea=True&isModal=False | F186: Contratos interadministrativos | G186: Contratación directa | H186: Contratos interadministrativos | I186: AUNAR ESFUERZOS TÉCNICOS, LOGÍSTICOS, HUMANOS Y ADMINISTRATIVOS CON EL FIN DE IMPLEMENTAR POLÍTICAS, PLANES, PROYECTOS Y DESARROLLAR ACCIONES ENCAMINADAS A LA PROTECCIÓN, CONSERVACIÓN, INTERVENCIÓN, INVESTIGACIÓN Y DIVULGACIÓN DEL PATRIMONIO CULTURAL DE BOGOTÁ EN ÁREAS DE INTERÉS CONJUNTAS PARA EL INSTITUTO DISTRITAL DE PATRIMONIO CULTURAL (IDPC) Y LA ALCALDÍA LOCAL DE LA CANDELARIA DE CONFORMIDAD CON LOS OBJETOS MISIONALES DE AMBAS ENTIDADES | J186: Funcionamiento | K186: Un Nuevo Contrato Social y Ambiental para la Bogotá del Siglo XXI | L186: No aplica | M186: =IF(ISERROR(VLOOKUP(L186,Proposito_programa!$C$2:$E$59,2,FALSE))," ",VLOOKUP(L186,Proposito_programa!$C$2:$E$59,2,FALSE)) ->  | N186: =IF(ISERROR(VLOOKUP(L186,Proposito_programa!$C$2:$E$59,3,FALSE))," ",VLOOKUP(L186,Proposito_programa!$C$2:$E$59,3,FALSE)) ->  | P186: 1 | Q186: 860506170 | R186: INSTITUTO DISTRITAL DE PATRIMONIO CULTURAL (IDPC) | S186: Persona Jurídica | W186: 0 | AA186: 0 | AB186: 0 | AC186: 44512 | AD186: 44512 | AE186: 45607 | AF186: =360*3 -> 1080 | AN186: X | AQ186: -
A187: 1 | B187: FDLC-CIA-007-2021 | C187: 2021 | D187: FDLC-CIA-007-2021 | E187: https://community.secop.gov.co/Public/Tendering/OpportunityDetail/Index?noticeUID=CO1.NTC.2391142&isFromPublicArea=True&isModal=False | F187: Contratos interadministrativos | G187: Contratación directa | H187: Contratos interadministrativos | I187: AUNAR ESFUERZOS TÉCNICOS, ADMINISTRATIVOS, LOGÍSTICOS ENTRE LA ALCALDÍA LOCAL DE LA CANDELARIA Y LA ORQUESTA FILARMÓNICA DE BOGOTÁ PARA LA CONTINUIDAD Y DESARROLLO DEL CENTRO FILARMÓNICO LOCAL, COMO UN ESPACIO PARA EL PROCESO DE FORMACIÓN MUSICAL IMPLEMENTADO POR LA ORQUESTA Y DIRIGIDO A LA LOCALIDAD, LAS CUALES SE DEASRROLLARAN DE MANERA VIRTUAL Y PRESENCIAL, TENIENDO EN CUENTA LA SITUACION ACTUAL DE PANDEMIA NACIONAL QUE VIVE EL PAIS | J187: Funcionamiento | K187: Un Nuevo Contrato Social y Ambiental para la Bogotá del Siglo XXI | L187: No aplica | M187: =IF(ISERROR(VLOOKUP(L187,Proposito_programa!$C$2:$E$59,2,FALSE))," ",VLOOKUP(L187,Proposito_programa!$C$2:$E$59,2,FALSE)) ->  | N187: =IF(ISERROR(VLOOKUP(L187,Proposito_programa!$C$2:$E$59,3,FALSE))," ",VLOOKUP(L187,Proposito_programa!$C$2:$E$59,3,FALSE)) ->  | P187: 1 | Q187: 899999282 | R187: ORQUESTA FILARMONICA DE BOGOTA | S187: Persona Jurídica | W187: 0 | AA187: 0 | AB187: 0 | AC187: 44512 | AD187: 44512 | AE187: 44865 | AF187: 207 | AN187: X | AQ187: -
A188: 1 | B188: FDLC-CIA-008-2021 | C188: 2021 | D188: FDLC-CIA-008-2021 | E188: https://community.secop.gov.co/Public/Tendering/OpportunityDetail/Index?noticeUID=CO1.NTC.2390812&isFromPublicArea=True&isModal=False | F188: Contratos interadministrativos | G188: Contratación directa | H188: Contratos interadministrativos | I188: “Implementar acciones para el reconocimiento integral de las comunidades indígenas que habitan en la localidad, mediante la generación de herramientas que les permitan el conocimiento de sus derechos, y el mejoramiento de sus condiciones de existencia individual y colectivamente con la implementación de los proyectos: 1626 LA CANDELARIA SOSTENIBLE: AGRICULTURA URBANA, COMPONENTE 1. AGRICULTURA URBANA; 1628 LA CANDELARIA PRODUCTIVA Y RESILIENTE, COMPONENTE 4.TRANSFORMACIÓN PRODUCTIVA; 1663 LA CANDELARIA REDISTRIBUTIVA: DEMOCRATIZANDO EL TRABAJO DE CUIDADO, COMPONENTE 1. ESTRATEGIAS DE CUIDADO; 1664 LA CANDELARIA INCLUYENTE Y ANCESTRAL, COMPONENTE 2. SABERES ANCESTRALES; Y 1781 LA CANDELARIA SEGURA: MUJERES LIBRES DE VIOLENCIAS, COMPONENTE 2. PREVENCIÓN DEL FEMINICIDIO Y LA VIOLENCIA CONTRA LA MUJER”. | J188: Inversión | K188: Un Nuevo Contrato Social y Ambiental para la Bogotá del Siglo XXI | L188: 24 | M188: =IF(ISERROR(VLOOKUP(L188,Proposito_programa!$C$2:$E$59,2,FALSE))," ",VLOOKUP(L188,Proposito_programa!$C$2:$E$59,2,FALSE)) -> Bogotá región emprendedora e innovadora | N188: =IF(ISERROR(VLOOKUP(L188,Proposito_programa!$C$2:$E$59,3,FALSE))," ",VLOOKUP(L188,Proposito_programa!$C$2:$E$59,3,FALSE)) -> Propósito 1: Hacer un nuevo contrato social para incrementar la inclusión social, productiva y política | O188: 1626 | P188: 1 | Q188: 830032429 | R188: CABILDO INDIGENA INGA DE BOGOTA D.C. | S188: Persona Jurídica | W188: 27345350 | AA188: 27345350 | AB188: 27345350 | AC188: 44512 | AD188: 44517 | AE188: 44608 | AF188: 90 | AN188: X | AQ188: 1
A189: 0 | B189: FDLC-CIA-008-2021 | C189: 2021 | D189: FDLC-CIA-008-2021 | E189: https://community.secop.gov.co/Public/Tendering/OpportunityDetail/Index?noticeUID=CO1.NTC.2390812&isFromPublicArea=True&isModal=False | F189: Contratos interadministrativos | G189: Contratación directa | H189: Contratos interadministrativos | I189: “Implementar acciones para el reconocimiento integral de las comunidades indígenas que habitan en la localidad, mediante la generación de herramientas que les permitan el conocimiento de sus derechos, y el mejoramiento de sus condiciones de existencia individual y colectivamente con la implementación de los proyectos: 1626 LA CANDELARIA SOSTENIBLE: AGRICULTURA URBANA, COMPONENTE 1. AGRICULTURA URBANA; 1628 LA CANDELARIA PRODUCTIVA Y RESILIENTE, COMPONENTE 4.TRANSFORMACIÓN PRODUCTIVA; 1663 LA CANDELARIA REDISTRIBUTIVA: DEMOCRATIZANDO EL TRABAJO DE CUIDADO, COMPONENTE 1. ESTRATEGIAS DE CUIDADO; 1664 LA CANDELARIA INCLUYENTE Y ANCESTRAL, COMPONENTE 2. SABERES ANCESTRALES; Y 1781 LA CANDELARIA SEGURA: MUJERES LIBRES DE VIOLENCIAS, COMPONENTE 2. PREVENCIÓN DEL FEMINICIDIO Y LA VIOLENCIA CONTRA LA MUJER”. | J189: Inversión | K189: Un Nuevo Contrato Social y Ambiental para la Bogotá del Siglo XXI | L189: 6 | M189: =IF(ISERROR(VLOOKUP(L189,Proposito_programa!$C$2:$E$59,2,FALSE))," ",VLOOKUP(L189,Proposito_programa!$C$2:$E$59,2,FALSE)) -> Sistema Distrital de Cuidado | N189: =IF(ISERROR(VLOOKUP(L189,Proposito_programa!$C$2:$E$59,3,FALSE))," ",VLOOKUP(L189,Proposito_programa!$C$2:$E$59,3,FALSE)) -> Propósito 1: Hacer un nuevo contrato social para incrementar la inclusión social, productiva y política | O189: 1628 | P189: 1 | Q189: 830032429 | R189: CABILDO INDIGENA INGA DE BOGOTA D.C. | S189: Persona Jurídica | W189: 22680000 | AA189: =+W189+X189+Z189 -> 22680000 | AB189: 22680000 | AC189: 44512 | AD189: 44517 | AE189: 44608 | AF189: 90 | AN189: X | AQ189: =IF(ISERROR(AB189/AA189),"-",(AB189/AA189)) -> 1
A190: 0 | B190: FDLC-CIA-008-2021 | C190: 2021 | D190: FDLC-CIA-008-2021 | E190: https://community.secop.gov.co/Public/Tendering/OpportunityDetail/Index?noticeUID=CO1.NTC.2390812&isFromPublicArea=True&isModal=False | F190: Contratos interadministrativos | G190: Contratación directa | H190: Contratos interadministrativos | I190: “Implementar acciones para el reconocimiento integral de las comunidades indígenas que habitan en la localidad, mediante la generación de herramientas que les permitan el conocimiento de sus derechos, y el mejoramiento de sus condiciones de existencia individual y colectivamente con la implementación de los proyectos: 1626 LA CANDELARIA SOSTENIBLE: AGRICULTURA URBANA, COMPONENTE 1. AGRICULTURA URBANA; 1628 LA CANDELARIA PRODUCTIVA Y RESILIENTE, COMPONENTE 4.TRANSFORMACIÓN PRODUCTIVA; 1663 LA CANDELARIA REDISTRIBUTIVA: DEMOCRATIZANDO EL TRABAJO DE CUIDADO, COMPONENTE 1. ESTRATEGIAS DE CUIDADO; 1664 LA CANDELARIA INCLUYENTE Y ANCESTRAL, COMPONENTE 2. SABERES ANCESTRALES; Y 1781 LA CANDELARIA SEGURA: MUJERES LIBRES DE VIOLENCIAS, COMPONENTE 2. PREVENCIÓN DEL FEMINICIDIO Y LA VIOLENCIA CONTRA LA MUJER”. | J190: Inversión | K190: Un Nuevo Contrato Social y Ambiental para la Bogotá del Siglo XXI | L190: 6 | M190: =IF(ISERROR(VLOOKUP(L190,Proposito_programa!$C$2:$E$59,2,FALSE))," ",VLOOKUP(L190,Proposito_programa!$C$2:$E$59,2,FALSE)) -> Sistema Distrital de Cuidado | N190: =IF(ISERROR(VLOOKUP(L190,Proposito_programa!$C$2:$E$59,3,FALSE))," ",VLOOKUP(L190,Proposito_programa!$C$2:$E$59,3,FALSE)) -> Propósito 1: Hacer un nuevo contrato social para incrementar la inclusión social, productiva y política | O190: 1663 | P190: 1 | Q190: 830032429 | R190: CABILDO INDIGENA INGA DE BOGOTA D.C. | S190: Persona Jurídica | W190: 39378333 | AA190: 39378333 | AB190: 1824097 | AC190: 44512 | AD190: 44517 | AE190: 44608 | AF190: 90 | AN190: X | AQ190: 0.04632235194
A191: 0 | B191: FDLC-CIA-008-2021 | C191: 2021 | D191: FDLC-CIA-008-2021 | E191: https://community.secop.gov.co/Public/Tendering/OpportunityDetail/Index?noticeUID=CO1.NTC.2390812&isFromPublicArea=True&isModal=False | F191: Contratos interadministrativos | G191: Contratación directa | H191: Contratos interadministrativos | I191: “Implementar acciones para el reconocimiento integral de las comunidades indígenas que habitan en la localidad, mediante la generación de herramientas que les permitan el conocimiento de sus derechos, y el mejoramiento de sus condiciones de existencia individual y colectivamente con la implementación de los proyectos: 1626 LA CANDELARIA SOSTENIBLE: AGRICULTURA URBANA, COMPONENTE 1. AGRICULTURA URBANA; 1628 LA CANDELARIA PRODUCTIVA Y RESILIENTE, COMPONENTE 4.TRANSFORMACIÓN PRODUCTIVA; 1663 LA CANDELARIA REDISTRIBUTIVA: DEMOCRATIZANDO EL TRABAJO DE CUIDADO, COMPONENTE 1. ESTRATEGIAS DE CUIDADO; 1664 LA CANDELARIA INCLUYENTE Y ANCESTRAL, COMPONENTE 2. SABERES ANCESTRALES; Y 1781 LA CANDELARIA SEGURA: MUJERES LIBRES DE VIOLENCIAS, COMPONENTE 2. PREVENCIÓN DEL FEMINICIDIO Y LA VIOLENCIA CONTRA LA MUJER”. | J191: Inversión | K191: Un Nuevo Contrato Social y Ambiental para la Bogotá del Siglo XXI | L191: 6 | M191: =IF(ISERROR(VLOOKUP(L191,Proposito_programa!$C$2:$E$59,2,FALSE))," ",VLOOKUP(L191,Proposito_programa!$C$2:$E$59,2,FALSE)) -> Sistema Distrital de Cuidado | N191: =IF(ISERROR(VLOOKUP(L191,Proposito_programa!$C$2:$E$59,3,FALSE))," ",VLOOKUP(L191,Proposito_programa!$C$2:$E$59,3,FALSE)) -> Propósito 1: Hacer un nuevo contrato social para incrementar la inclusión social, productiva y política | O191: 1664 | P191: 1 | Q191: 830032429 | R191: CABILDO INDIGENA INGA DE BOGOTA D.C. | S191: Persona Jurídica | W191: 55452806 | AA191: 55452806 | AB191: 0 | AC191: 44512 | AD191: 44517 | AE191: 44608 | AF191: 90 | AN191: X | AQ191: 0
A192: 0 | B192: FDLC-CIA-008-2021 | C192: 2021 | D192: FDLC-CIA-008-2021 | E192: https://community.secop.gov.co/Public/Tendering/OpportunityDetail/Index?noticeUID=CO1.NTC.2390812&isFromPublicArea=True&isModal=False | F192: Contratos interadministrativos | G192: Contratación directa | H192: Contratos interadministrativos | I192: “Implementar acciones para el reconocimiento integral de las comunidades indígenas que habitan en la localidad, mediante la generación de herramientas que les permitan el conocimiento de sus derechos, y el mejoramiento de sus condiciones de existencia individual y colectivamente con la implementación de los proyectos: 1626 LA CANDELARIA SOSTENIBLE: AGRICULTURA URBANA, COMPONENTE 1. AGRICULTURA URBANA; 1628 LA CANDELARIA PRODUCTIVA Y RESILIENTE, COMPONENTE 4.TRANSFORMACIÓN PRODUCTIVA; 1663 LA CANDELARIA REDISTRIBUTIVA: DEMOCRATIZANDO EL TRABAJO DE CUIDADO, COMPONENTE 1. ESTRATEGIAS DE CUIDADO; 1664 LA CANDELARIA INCLUYENTE Y ANCESTRAL, COMPONENTE 2. SABERES ANCESTRALES; Y 1781 LA CANDELARIA SEGURA: MUJERES LIBRES DE VIOLENCIAS, COMPONENTE 2. PREVENCIÓN DEL FEMINICIDIO Y LA VIOLENCIA CONTRA LA MUJER”. | J192: Inversión | K192: Un Nuevo Contrato Social y Ambiental para la Bogotá del Siglo XXI | L192: 40 | M192: =IF(ISERROR(VLOOKUP(L192,Proposito_programa!$C$2:$E$59,2,FALSE))," ",VLOOKUP(L192,Proposito_programa!$C$2:$E$59,2,FALSE)) -> Más mujeres viven una vida libre de violencias, se sienten seguras y acceden con confianza al sistema de justicia | N192: =IF(ISERROR(VLOOKUP(L192,Proposito_programa!$C$2:$E$59,3,FALSE))," ",VLOOKUP(L192,Proposito_programa!$C$2:$E$59,3,FALSE)) -> Propósito 3: Inspirar confianza y legitimidad para vivir sin miedo y ser epicentro de cultura ciudadana, paz y reconciliación | O192: 1781 | P192: 1 | Q192: 830032429 | R192: CABILDO INDIGENA INGA DE BOGOTA D.C. | S192: Persona Jurídica | W192: 27975000 | AA192: 27975000 | AB192: 0 | AC192: 44512 | AD192: 44517 | AE192: 44608 | AF192: 90 | AN192: X | AQ192: 0
A193: 1 | B193: 163 | C193: 2021 | D193: FDLC-SASI-003-2021 | E193: https://community.secop.gov.co/Public/Tendering/OpportunityDetail/Index?noticeUID=CO1.NTC.2301455&isFromPublicArea=True&isModal=False | F193: Compraventa de bienes muebles | G193: Selección abreviada | H193: Subasta inversa | I193: Adquisición de material bibliográfico, elementos didácticos, deportivos, musicales, material tecnológico y papelería necesarios en el marco del proyecto no. 1608 denominado “La Candelaria pedagógica bases sólidas para la vida" | J193: Inversión | K193: Un Nuevo Contrato Social y Ambiental para la Bogotá del Siglo XXI | L193: 12 | M193: =IF(ISERROR(VLOOKUP(L193,Proposito_programa!$C$2:$E$59,2,FALSE))," ",VLOOKUP(L193,Proposito_programa!$C$2:$E$59,2,FALSE)) -> Educación inicial: Bases sólidas para la vida. | N193: =IF(ISERROR(VLOOKUP(L193,Proposito_programa!$C$2:$E$59,3,FALSE))," ",VLOOKUP(L193,Proposito_programa!$C$2:$E$59,3,FALSE)) -> Propósito 1: Hacer un nuevo contrato social para incrementar la inclusión social, productiva y política | O193: 1608 | P193: 6 | Q193: 830037946 | R193: PANAMERICANA LIBRERIA Y PAPELERIA S A | S193: Persona Jurídica | W193: 38500000 | AA193: =+W193+X193+Z193 -> 38500000 | AB193: 0 | AC193: 44505 | AD193: 44509 | AE193: 44569 | AF193: 60 | AN193: X | AQ193: =IF(ISERROR(AB193/AA193),"-",(AB193/AA193)) -> 0
A194: 1 | B194: 164 | C194: 2021 | D194: FDLC-SASI-003-2021 | E194: https://community.secop.gov.co/Public/Tendering/OpportunityDetail/Index?noticeUID=CO1.NTC.2301455&isFromPublicArea=True&isModal=False | F194: Compraventa de bienes muebles | G194: Selección abreviada | H194: Subasta inversa | I194: Adquisición de material bibliográfico, elementos didácticos, deportivos, musicales, material tecnológico y papelería necesarios en el marco del proyecto no. 1608 denominado “La Candelaria pedagógica bases sólidas para la vida" | J194: Inversión | K194: Un Nuevo Contrato Social y Ambiental para la Bogotá del Siglo XXI | L194: 12 | M194: =IF(ISERROR(VLOOKUP(L194,Proposito_programa!$C$2:$E$59,2,FALSE))," ",VLOOKUP(L194,Proposito_programa!$C$2:$E$59,2,FALSE)) -> Educación inicial: Bases sólidas para la vida. | N194: =IF(ISERROR(VLOOKUP(L194,Proposito_programa!$C$2:$E$59,3,FALSE))," ",VLOOKUP(L194,Proposito_programa!$C$2:$E$59,3,FALSE)) -> Propósito 1: Hacer un nuevo contrato social para incrementar la inclusión social, productiva y política | O194: 1608 | P194: 6 | Q194: 901151389 | R194: S&S SERVICIOS Y SUMINISTROS STELAR SAS | S194: Persona Jurídica | W194: 10360501 | AA194: 10360501 | AB194: 0 | AC194: 44505 | AD194: 44511 | AE194: 44571 | AF194: 60 | AN194: X | AQ194: 0
A195: 1 | B195: 165 | C195: 2021 | D195: FDLC-SASI-003-2021 | E195: https://community.secop.gov.co/Public/Tendering/OpportunityDetail/Index?noticeUID=CO1.NTC.2301455&isFromPublicArea=True&isModal=False | F195: Compraventa de bienes muebles | G195: Selección abreviada | H195: Subasta inversa | I195: Adquisición de material bibliográfico, elementos didácticos, deportivos, musicales, material tecnológico y papelería necesarios en el marco del proyecto no. 1608 denominado “La Candelaria pedagógica bases sólidas para la vida" | J195: Inversión | K195: Un Nuevo Contrato Social y Ambiental para la Bogotá del Siglo XXI | L195: 12 | M195: =IF(ISERROR(VLOOKUP(L195,Proposito_programa!$C$2:$E$59,2,FALSE))," ",VLOOKUP(L195,Proposito_programa!$C$2:$E$59,2,FALSE)) -> Educación inicial: Bases sólidas para la vida. | N195: =IF(ISERROR(VLOOKUP(L195,Proposito_programa!$C$2:$E$59,3,FALSE))," ",VLOOKUP(L195,Proposito_programa!$C$2:$E$59,3,FALSE)) -> Propósito 1: Hacer un nuevo contrato social para incrementar la inclusión social, productiva y política | O195: 1608 | P195: 6 | Q195: 901151389 | R195: S&S SERVICIOS Y SUMINISTROS STELAR SAS | S195: Persona Jurídica | W195: 14503919 | AA195: 14503919 | AB195: 0 | AC195: 44505 | AD195: 44511 | AE195: 44571 | AF195: 60 | AN195: X | AQ195: 0
A196: 1 | B196: 166 | C196: 2021 | D196: FDLC-SASI-003-2021 | E196: https://community.secop.gov.co/Public/Tendering/OpportunityDetail/Index?noticeUID=CO1.NTC.2301455&isFromPublicArea=True&isModal=False | F196: Compraventa de bienes muebles | G196: Selección abreviada | H196: Subasta inversa | I196: Adquisición de material bibliográfico, elementos didácticos, deportivos, musicales, material tecnológico y papelería necesarios en el marco del proyecto no. 1608 denominado “La Candelaria pedagógica bases sólidas para la vida" | J196: Inversión | K196: Un Nuevo Contrato Social y Ambiental para la Bogotá del Siglo XXI | L196: 12 | M196: =IF(ISERROR(VLOOKUP(L196,Proposito_programa!$C$2:$E$59,2,FALSE))," ",VLOOKUP(L196,Proposito_programa!$C$2:$E$59,2,FALSE)) -> Educación inicial: Bases sólidas para la vida. | N196: =IF(ISERROR(VLOOKUP(L196,Proposito_programa!$C$2:$E$59,3,FALSE))," ",VLOOKUP(L196,Proposito_programa!$C$2:$E$59,3,FALSE)) -> Propósito 1: Hacer un nuevo contrato social para incrementar la inclusión social, productiva y política | O196: 1608 | P196: 6 | Q196: 901151389 | R196: S&S SERVICIOS Y SUMINISTROS STELAR SAS | S196: Persona Jurídica | W196: 6745000 | AA196: 6745000 | AB196: 0 | AC196: 44505 | AD196: 44511 | AE196: 44571 | AF196: 60 | AN196: X | AQ196: 0
A197: 1 | B197: 167 | C197: 2021 | D197: FDLC-SASI-003-2021 | E197: https://community.secop.gov.co/Public/Tendering/OpportunityDetail/Index?noticeUID=CO1.NTC.2301455&isFromPublicArea=True&isModal=False | F197: Compraventa de bienes muebles | G197: Selección abreviada | H197: Subasta inversa | I197: Adquisición de material bibliográfico, elementos didácticos, deportivos, musicales, material tecnológico y papelería necesarios en el marco del proyecto no. 1608 denominado “La Candelaria pedagógica bases sólidas para la vida" | J197: Inversión | K197: Un Nuevo Contrato Social y Ambiental para la Bogotá del Siglo XXI | L197: 12 | M197: =IF(ISERROR(VLOOKUP(L197,Proposito_programa!$C$2:$E$59,2,FALSE))," ",VLOOKUP(L197,Proposito_programa!$C$2:$E$59,2,FALSE)) -> Educación inicial: Bases sólidas para la vida. | N197: =IF(ISERROR(VLOOKUP(L197,Proposito_programa!$C$2:$E$59,3,FALSE))," ",VLOOKUP(L197,Proposito_programa!$C$2:$E$59,3,FALSE)) -> Propósito 1: Hacer un nuevo contrato social para incrementar la inclusión social, productiva y política | O197: 1608 | P197: 6 | Q197: 901151389 | R197: S&S SERVICIOS Y SUMINISTROS STELAR SAS | S197: Persona Jurídica | W197: 2478996 | AA197: 2478996 | AB197: 0 | AC197: 44505 | AD197: 44511 | AE197: 44571 | AF197: 60 | AN197: X | AQ197: 0
A198: 1 | B198: 168 | C198: 2021 | D198: FDLC-SAMC-008-2021 | E198: https://community.secop.gov.co/Public/Tendering/OpportunityDetail/Index?noticeUID=CO1.NTC.2326293&isFromPublicArea=True&isModal=False | F198: Contratos de prestación de servicios | G198: Selección abreviada | H198: Selección abreviada por menor cuantía | I198: Ejecutar la preproducción, producción, realización, y postproducción técnica y logística de los eventos, fiestas y festivales de la Localidad de la Candelaria, a través de la administración, alquiler y suministro de los bienes y servicios necesarios para su desarrollo | J198: Inversión | K198: Un Nuevo Contrato Social y Ambiental para la Bogotá del Siglo XXI | L198: 21 | M198: =IF(ISERROR(VLOOKUP(L198,Proposito_programa!$C$2:$E$59,2,FALSE))," ",VLOOKUP(L198,Proposito_programa!$C$2:$E$59,2,FALSE)) -> Creación y vida cotidiana: Apropiación ciudadana del arte, la cultura y el patrimonio, para la democracia cultural | N198: =IF(ISERROR(VLOOKUP(L198,Proposito_programa!$C$2:$E$59,3,FALSE))," ",VLOOKUP(L198,Proposito_programa!$C$2:$E$59,3,FALSE)) -> Propósito 1: Hacer un nuevo contrato social para incrementar la inclusión social, productiva y política | O198: 1625 | P198: 12 | Q198: 900387383 | R198: UNLOFT PRODUCCION DE MARCA S A S | S198: Persona Jurídica | W198: 211047353 | Y198: 1 | Z198: 102840884 | AA198: =+W198+X198+Z198 -> 313888237 | AB198: 63314206 | AC198: 44509 | AD198: 44511 | AE198: 44630 | AF198: 120 | AN198: X | AQ198: 0.2017093938
A199: 1 | B199: 169 | C199: 2021 | D199: FDLC-CPS-169-2021 | E199: https://community.secop.gov.co/Public/Tendering/OpportunityDetail/Index?noticeUID=CO1.NTC.2399905&isFromPublicArea=True&isModal=False | F199: Contratos de prestación de servicios profesionales y de apoyo a la gestión | G199: Contratación directa | H199: Prestación de servicios profesionales y de apoyo a la gestión, o para la ejecución de trabajos artísticos que sólo puedan encomendarse a determinadas personas naturales; | I199: PRESTAR SERVICIOS PROFESIONALES AL FONDO DE DESARROLLO LOCAL DE LA CANDELARIA PARA COORDINAR LA ARTICULACIÓN, ASISTENCIA Y ACOMPAÑAMIENTO DE LOS PROCESOS DE PLANEACIÓN LOCAL, PARA LA PROMOCIÓN DE LA PARTICIPACIÓN DE LAS MUJERES Y DE LA EQUIDAD DE GÉNERO, PARA MATERIALIZAR EN LA LOCALIDAD LAS ESTRATEGIAS DE TERRITORIALIZACIÓN Y TRANSVERSALIZACIÓN DE LA POLÍTICA PUBLICA DE MUJERES Y EQUIDAD DE GÉNERO, PPMYEG | J199: Inversión | K199: Un Nuevo Contrato Social y Ambiental para la Bogotá del Siglo XXI | L199: 40 | M199: =IF(ISERROR(VLOOKUP(L199,Proposito_programa!$C$2:$E$59,2,FALSE))," ",VLOOKUP(L199,Proposito_programa!$C$2:$E$59,2,FALSE)) -> Más mujeres viven una vida libre de violencias, se sienten seguras y acceden con confianza al sistema de justicia | N199: =IF(ISERROR(VLOOKUP(L199,Proposito_programa!$C$2:$E$59,3,FALSE))," ",VLOOKUP(L199,Proposito_programa!$C$2:$E$59,3,FALSE)) -> Propósito 3: Inspirar confianza y legitimidad para vivir sin miedo y ser epicentro de cultura ciudadana, paz y reconciliación | O199: 1781 | P199: 1 | Q199: 52619262 | R199: MARIA PAULA AVILA GONZALEZ | S199: Persona Natural | W199: 7497600 | AA199: 7497600 | AB199: 0 | AC199: 44517 | AD199: 44517 | AE199: 44560 | AF199: 44 | AO199: X | AQ199: 0
A200: 1 | B200: 170 | C200: 2021 | D200: FDLC-CPS-170-2021 | E200: https://community.secop.gov.co/Public/Tendering/OpportunityDetail/Index?noticeUID=CO1.NTC.2399907&isFromPublicArea=True&isModal=False | F200: Contratos de prestación de servicios profesionales y de apoyo a la gestión | G200: Contratación directa | H200: Prestación de servicios profesionales y de apoyo a la gestión, o para la ejecución de trabajos artísticos que sólo puedan encomendarse a determinadas personas naturales; | I200: PRESTAR SERVICIOS DE APOYO A LA GESTIÓN AL FONDO DE DESARROLLO LOCAL DE LA CANDELARIA PARA LA IDENTIFICACION, MITIGACIÓN Y MONITOREO DE PROBLEMAS AMBIENTALES Y EL ORTALECIMIENTO DE LA PRACTICA DE AGRICULTURA URBANA EN ARAS DE LA SOSTENIBILIDAD DE LA LOCALIDAD | J200: Inversión | K200: Un Nuevo Contrato Social y Ambiental para la Bogotá del Siglo XXI | L200: 24 | M200: =IF(ISERROR(VLOOKUP(L200,Proposito_programa!$C$2:$E$59,2,FALSE))," ",VLOOKUP(L200,Proposito_programa!$C$2:$E$59,2,FALSE)) -> Bogotá región emprendedora e innovadora | N200: =IF(ISERROR(VLOOKUP(L200,Proposito_programa!$C$2:$E$59,3,FALSE))," ",VLOOKUP(L200,Proposito_programa!$C$2:$E$59,3,FALSE)) -> Propósito 1: Hacer un nuevo contrato social para incrementar la inclusión social, productiva y política | O200: 1626 | P200: 1 | Q200: 65788328 | R200: EMPERATRIZ GONZALEZ PALENCIA | S200: Persona Natural | W200: 2346667 | Y200: 1 | Z200: 1173334 | AA200: 3520001 | AB200: 746667 | AC200: 44517 | AD200: 44517 | AE200: 44582 | AF200: 44 | AH200: 22 | AN200: X | AQ200: 0.2121212466
